NUMERO_MANDATO;RIGA_MANDATO;QUIET;IMPORTO_RIGA;IMPORTO_MANDATO;BENEFICIARIO;CIG;TITOLO_PAGAMENTO;DATA_MANDATO;CAPITOLO;ARTICOLO;NUMERO_IMPEGNO;TITOLO;DESCR_TITOLO;LIVELLO_II;DESCR_LIVELLO_II;LIVELLO_III;DESCR_LIVELLO_III;LIVELLO_IV;DESCR_LIVELLO_IV;LIVELLO_V;DESCR_LIVELLO_V;DATA_PAG_EFF;
547;1;0;"1.069,70";"1.069,70";ASS.NAZIONALE CITTA' DEL VINO; ;Quota associativa Associazione "Citta' del Vino" anno 2016 - A.L. SEG. N. 48 DEL 22.06.2016;23-06-2016;580;0;197;1;Spese correnti;4;Trasferimenti correnti;1;Trasferimenti correnti a Amministrazioni Pubbliche;2;Trasferimenti correnti a Amministrazioni Locali;999;Trasferimenti correnti a altre Amministrazioni Locali n.a.c.;23-06-2016;
549;1;0;"120,00";"120,00";STRADA DEL VINO COLLI EUGANEI; ;Quota associativa Associazione "Strada del Vino Colli Euganei"  anno 2016 - a.l. seg. n. 47 del 22.06.2016;23-06-2016;580;0;198;1;Spese correnti;4;Trasferimenti correnti;1;Trasferimenti correnti a Amministrazioni Pubbliche;2;Trasferimenti correnti a Amministrazioni Locali;999;Trasferimenti correnti a altre Amministrazioni Locali n.a.c.;23-06-2016;
550;1;0;"1.128,40";"1.128,40";CODESS SOCIALE;53979365B3;ACCONTO Fatt.n. 2860/PA  del 07/06/2016 Servizio di assistenza sociale e domiciliare mese di aprile 2016;23-06-2016;6980;0;43;1;Spese correnti;3;Acquisto di beni e servizi;2;Acquisto di servizi;15;Contratti di servizio pubblico;9;Contratti di servizio di assistenza sociale domiciliare;23-06-2016;
551;1;0;"2.702,70";"2.702,70";CODESS SOCIALE;53979365B3;SALDO Fatt.n. 2860/PA  del 07/06/2016 Servizio di assistenza sociale e domiciliare mese di aprile 2016;23-06-2016;6990;0;44;1;Spese correnti;3;Acquisto di beni e servizi;2;Acquisto di servizi;15;Contratti di servizio pubblico;9;Contratti di servizio di assistenza sociale domiciliare;23-06-2016;
552;1;0;"2.696,03";"2.696,03";Sodexo Italia Spa;64630250F4;SALDO Fatt.n. 7400021933  del 31/05/2016 Fornitura pasti per alunni scuola primaria mese di maggio 2016;23-06-2016;3406;0;32;1;Spese correnti;3;Acquisto di beni e servizi;2;Acquisto di servizi;15;Contratti di servizio pubblico;6;Contratti di servizio per le mense scolastiche;23-06-2016;
553;1;0;"4.693,27";"4.693,27";Sodexo Italia Spa;64630250F4;SALDO Fatt.n. 7400021932  del 31/05/2016 Fornitura pasti per alunni scuola materna mese di maggio 2016;23-06-2016;3404;0;24;1;Spese correnti;3;Acquisto di beni e servizi;2;Acquisto di servizi;15;Contratti di servizio pubblico;6;Contratti di servizio per le mense scolastiche;23-06-2016;
554;1;0;"717,89";"717,89";ANCI - ASSOCIAZIONE NAZIONALE COMUNI ITALIANI; ;Quota associativa Associazione Nazionale Comuni Italiani anno 2016 - A.L. SEG. N. 50 DEL 22.06.2016;23-06-2016;580;0;196;1;Spese correnti;4;Trasferimenti correnti;1;Trasferimenti correnti a Amministrazioni Pubbliche;2;Trasferimenti correnti a Amministrazioni Locali;999;Trasferimenti correnti a altre Amministrazioni Locali n.a.c.;23-06-2016;
555;1;0;"220,00";"220,00";A.N.U.S.C.A.; ;Quota associativa A.N.U.S.C.A. anno 2016 - a.l. seg. n. 49 del 22.06.2016;23-06-2016;580;0;199;1;Spese correnti;4;Trasferimenti correnti;1;Trasferimenti correnti a Amministrazioni Pubbliche;2;Trasferimenti correnti a Amministrazioni Locali;999;Trasferimenti correnti a altre Amministrazioni Locali n.a.c.;23-06-2016;
557;1;0;"1.774,75";"1.774,75";TREVISAN VANESSA; ;Indennita' di carica Sindaco giugno 2016;01-07-2016;10;0;2;1;Spese correnti;3;Acquisto di beni e servizi;2;Acquisto di servizi;1;Organi e incarichi istituzionali dell'amministrazione;1;Organi istituzionali dell'amministrazione - Indennità;01-07-2016;
558;1;0;"177,48";"177,48";CALAON SIMONE; ;Indennita' di carica Vice-Sindaco  giugno 2016;01-07-2016;10;0;3;1;Spese correnti;3;Acquisto di beni e servizi;2;Acquisto di servizi;1;Organi e incarichi istituzionali dell'amministrazione;1;Organi istituzionali dell'amministrazione - Indennità;01-07-2016;
559;1;0;"266,21";"266,21";SANTIMARIA ANDREA; ;Indennita' di carica Assessore giugno 2016;01-07-2016;10;0;5;1;Spese correnti;3;Acquisto di beni e servizi;2;Acquisto di servizi;1;Organi e incarichi istituzionali dell'amministrazione;1;Organi istituzionali dell'amministrazione - Indennità;01-07-2016;
560;1;0;"266,21";"266,21";ZAVATTIERO AGOSTINO; ;Indennita' di carica assessore giugno 2016;01-07-2016;10;0;59;1;Spese correnti;3;Acquisto di beni e servizi;2;Acquisto di servizi;1;Organi e incarichi istituzionali dell'amministrazione;1;Organi istituzionali dell'amministrazione - Indennità;01-07-2016;
561;1;0;"133,11";"133,11";LAZZARETTO ROBERTA; ;Indennita' di carica  assessore mese di giugno 2016;01-07-2016;10;0;58;1;Spese correnti;3;Acquisto di beni e servizi;2;Acquisto di servizi;1;Organi e incarichi istituzionali dell'amministrazione;1;Organi istituzionali dell'amministrazione - Indennità;01-07-2016;
564;1;0;"90,16";"90,16";LAZZARETTO ROBERTA; ;Rimborso spese viaggio agli Amministratori Comunali mese di aprile 2016 - A.L. RAG. N. 65 DEL 11.07.2016;14-07-2016;230;0;149;1;Spese correnti;3;Acquisto di beni e servizi;2;Acquisto di servizi;2;"Rappresentanza, organizzazione eventi, pubblicità e servizi per trasferta";2;Indennità di missione e di trasferta;14-07-2016;
565;1;0;"413,28";"413,28";LAZZARETTO ROBERTA; ;Rimborso spese viaggio agli Amministratori Comunali MAGGIO E GIUGNO 2016 - a.l. rag. n. 65 del 11.07.2016;14-07-2016;230;0;255;1;Spese correnti;3;Acquisto di beni e servizi;2;Acquisto di servizi;2;"Rappresentanza, organizzazione eventi, pubblicità e servizi per trasferta";2;Indennità di missione e di trasferta;14-07-2016;
566;1;0;"428,22";"428,22";EL.PO srl;ZE115339EF;SALDO Fatt.n. 001303  del 28/06/2016 Manutenzione ascensore per biblioteca periodo dal 01.01.2016 al 30.06.2016;14-07-2016;1400;0;187;1;Spese correnti;3;Acquisto di beni e servizi;2;Acquisto di servizi;9;Manutenzione ordinaria e riparazioni;4;Manutenzione ordinaria e riparazioni di impianti e macchinari;14-07-2016;
567;1;0;"13.761,04";"13.761,04";DE VIZIA TRANSFER S.P.A.;Z941520100;SALDO Fatt.n. V3-30863  del 30/06/2016 Servizio di raccolta e trasporto rifiuti mese di giugno 2016;14-07-2016;5780;0;139;1;Spese correnti;3;Acquisto di beni e servizi;2;Acquisto di servizi;15;Contratti di servizio pubblico;4;Contratti di servizio per la raccolta rifiuti;14-07-2016;
568;1;0;"1.161,20";"1.161,20";VENETA SICUREZZA E SEGNALETICA STRADALE  SRL;Z2F199DCC9;SALDO Fatt.n. 56  del 30/06/2016 Fornitura segnaletica verticale;14-07-2016;11950;0;210;2;Spese in conto capitale;5;Altre spese in conto capitale;99;Altre spese in conto capitale n.a.c.;99;Altre spese in conto capitale n.a.c.;999;Altre spese in conto capitale n.a.c.;14-07-2016;
569;1;0;"240,41";"240,41";MAGAZZINI AMBROSI S.A.S. DI AMBROSI FABIO E TIZIANA;Z781909141;SALDO Fatt.n. 8  del 30/06/2016 Fornitura materiale vario per lavori in economia;14-07-2016;1300;0;129;1;Spese correnti;3;Acquisto di beni e servizi;1;Acquisto di beni;2;Altri beni di consumo;999;Altri beni e materiali di consumo n.a.c.;14-07-2016;
571;1;0;"132,00";"132,00";Civica srl; ;SALDO Fatt.n. 206/2016  del 31/03/2016 Giornata di formazione sul Bilancio di Previsione;14-07-2016;445;0;19;1;Spese correnti;3;Acquisto di beni e servizi;2;Acquisto di servizi;4;Acquisto di servizi per formazione e addestramento del personale dell'ente;2;Acquisto di servizi per formazione generica;14-07-2016;
573;1;0;"8.316,17";"8.316,17";S.E.S.A. SPA;Z11182D6F2;SALDO Fatt.n. 2000331  del 31/05/2016 Servizio di smaltimento rifiuti mese di maggio 2016;14-07-2016;5780;0;33;1;Spese correnti;3;Acquisto di beni e servizi;2;Acquisto di servizi;15;Contratti di servizio pubblico;5;Contratti di servizio per il conferimento in discarica dei rifiuti;14-07-2016;
574;1;0;"274,50";"274,50";UNILIFT S.r.l.;Z061834A9E;SALDO Fatt.n. 100016  del 15/06/2016 Manutenzione impianto elevatore c/o Polo Scolastico periodo dal 01.01.2016 al 30.06.2016;14-07-2016;1302;0;49;1;Spese correnti;3;Acquisto di beni e servizi;2;Acquisto di servizi;9;Manutenzione ordinaria e riparazioni;8;Manutenzione ordinaria e riparazioni di beni immobili;14-07-2016;
575;1;0;"258,11";"258,11";PVB SOLUTIONS S.p.a.;Z361640839;ACCONTO Fatt.n. 2016/481/VPA  del 15/06/2016 Conduzione e manutenzione centrali termiche periodo dal 15.04.2016 al 14.02.2016;14-07-2016;475;0;68;1;Spese correnti;3;Acquisto di beni e servizi;2;Acquisto di servizi;99;Altri servizi;999;Altri servizi diversi n.a.c.;14-07-2016;
576;1;0;"48,40";"48,40";PVB SOLUTIONS S.p.a.;Z361640839;ACCONTO Fatt.n. 2016/481/VPA  del 15/06/2016 Conduzione e manutenzione centrali termiche periodo dal 15.04.2016 al 14.02.2016;14-07-2016;2800;0;63;1;Spese correnti;3;Acquisto di beni e servizi;1;Acquisto di beni;2;Altri beni di consumo;999;Altri beni e materiali di consumo n.a.c.;14-07-2016;
577;1;0;"80,66";"80,66";PVB SOLUTIONS S.p.a.;Z361640839;ACCONTO Fatt.n. 2016/481/VPA  del 15/06/2016 Conduzione e manutenzione centrali termiche periodo dal 15.04.2016 al 14.02.2016;14-07-2016;2970;0;66;1;Spese correnti;3;Acquisto di beni e servizi;1;Acquisto di beni;2;Altri beni di consumo;999;Altri beni e materiali di consumo n.a.c.;14-07-2016;
578;1;0;"304,18";"304,18";PVB SOLUTIONS S.p.a.;Z361640839;ACCONTO Fatt.n. 2016/481/VPA  del 15/06/2016 Conduzione e manutenzione centrali termiche periodo dal 15.04.2016 al 14.02.2016;14-07-2016;3180;0;64;1;Spese correnti;3;Acquisto di beni e servizi;1;Acquisto di beni;2;Altri beni di consumo;999;Altri beni e materiali di consumo n.a.c.;14-07-2016;
579;1;0;"101,66";"101,66";PVB SOLUTIONS S.p.a.;Z361640839;ACCONTO Fatt.n. 2016/481/VPA  del 15/06/2016 Conduzione e manutenzione centrali termiche periodo dal 15.04.2016 al 14.02.2016;14-07-2016;1310;0;65;1;Spese correnti;3;Acquisto di beni e servizi;2;Acquisto di servizi;9;Manutenzione ordinaria e riparazioni;8;Manutenzione ordinaria e riparazioni di beni immobili;14-07-2016;
580;1;0;"111,83";"111,83";PVB SOLUTIONS S.p.a.;Z361640839;SALDO Fatt.n. 2016/481/VPA  del 15/06/2016 Conduzione e manutenzione centrali termiche periodo dal 15.04.2016 al 14.02.2016;14-07-2016;1400;0;67;1;Spese correnti;3;Acquisto di beni e servizi;2;Acquisto di servizi;9;Manutenzione ordinaria e riparazioni;8;Manutenzione ordinaria e riparazioni di beni immobili;14-07-2016;
581;1;0;"2.129,40";"2.129,40";IMPRESA SAGREDE DI SOLDA' GIUSEPPE E C. SNC; ;Restituzione oneri di urbanizzazione e costo di costruzione per mancato inizio lavori Permesso di Costruzione n. 56/2004 rilasciato il 23.09.2005 - a.l. utc n. 79 del 13.07.2016;14-07-2016;9500;0;252;2;Spese in conto capitale;5;Altre spese in conto capitale;4;Altri rimborsi in conto capitale di somme non dovute o incassate in eccesso;4;Rimborsi in conto capitale a Famiglie di somme non dovute o incassate in eccesso;1;Rimborsi in conto capitale a Famiglie di somme non dovute o incassate in eccesso;14-07-2016;
582;1;0;"9,08";"9,08";ECONOMO COMUNALE; ;Rifusione buono economato n. 26 - a.l. RAG. N. 63 DEL 06.07.2016;14-07-2016;450;0;110;1;Spese correnti;3;Acquisto di beni e servizi;2;Acquisto di servizi;99;Altri servizi;999;Altri servizi diversi n.a.c.;14-07-2016;
583;1;0;"102,91";"102,91";ECONOMO COMUNALE; ;Rifusione buoni economato n. 28 e 29p - A.L. RAG. N. 63 del 06.07.2016;14-07-2016;4754;0;112;1;Spese correnti;3;Acquisto di beni e servizi;1;Acquisto di beni;2;Altri beni di consumo;999;Altri beni e materiali di consumo n.a.c.;14-07-2016;
584;1;0;"259,46";"259,46";ECONOMO COMUNALE; ;Rifusione buoni economato n. 29p 30 31 32 - A.L. RAG. N. 63 DEL 06.07.2016;14-07-2016;4754;0;182;1;Spese correnti;3;Acquisto di beni e servizi;1;Acquisto di beni;2;Altri beni di consumo;999;Altri beni e materiali di consumo n.a.c.;14-07-2016;
617;1;0;"1.288,63";"1.288,63";Melillo Servizi Ambientali e Cimiteriali s.r.l.;ZE418C2969;SALDO Fatt.n. 3590  del 30/06/2016 Servizi cimiteriali periodo aprile / giugno 2016;25-07-2016;5190;0;144;1;Spese correnti;3;Acquisto di beni e servizi;2;Acquisto di servizi;99;Altri servizi;999;Altri servizi diversi n.a.c.;25-07-2016;
618;1;0;"5.543,47";"5.543,47";MARTINI LUCIANO SRL;Z70188CBBO;SALDO Fatt.n. 2  del 04/07/2016 Lavori di manutenzione strade comunali;25-07-2016;1302;0;237;1;Spese correnti;3;Acquisto di beni e servizi;2;Acquisto di servizi;9;Manutenzione ordinaria e riparazioni;8;Manutenzione ordinaria e riparazioni di beni immobili;25-07-2016;
619;1;0;"62,83";"62,83";Acquaviva srl Unipersonale;Z671A6954F;SALDO Fatt.n. 1600130/FE  del 29/06/2016 Canone manutenzione refrigeratore 2' sem. 2016;25-07-2016;9375;0;248;1;Spese correnti;3;Acquisto di beni e servizi;2;Acquisto di servizi;99;Altri servizi;999;Altri servizi diversi n.a.c.;25-07-2016;
620;1;0;"3.806,40";"3.806,40";FERRARI GIANLUCA;Z80197DA4D;SALDO Fatt.n. FATTPA 18_16  del 05/07/2016 Compenso per valutazione VIR  impianto distribuzione gas metano;25-07-2016;790;0;168;1;Spese correnti;3;Acquisto di beni e servizi;2;Acquisto di servizi;99;Altri servizi;999;Altri servizi diversi n.a.c.;25-07-2016;
621;1;0;"1.002,30";"1.002,30";ZEFIRO SRL;51564640B5;ACCONTO Fatt.n. 17/PA  del 30/06/2016 Servizio di pulizia edifici comunali mese di giugno 2016;25-07-2016;475;0;53;1;Spese correnti;3;Acquisto di beni e servizi;2;Acquisto di servizi;99;Altri servizi;999;Altri servizi diversi n.a.c.;25-07-2016;
622;1;0;"263,77";"263,77";ZEFIRO SRL;51564640B5;ACCONTO Fatt.n. 17/PA  del 30/06/2016 Servizio di pulizia edifici comunali mese di giugno 2016;25-07-2016;2973;0;54;1;Spese correnti;3;Acquisto di beni e servizi;2;Acquisto di servizi;99;Altri servizi;999;Altri servizi diversi n.a.c.;25-07-2016;
623;1;0;"300,00";"300,00";ZEFIRO SRL;51564640B5;ACCONTO Fatt.n. 17/PA  del 30/06/2016 Servizio di pulizia edifici comunali mese di giugno 2016;25-07-2016;37601;0;55;1;Spese correnti;3;Acquisto di beni e servizi;2;Acquisto di servizi;99;Altri servizi;999;Altri servizi diversi n.a.c.;25-07-2016;
624;1;0;"152,00";"152,00";ZEFIRO SRL;51564640B5;SALDO Fatt.n. 17/PA  del 30/06/2016 Servizio di pulizia edifici comunali mese di giugno 2016;25-07-2016;1400;0;56;1;Spese correnti;3;Acquisto di beni e servizi;2;Acquisto di servizi;9;Manutenzione ordinaria e riparazioni;8;Manutenzione ordinaria e riparazioni di beni immobili;25-07-2016;
625;1;0;"4.751,23";"4.751,23";COOPERATIVA SOCIALE SERVIZI ASSOCIATI;63254549C3;SALDO Fatt.n. D-295  del 30/06/2016 Servizio di trasporto scolastico mese di giugno 2016;25-07-2016;3413;0;61;1;Spese correnti;3;Acquisto di beni e servizi;2;Acquisto di servizi;15;Contratti di servizio pubblico;2;Contratti di servizio di trasporto scolastico;25-07-2016;
626;1;0;"3.098,80";"3.098,80";FERALL S.R.L.;Z4319C6F2B;SALDO Fatt.n. 4  del 11/07/2016 Fornitura e posa contro telai in biblioteca;25-07-2016;11950;0;188;2;Spese in conto capitale;5;Altre spese in conto capitale;99;Altre spese in conto capitale n.a.c.;99;Altre spese in conto capitale n.a.c.;999;Altre spese in conto capitale n.a.c.;25-07-2016;
627;1;0;"9.159,46";"9.159,46";S.E.S.A. SPA;Z11182D6F2;SALDO Fatt.n. 2000406  del 30/06/2016 Servizio smaltimento rifiuti mese di giugno 2016;25-07-2016;5780;0;33;1;Spese correnti;3;Acquisto di beni e servizi;2;Acquisto di servizi;15;Contratti di servizio pubblico;5;Contratti di servizio per il conferimento in discarica dei rifiuti;25-07-2016;
628;1;0;"305,00";"305,00";MANDRUZZATO MARMI S.n.c. di Mandruzzato Bruno  & Andrea;ZDD19D7B2A;SALDO Fatt.n. P02  del 07/07/2016 Fornitura lastre in marmo copri loculo;25-07-2016;5180;0;202;1;Spese correnti;3;Acquisto di beni e servizi;1;Acquisto di beni;2;Altri beni di consumo;999;Altri beni e materiali di consumo n.a.c.;25-07-2016;
629;1;0;"7.508,47";"7.508,47";BARBIN IMPIANTI Srl;Z7E1A37A77;SALDO Fatt.n. 52S  del 12/07/2016 Manutenzione straordinaria spogliatoio impianto sportivo;25-07-2016;11631;0;217;2;Spese in conto capitale;2;Investimenti fissi lordi e acquisto di terreni;1;Beni materiali;9;Beni immobili;16;Impianti sportivi;25-07-2016;
630;1;0;"4.000,00";"4.000,00";PARROCCHIA "NATIVITA' BEATA VERGINE"; ;Acconto del 50% contributo per la gestione della Scuola dell'Infanzia anno 2016 - A.L. SEG. N. 55 DEL 20.07.2016;25-07-2016;2820;0;192;1;Spese correnti;4;Trasferimenti correnti;4;Trasferimenti correnti a Istituzioni Sociali Private;1;Trasferimenti correnti a Istituzioni Sociali Private;1;Trasferimenti correnti a Istituzioni Sociali Private;25-07-2016;
631;1;0;"9.000,00";"9.000,00";PARROCCHIA "NATIVITA' BEATA VERGINE"; ;Liquidazione acconto del 50% contributo per servizio di asilo nido integrato anno 2016 - A.L. SEG N. 56 DEL 20.07.2016;25-07-2016;6180;0;190;1;Spese correnti;4;Trasferimenti correnti;4;Trasferimenti correnti a Istituzioni Sociali Private;1;Trasferimenti correnti a Istituzioni Sociali Private;1;Trasferimenti correnti a Istituzioni Sociali Private;25-07-2016;
632;1;0;"1.145,50";"1.145,50";ISTITUTO COMPRENSIVO LOZZO ATESTINO; ;Contributo per acquisto materiale di pulizia anno scolastico 2016/2017 - A.L. SEG. N. 57 DEL 20.07.2016;25-07-2016;3425;0;239;1;Spese correnti;4;Trasferimenti correnti;1;Trasferimenti correnti a Amministrazioni Pubbliche;1;Trasferimenti correnti a Amministrazioni Centrali;2;Trasferimenti correnti a Ministero dell'Istruzione - Istituzioni scolastiche;25-07-2016;
633;1;0;"5.302,50";"5.302,50";CONSORZIO BIBLIOTECHE PADOVANE ASSOCIATE; ;Servizio di gestione della biblioteca comunale 1' SEMESTRE 2016 - A.L. SEG N. 53 DEL 20.07.2016;25-07-2016;3760;0;25;1;Spese correnti;3;Acquisto di beni e servizi;2;Acquisto di servizi;99;Altri servizi;999;Altri servizi diversi n.a.c.;25-07-2016;
634;1;0;"206,40";"206,40";BAR RISTORANTE DA PAOLO;Z491052554;SALDO Fatt.n. 00008/04  del 20/07/2016 Servizio sostitutivo mensa dipendenti mese di giugno 2016;25-07-2016;9375;0;6;1;Spese correnti;3;Acquisto di beni e servizi;2;Acquisto di servizi;99;Altri servizi;999;Altri servizi diversi n.a.c.;25-07-2016;
635;1;0;"320,56";"320,56";MyO srl;Z101A7238F;SALDO Fatt.n. 2040/160018585  del 30/06/2016 Fornitura carta per stampanti e fotocopiatori;25-07-2016;4753;0;249;1;Spese correnti;3;Acquisto di beni e servizi;1;Acquisto di beni;2;Altri beni di consumo;1;"Carta, cancelleria e stampati";25-07-2016;
636;1;0;"806,25";"806,25";CASA DI RIPOSO "A. SIMIONATI"; ;SALDO Fatt.n. 77/E  del 30/06/2016 Quota retta ricovero R.R. mese di giugno 2016;28-07-2016;6875;0;205;1;Spese correnti;3;Acquisto di beni e servizi;2;Acquisto di servizi;99;Altri servizi;999;Altri servizi diversi n.a.c.;28-07-2016;
637;1;0;"4.754,50";"4.754,50";ISTITUTO COMPRENSIVO LOZZO ATESTINO; ;Contributo ordinario per acquisto materiale didattico anno scolastico 2015/2016 (L. n. 26/1996) - a.l. SEG. n.  58 del 20.07.2016;28-07-2016;3425;0;238;1;Spese correnti;4;Trasferimenti correnti;1;Trasferimenti correnti a Amministrazioni Pubbliche;1;Trasferimenti correnti a Amministrazioni Centrali;2;Trasferimenti correnti a Ministero dell'Istruzione - Istituzioni scolastiche;28-07-2016;
638;1;0;"1.699,37";"3.414,54";CODESS SOCIALE;53979365B3;ACCONTO Fatt.n. 3756/PA  del 19/07/2016 Servizio di assistenza sociale e domiciliare mese di giugno 2016;28-07-2016;6980;0;43;1;Spese correnti;3;Acquisto di beni e servizi;2;Acquisto di servizi;15;Contratti di servizio pubblico;9;Contratti di servizio di assistenza sociale domiciliare;28-07-2016;
638;2;0;"1.715,17";"3.414,54";CODESS SOCIALE;53979365B3;ACCONTO Fatt.n. 3453/PA  del 04/07/2016 Servizio di assistenza sociale e domiciliare mese di maggio 2016;28-07-2016;6980;0;43;1;Spese correnti;3;Acquisto di beni e servizi;2;Acquisto di servizi;15;Contratti di servizio pubblico;9;Contratti di servizio di assistenza sociale domiciliare;28-07-2016;
639;1;0;"2.457,00";"5.187,00";CODESS SOCIALE;53979365B3;SALDO Fatt.n. 3756/PA  del 19/07/2016 Servizio di assistenza sociale e domiciliare mese di giugno 2016;28-07-2016;6990;0;44;1;Spese correnti;3;Acquisto di beni e servizi;2;Acquisto di servizi;15;Contratti di servizio pubblico;9;Contratti di servizio di assistenza sociale domiciliare;28-07-2016;
639;2;0;"2.730,00";"5.187,00";CODESS SOCIALE;53979365B3;SALDO Fatt.n. 3453/PA  del 04/07/2016 Servizio di assistenza sociale e domiciliare mese di maggio 2016;28-07-2016;6990;0;44;1;Spese correnti;3;Acquisto di beni e servizi;2;Acquisto di servizi;15;Contratti di servizio pubblico;9;Contratti di servizio di assistenza sociale domiciliare;28-07-2016;
640;1;0;"240,80";"240,80";Sodexo Italia Spa;64630250F4;SALDO Fatt.n. 7400026503  del 30/06/2016 Fornitura pasti per alunni scuola primaria mese di giugno 2016;28-07-2016;3406;0;32;1;Spese correnti;3;Acquisto di beni e servizi;2;Acquisto di servizi;15;Contratti di servizio pubblico;6;Contratti di servizio per le mense scolastiche;28-07-2016;
641;1;0;"4.046,41";"4.046,41";Sodexo Italia Spa;64630250F4;SALDO Fatt.n. 7400026502  del 30/06/2016 Fornitura pasti per alunni scuola dell'infanzia mese di giugno 2016;28-07-2016;3404;0;24;1;Spese correnti;3;Acquisto di beni e servizi;2;Acquisto di servizi;15;Contratti di servizio pubblico;6;Contratti di servizio per le mense scolastiche;28-07-2016;
642;1;0;"225,40";"225,40";POSTE ITALIANE SPA;Z961438A4F;SALDO Fatt.n. 8716178745  del 06/07/2016 Servizio di affrancatura mese di maggio 2016;28-07-2016;4800;0;166;1;Spese correnti;3;Acquisto di beni e servizi;2;Acquisto di servizi;16;Servizi amministrativi;2;Spese postali;28-07-2016;
643;1;0;"323,87";"323,87";COMUNE DI TEOLO; ;Fornitura libri di testo per gli alunni residenti in Vo' e frequentanti le scuole primarie di Teolo nell'anno scolastico 2015/2016 - a.l. SEG. 64 DEL 27.07.2016;28-07-2016;2950;0;263;1;Spese correnti;3;Acquisto di beni e servizi;1;Acquisto di beni;2;Altri beni di consumo;999;Altri beni e materiali di consumo n.a.c.;28-07-2016;
644;1;0;"200,00";"200,00";OMESSO NOMINATIVO NEL RISPETTO DELLA NORMATIVA SULLA PROTEZIONE DATI PERSONALI; ;Contributo economico straordinario ANNO 2016 -  A.L. SEG. N. 63 DEL 21.07.2016;28-07-2016;6935;0;259;1;Spese correnti;4;Trasferimenti correnti;2;Trasferimenti correnti a Famiglie;5;Altri trasferimenti a famiglie;999;Altri trasferimenti a famiglie n.a.c.;28-07-2016;
645;1;0;"12.887,50";"12.887,50";Cabi Broker Di Assicurazioni Srl;Z8A1AB8F8C;Premi assicurativi relativi alle polizze in scadenza il 31 luglio 2016 - A.L. UTC N. 89 DEL 25.07.2016;28-07-2016;477;0;261;1;Spese correnti;10;Altre spese correnti;4;Premi di assicurazione;99;Altri premi di assicurazione n.a.c.;999;Altri premi di assicurazione n.a.c.;28-07-2016;
646;1;0;"2.300,00";"2.300,00";U.S. COLLI EUGANEI A.S.D.; ;Acconto 50% contributo economico anno 2016 - a.l. seg. n. 65 del 28.07.2016;28-07-2016;6600;0;264;1;Spese correnti;4;Trasferimenti correnti;4;Trasferimenti correnti a Istituzioni Sociali Private;1;Trasferimenti correnti a Istituzioni Sociali Private;1;Trasferimenti correnti a Istituzioni Sociali Private;28-07-2016;
647;1;0;"181,69";"181,69";Illumia S.p.A.;Z0E14167CF;SALDO Fatt.n. 11766-PE  del 16/06/2016 Fornitura energia elettrica utenza magazzino periodo aprile / maggio 2016  -  Provv. 12;29-07-2016;78701;0;102;1;Spese correnti;3;Acquisto di beni e servizi;2;Acquisto di servizi;5;Utenze e canoni;4;Energia elettrica;29-07-2016;
648;1;0;"382,58";"382,58";Illumia S.p.A.;Z0E14167CF;SALDO Fatt.n. 11758-PE  del 16/06/2016 Fornitura energia elettrica utenza edificio Piazzetta Martiri (POD IT001E04020235) mese di maggio 2016   -   Provv.  12;29-07-2016;1405;0;104;1;Spese correnti;3;Acquisto di beni e servizi;2;Acquisto di servizi;5;Utenze e canoni;4;Energia elettrica;29-07-2016;
649;1;0;"119,66";"313,84";Illumia S.p.A.;Z0E14167CF;SALDO Fatt.n. 11761-PE  del 16/06/2016 Fornitura energia elettrica utenza impianto sportivo Zovon (POD IT001E04020358) mese di maggio 2016  -  Provv. 12;29-07-2016;64981;0;101;1;Spese correnti;3;Acquisto di beni e servizi;2;Acquisto di servizi;5;Utenze e canoni;4;Energia elettrica;29-07-2016;
649;2;0;"194,18";"313,84";Illumia S.p.A.;Z0E14167CF;SALDO Fatt.n. 11754-PE  del 16/06/2016 Fornitura energia elettrica utenza impianto sportivo (POD IT001E04020221) mese di maggio 2016  -  Provv. 12;29-07-2016;64981;0;101;1;Spese correnti;3;Acquisto di beni e servizi;2;Acquisto di servizi;5;Utenze e canoni;4;Energia elettrica;29-07-2016;
650;1;0;"389,57";"389,57";Illumia S.p.A.;Z0E14167CF;SALDO Fatt.n. 11762-PE  del 16/06/2016 Fornitura energia elettrica utenza Sede Municipale mese di maggio 2016  -  Provv.  12;29-07-2016;4751;0;96;1;Spese correnti;3;Acquisto di beni e servizi;2;Acquisto di servizi;5;Utenze e canoni;4;Energia elettrica;29-07-2016;
651;1;0;"76,20";"180,46";Illumia S.p.A.;Z0E14167CF;SALDO Fatt.n. 11750-PE  del 16/06/2016 Fornitura energia elettrica utenza ex scuola Vo' Vecchio (POD IT001E04020269) periodo aprile / maggio 2016  -  Provv.  12;29-07-2016;1330;0;100;1;Spese correnti;3;Acquisto di beni e servizi;2;Acquisto di servizi;5;Utenze e canoni;4;Energia elettrica;29-07-2016;
651;2;0;"104,26";"180,46";Illumia S.p.A.;Z0E14167CF;SALDO Fatt.n. 11752-PE  del 16/06/2016 Fornitura energia elettrica utenza ex scuola Zovon (POD IT001E04020354) periodo aprile / maggio 2016  -  Provv. 12;29-07-2016;1330;0;100;1;Spese correnti;3;Acquisto di beni e servizi;2;Acquisto di servizi;5;Utenze e canoni;4;Energia elettrica;29-07-2016;
652;1;0;"44,29";"454,39";Illumia S.p.A.;Z0E14167CF;SALDO Fatt.n. 11760-PE  del 16/06/2016 Fornitura energia elettrica utenza Villa Venier (POD IT001E35511782) periodo aprile / maggio 2016 - Provv. 12;29-07-2016;1312;0;103;1;Spese correnti;3;Acquisto di beni e servizi;2;Acquisto di servizi;5;Utenze e canoni;4;Energia elettrica;29-07-2016;
652;2;0;"44,29";"454,39";Illumia S.p.A.;Z0E14167CF;SALDO Fatt.n. 11756-PE  del 16/06/2016 Fornitura energia elettrica utenza Villa Venier (POD IT001E35511792) periodo aprile / maggio 2016 - Provv.  12;29-07-2016;1312;0;103;1;Spese correnti;3;Acquisto di beni e servizi;2;Acquisto di servizi;5;Utenze e canoni;4;Energia elettrica;29-07-2016;
652;3;0;"97,53";"454,39";Illumia S.p.A.;Z0E14167CF;SALDO Fatt.n. 11763-PE  del 16/06/2016 Fornitura energia elettrica utenza Villa Venier (POD IT001E04020273) periodo aprile / maggio 2016  -  Provv. 12;29-07-2016;1312;0;103;1;Spese correnti;3;Acquisto di beni e servizi;2;Acquisto di servizi;5;Utenze e canoni;4;Energia elettrica;29-07-2016;
652;4;0;"97,53";"454,39";Illumia S.p.A.;Z0E14167CF;SALDO Fatt.n. 11755-PE  del 16/06/2016 Fornitura energia elettrica utenza Villa Venier (POD IT001E04020277) periodo aprile / maggio 2016  -  Provv.  12;29-07-2016;1312;0;103;1;Spese correnti;3;Acquisto di beni e servizi;2;Acquisto di servizi;5;Utenze e canoni;4;Energia elettrica;29-07-2016;
652;5;0;"170,75";"454,39";Illumia S.p.A.;Z0E14167CF;SALDO Fatt.n. 11759-PE  del 16/06/2016 Fornitura energia elettrica utenza Villa Venier (POD IT001E34674161) mese di maggio 2015  -  Provv. 12;29-07-2016;1312;0;103;1;Spese correnti;3;Acquisto di beni e servizi;2;Acquisto di servizi;5;Utenze e canoni;4;Energia elettrica;29-07-2016;
653;1;0;"214,00";"214,00";Illumia S.p.A.;Z0E14167CF;ACCONTO Fatt.n. 11751-PE  del 16/06/2016 Fornitura energia elettrica utenza Polo Scolastico mese di maggio 2016  -  Provv. 12;29-07-2016;28001;0;97;1;Spese correnti;3;Acquisto di beni e servizi;2;Acquisto di servizi;5;Utenze e canoni;4;Energia elettrica;29-07-2016;
654;1;0;"214,00";"214,00";Illumia S.p.A.;Z0E14167CF;ACCONTO Fatt.n. 11751-PE  del 16/06/2016 Fornitura energia elettrica utenza Polo Scolastico mese di maggio 2016  -  Provv. 12;29-07-2016;29701;0;98;1;Spese correnti;3;Acquisto di beni e servizi;2;Acquisto di servizi;5;Utenze e canoni;4;Energia elettrica;29-07-2016;
655;1;0;"215,10";"215,10";Illumia S.p.A.;Z0E14167CF;SALDO Fatt.n. 11751-PE  del 16/06/2016 Fornitura energia elettrica utenza Polo Scolastico mese di maggio 2016  -  Provv.  12;29-07-2016;31801;0;99;1;Spese correnti;3;Acquisto di beni e servizi;2;Acquisto di servizi;5;Utenze e canoni;4;Energia elettrica;29-07-2016;
656;1;0;"90,08";"6.535,72";Illumia S.p.A.;Z0E14167CF;SALDO Fatt.n. 11764-PE  del 16/06/2016 Fornitura energia elettrica utenza illuminazione pubblica (POD IT001E04199191) mese di maggio 2016  -  Provv.   12;29-07-2016;7420;0;105;1;Spese correnti;3;Acquisto di beni e servizi;2;Acquisto di servizi;5;Utenze e canoni;4;Energia elettrica;29-07-2016;
656;2;0;"102,92";"6.535,72";Illumia S.p.A.;Z0E14167CF;SALDO Fatt.n. 11757-PE  del 16/06/2016 Fornitura energia elettrica utenza ill. pubblica (POD IT001E04199192) periodo aprile / maggio 2016  -  Provv. 12;29-07-2016;7420;0;105;1;Spese correnti;3;Acquisto di beni e servizi;2;Acquisto di servizi;5;Utenze e canoni;4;Energia elettrica;29-07-2016;
656;3;0;"111,54";"6.535,72";Illumia S.p.A.;Z0E14167CF;SALDO Fatt.n. 11749-PE  del 16/06/2016  - Fornitura energia elettrica utenza ill. pubblica  (POD IT001E32268714) mese di maggio 2016  - Provv. 12;29-07-2016;7420;0;105;1;Spese correnti;3;Acquisto di beni e servizi;2;Acquisto di servizi;5;Utenze e canoni;4;Energia elettrica;29-07-2016;
656;4;0;"148,91";"6.535,72";Illumia S.p.A.;Z0E14167CF;SALDO Fatt.n. 11753-PE  del 16/06/2016 Fornitura energia elettrica utenza lottizzazione Canaletto (POD IT001E33625246) periodo aprile / maggio 2016  -  Provv. 12;29-07-2016;7420;0;105;1;Spese correnti;3;Acquisto di beni e servizi;2;Acquisto di servizi;5;Utenze e canoni;4;Energia elettrica;29-07-2016;
656;5;0;"264,53";"6.535,72";Illumia S.p.A.;Z0E14167CF;SALDO Fatt.n. 11765-PE  del 16/06/2016 Fornitura energia elettrica torretta Piazzetta Spolverato mese di maggio 2016  -  Provv.  12;29-07-2016;7420;0;105;1;Spese correnti;3;Acquisto di beni e servizi;2;Acquisto di servizi;5;Utenze e canoni;4;Energia elettrica;29-07-2016;
656;6;0;"5.817,74";"6.535,72";Illumia S.p.A.;Z0E14167CF;SALDO Fatt.n. 11748-PE  del 16/06/2016 Fornitura energia elettrica utenze illuminazione pubblica periodo aprile / maggio 2016  -  Provv.  12;29-07-2016;7420;0;105;1;Spese correnti;3;Acquisto di beni e servizi;2;Acquisto di servizi;5;Utenze e canoni;4;Energia elettrica;29-07-2016;
657;1;0;"208,17";"208,17";ENEL SOLE Srl;ZEE1381BCC;SALDO Fatt.n. 1630031292  del 30/06/2016 Gestione impianti di illuminazione pubblica di proprieta' Enel Sole mese di giugno 2016;29-07-2016;7420;0;42;1;Spese correnti;3;Acquisto di beni e servizi;2;Acquisto di servizi;5;Utenze e canoni;4;Energia elettrica;29-07-2016;
658;1;0;"540,00";"540,00";EDISON ENERGIA SPA;55821442F4;ACCONTO Fatt.n. 220190002171  del 29/06/2016 Conguaglio IVA su fatture relative alla fornitura di energia elettrica utenza Polo Scolastico periodo 2014/2015;29-07-2016;29701;0;401;1;Spese correnti;3;Acquisto di beni e servizi;2;Acquisto di servizi;5;Utenze e canoni;4;Energia elettrica;29-07-2016;
659;1;0;"1.128,87";"1.128,87";EDISON ENERGIA SPA;55821442F4;ACCONTO Fatt.n. 220190002171  del 29/06/2016 Conguaglio IVA su fatture relative alla fornitura di energia elettrica utenza Polo Scolastico periodo 2014/2015;29-07-2016;31801;0;402;1;Spese correnti;3;Acquisto di beni e servizi;2;Acquisto di servizi;5;Utenze e canoni;4;Energia elettrica;29-07-2016;
660;1;0;"720,14";"720,14";EDISON ENERGIA SPA;55821442F4;SALDO Fatt.n. 220190002171  del 29/06/2016 Conguaglio IVA su fatture relative alla fornitura di energia elettrica utenza Polo Scolastico periodo 2014/2015;29-07-2016;28001;0;400;1;Spese correnti;3;Acquisto di beni e servizi;2;Acquisto di servizi;5;Utenze e canoni;4;Energia elettrica;29-07-2016;
661;1;0;"88,28";"88,28";VODAFONE OMNITEL B.V.;ZD11381BD3;SALDO Fatt.n. AG10350220  del 13/07/2016 Spese contratto telefonia mobile periodo dal 10.05.2016 al 08.07.2016;29-07-2016;4751;0;88;1;Spese correnti;3;Acquisto di beni e servizi;2;Acquisto di servizi;5;Utenze e canoni;2;Telefonia mobile;29-07-2016;
662;1;0;"9,76";"9,76";E.ON Energia S.p.a.;Z7113FE6B2;SALDO Fatt.n. 40006218  del 04/07/2016 Fornitura gas naturale utenza edificio Piazzetta Martiri periodo dal 28.04.2016 al 25.05.2016;01-08-2016;1405;0;90;1;Spese correnti;3;Acquisto di beni e servizi;2;Acquisto di servizi;5;Utenze e canoni;6;Gas;01-08-2016;
663;1;0;"36,42";"170,60";E.ON Energia S.p.a.;Z7113FE6B2;SALDO Fatt.n. 40006216  del 04/07/2016 Fornitura gas naturale utenza Sede Municipale (contatore 1545006563) mese di maggio 2016;01-08-2016;4751;0;91;1;Spese correnti;3;Acquisto di beni e servizi;2;Acquisto di servizi;5;Utenze e canoni;6;Gas;01-08-2016;
663;2;0;"134,18";"170,60";E.ON Energia S.p.a.;Z7113FE6B2;SALDO Fatt.n. 40006717  del 04/07/2016 Fornitura gas naturale utenza Sede Municipale (contatore 5942685) periodo dal 12/02/2016 al 04/05/2016;01-08-2016;4751;0;91;1;Spese correnti;3;Acquisto di beni e servizi;2;Acquisto di servizi;5;Utenze e canoni;6;Gas;01-08-2016;
664;1;0;"1.403,84";"1.403,84";E.ON Energia S.p.a.;Z7113FE6B2;SALDO Fatt.n. 40006264  del 04/07/2016 Fornitura gas naturale utenza Villa Venier conguaglio periodo dal 11/07/2015 al 02/05/2016;01-08-2016;1312;0;95;1;Spese correnti;3;Acquisto di beni e servizi;2;Acquisto di servizi;5;Utenze e canoni;6;Gas;01-08-2016;
665;1;0;"35,42";"35,42";E.ON Energia S.p.a.;Z711FE6B2;SALDO Fatt.n. 40006217  del 04/07/2016 Fornitura gas naturale utenza Polo Scolastico mese di maggio 2016;01-08-2016;28001;0;92;1;Spese correnti;3;Acquisto di beni e servizi;2;Acquisto di servizi;5;Utenze e canoni;6;Gas;01-08-2016;
668;1;0;"1.774,75";"1.774,75";TREVISAN VANESSA; ;Indennita' di carica Sindaco luglio 2016;02-08-2016;10;0;2;1;Spese correnti;3;Acquisto di beni e servizi;2;Acquisto di servizi;1;Organi e incarichi istituzionali dell'amministrazione;1;Organi istituzionali dell'amministrazione - Indennità;02-08-2016;
669;1;0;"133,11";"133,11";LAZZARETTO ROBERTA; ;Indennita' di carica  assessore luglio 2016;02-08-2016;10;0;58;1;Spese correnti;3;Acquisto di beni e servizi;2;Acquisto di servizi;1;Organi e incarichi istituzionali dell'amministrazione;1;Organi istituzionali dell'amministrazione - Indennità;02-08-2016;
670;1;0;"177,48";"177,48";CALAON SIMONE; ;Indennita' di carica Vice-Sindaco  luglio  2016;02-08-2016;10;0;3;1;Spese correnti;3;Acquisto di beni e servizi;2;Acquisto di servizi;1;Organi e incarichi istituzionali dell'amministrazione;1;Organi istituzionali dell'amministrazione - Indennità;02-08-2016;
671;1;0;"266,21";"266,21";SANTIMARIA ANDREA; ;Indennita' di carica Assessore luglio 2016;02-08-2016;10;0;5;1;Spese correnti;3;Acquisto di beni e servizi;2;Acquisto di servizi;1;Organi e incarichi istituzionali dell'amministrazione;1;Organi istituzionali dell'amministrazione - Indennità;02-08-2016;
672;1;0;"266,21";"266,21";ZAVATTIERO AGOSTINO; ;Indennita' di carica assessore mese di luglio 2016;02-08-2016;10;0;59;1;Spese correnti;3;Acquisto di beni e servizi;2;Acquisto di servizi;1;Organi e incarichi istituzionali dell'amministrazione;1;Organi istituzionali dell'amministrazione - Indennità;02-08-2016;
675;1;0;"2.500,00";"2.500,00";Cabi Broker Di Assicurazioni Srl;Z8A1AB8F8C;Stipula polizza assicurativa Responsabilità Civile Patrimoniale conto terzi "colpa lieve"  - Atto LIQ UTC n. 90 del 02.08.2016;02-08-2016;477;0;273;1;Spese correnti;10;Altre spese correnti;4;Premi di assicurazione;99;Altri premi di assicurazione n.a.c.;999;Altri premi di assicurazione n.a.c.;02-08-2016;
676;1;0;"90,75";"90,75";VODAFONE OMNITEL B.V.;ZD11381BD3;Spese per contratto telefonia mobile - ricarica Codice Borsellino 348886;02-08-2016;4751;0;88;1;Spese correnti;3;Acquisto di beni e servizi;2;Acquisto di servizi;5;Utenze e canoni;2;Telefonia mobile;02-08-2016;
677;1;0;"110,01";"224,06";Illumia S.p.A.;Z0E14167CF;SALDO Fatt.n. 13321-PE  del 19/07/2016 Fornitura energia elettrica utenza impianto sportivo (POD IT001E04020221) mese di giugno 2016;04-08-2016;64981;0;101;1;Spese correnti;3;Acquisto di beni e servizi;2;Acquisto di servizi;5;Utenze e canoni;4;Energia elettrica;04-08-2016;
677;2;0;"114,05";"224,06";Illumia S.p.A.;Z0E14167CF;SALDO Fatt.n. 13324-PE  del 19/07/2016 Fornitura energia elettrica utenza impianto sportivo Zovon (POD IT001E04020358) mese di giugno 2016;04-08-2016;64981;0;101;1;Spese correnti;3;Acquisto di beni e servizi;2;Acquisto di servizi;5;Utenze e canoni;4;Energia elettrica;04-08-2016;
678;1;0;"87,01";"2.403,27";Illumia S.p.A.;Z0E14167CF;SALDO Fatt.n. 13326-PE  del 19/07/2016 Fornitura energia elettrica utenza illuminazione pubblica (POD IT001E04199191) mese di giugno 2016;04-08-2016;7420;0;105;1;Spese correnti;3;Acquisto di beni e servizi;2;Acquisto di servizi;5;Utenze e canoni;4;Energia elettrica;04-08-2016;
678;2;0;"170,74";"2.403,27";Illumia S.p.A.;Z0E14167CF;SALDO Fatt.n. 13327-PE  del 19/07/2016 Fornitura energia elettrica utenza Piazzetta Spolverato (POD IT001E35512473) mese di giugno 2016;04-08-2016;7420;0;105;1;Spese correnti;3;Acquisto di beni e servizi;2;Acquisto di servizi;5;Utenze e canoni;4;Energia elettrica;04-08-2016;
678;3;0;"2.145,52";"2.403,27";Illumia S.p.A.;Z0E14167CF;SALDO Fatt.n. 13318-PE  del 19/07/2016 Fornitura energia elettrica utenze illuminazione pubblica mese di giugno 2016;04-08-2016;7420;0;105;1;Spese correnti;3;Acquisto di beni e servizi;2;Acquisto di servizi;5;Utenze e canoni;4;Energia elettrica;04-08-2016;
679;1;0;"271,93";"271,93";Illumia S.p.A.;Z0E14167CF;SALDO Fatt.n. 13325-PE  del 19/07/2016 Fornitura energia elettrica utenza sede municipale mese di giugno 2016;04-08-2016;4751;0;96;1;Spese correnti;3;Acquisto di beni e servizi;2;Acquisto di servizi;5;Utenze e canoni;4;Energia elettrica;04-08-2016;
680;1;0;"347,22";"347,22";Illumia S.p.A.;Z0E14167CF;SALDO Fatt.n. 13322-PE  del 19/07/2016 Fornitura energia elettrica utenza edificio Piazzetta Martiri mese di giugno 2016;04-08-2016;1405;0;104;1;Spese correnti;3;Acquisto di beni e servizi;2;Acquisto di servizi;5;Utenze e canoni;4;Energia elettrica;04-08-2016;
681;1;0;"165,43";"165,43";Illumia S.p.A.;Z0E14167CF;SALDO Fatt.n. 13323-PE  del 19/07/2016 Fornitura energia elettrica utenza Villa Venier (POD IT001E34674161) mese di giugno 2016;04-08-2016;1312;0;103;1;Spese correnti;3;Acquisto di beni e servizi;2;Acquisto di servizi;5;Utenze e canoni;4;Energia elettrica;04-08-2016;
682;1;0;"170,00";"170,00";Illumia S.p.A.;Z0E14167CF;ACCONTO Fatt.n. 13320-PE  del 19/07/2016 Fornitura energia elettrica utenza Polo Scolastico mese di giugno 2016;04-08-2016;28001;0;97;1;Spese correnti;3;Acquisto di beni e servizi;2;Acquisto di servizi;5;Utenze e canoni;4;Energia elettrica;04-08-2016;
683;1;0;"170,00";"170,00";Illumia S.p.A.;Z0E14167CF;ACCONTO Fatt.n. 13320-PE  del 19/07/2016 Fornitura energia elettrica utenza Polo Scolastico mese di giugno 2016;04-08-2016;29701;0;98;1;Spese correnti;3;Acquisto di beni e servizi;2;Acquisto di servizi;5;Utenze e canoni;4;Energia elettrica;04-08-2016;
684;1;0;"175,52";"175,52";Illumia S.p.A.;Z0E14167CF;SALDO Fatt.n. 13320-PE  del 19/07/2016 Fornitura energia elettrica utenza Polo Scolastico mese di giugno 2016;04-08-2016;31801;0;99;1;Spese correnti;3;Acquisto di beni e servizi;2;Acquisto di servizi;5;Utenze e canoni;4;Energia elettrica;04-08-2016;
685;1;0;"104,80";"677,19";TELECOM ITALIA SPA;ZE31381BC6;SALDO Fatt.n. 8E00587601  del 07/06/2016 Spese telefoniche utenza Sede Municipale (0499940027) 4' bimestre 2016;04-08-2016;4751;0;82;1;Spese correnti;3;Acquisto di beni e servizi;2;Acquisto di servizi;5;Utenze e canoni;1;Telefonia fissa;04-08-2016;
685;2;0;"213,15";"677,19";TELECOM ITALIA SPA;ZE31381BC6;SALDO Fatt.n. 8E00585211  del 07/06/2016 Spese telefoniche utenza Sede Municipale (0499940666)   4' bimestre 2016;04-08-2016;4751;0;82;1;Spese correnti;3;Acquisto di beni e servizi;2;Acquisto di servizi;5;Utenze e canoni;1;Telefonia fissa;04-08-2016;
685;3;0;"359,24";"677,19";TELECOM ITALIA SPA;ZE31381BC6;SALDO Fatt.n. 8E00591360  del 07/06/2016 Spese telefoniche utenza Sede Municipale (0499940677) 4' bimestre 2016;04-08-2016;4751;0;82;1;Spese correnti;3;Acquisto di beni e servizi;2;Acquisto di servizi;5;Utenze e canoni;1;Telefonia fissa;04-08-2016;
686;1;0;"111,76";"111,76";TELECOM ITALIA SPA;ZE31381BC6;SALDO Fatt.n. 8E00585941  del 07/06/2016 Spese telefoniche utenza Biblioteca - 4' bimestre 2016;04-08-2016;3761;0;87;1;Spese correnti;3;Acquisto di beni e servizi;2;Acquisto di servizi;5;Utenze e canoni;1;Telefonia fissa;04-08-2016;
687;1;0;"74,05";"74,05";TELECOM ITALIA SPA;ZE31381BC6;SALDO Fatt.n. 8E00593255  del 07/06/2016 Spese telefoniche utenza Scuola dell'Infanzia - 4' bimestre 2016;04-08-2016;28001;0;83;1;Spese correnti;3;Acquisto di beni e servizi;2;Acquisto di servizi;5;Utenze e canoni;1;Telefonia fissa;04-08-2016;
688;1;0;"119,05";"119,05";TELECOM ITALIA SPA;ZE31381BC6;SALDO Fatt.n. 8E00585177  del 07/06/2016 Spese telefoniche utenza Scuola Primaria - 4' bimestre 2016;04-08-2016;29701;0;84;1;Spese correnti;3;Acquisto di beni e servizi;2;Acquisto di servizi;5;Utenze e canoni;1;Telefonia fissa;04-08-2016;
689;1;0;"60,84";"60,84";TELECOM ITALIA SPA;ZE31381BC6;SALDO Fatt.n. 8E00591781  del 07/06/2016 Spese telefoniche utenza Villa Venier - 4' bimestre 2016;04-08-2016;1312;0;86;1;Spese correnti;3;Acquisto di beni e servizi;2;Acquisto di servizi;5;Utenze e canoni;1;Telefonia fissa;04-08-2016;
690;1;0;"200,76";"200,76";TELECOM ITALIA SPA;ZE31381BC6;SALDO Fatt.n. 8E00589655  del 07/06/2016 Spese telefoniche utenza Scuola Secondaria di 1' grado -  4' bimestre 2016;04-08-2016;31801;0;85;1;Spese correnti;3;Acquisto di beni e servizi;2;Acquisto di servizi;5;Utenze e canoni;1;Telefonia fissa;04-08-2016;
691;1;0;"208,17";"208,17";ENEL SOLE Srl;ZEE1381BCC;SALDO Fatt.n. 1630037572  del 31/07/2016 Spese di gestione imp. illuminazione pubblica  di proprieta' Enel Sole srl mese di luglio 2016;04-08-2016;7420;0;42;1;Spese correnti;3;Acquisto di beni e servizi;2;Acquisto di servizi;5;Utenze e canoni;4;Energia elettrica;04-08-2016;
693;1;0;"31.627,92";"31.627,92";CASSA DEPOSITI E PRESTITI SPA; ;Quota interessi dei mutui in ammortamento rata 30.06.2016  -  Provv. 22;05-08-2016;7450;0;283;1;Spese correnti;7;Interessi passivi;5;Interessi su Mutui e altri finanziamenti a medio lungo termine;4;Interessi passivi su finanziamenti a medio lungo termine a Imprese;3;Interessi passivi a Cassa Depositi e Prestiti SPA su mutui e altri finanziamenti a medio lungo termine;05-08-2016;
694;1;0;"1.384,55";"1.384,55";CASSA DEPOSITI E PRESTITI SPA; ;Quota interessi dei mutui in ammortamento rata 30.06.2016  -  Provv. 22;05-08-2016;5685;0;284;1;Spese correnti;7;Interessi passivi;5;Interessi su Mutui e altri finanziamenti a medio lungo termine;4;Interessi passivi su finanziamenti a medio lungo termine a Imprese;999;Interessi passivi a altre imprese su finanziamenti a medio lungo termine;05-08-2016;
695;1;0;"4.653,81";"4.653,81";CASSA DEPOSITI E PRESTITI SPA; ;Quota interessi per mutui in ammortamento rata 30.06.2016  -  Provv. 22;05-08-2016;3285;0;285;1;Spese correnti;7;Interessi passivi;5;Interessi su Mutui e altri finanziamenti a medio lungo termine;4;Interessi passivi su finanziamenti a medio lungo termine a Imprese;3;Interessi passivi a Cassa Depositi e Prestiti SPA su mutui e altri finanziamenti a medio lungo termine;05-08-2016;
696;1;0;"48,00";"48,00";ULSS N. 17; ;SALDO Fatt.n. KW  201600000034  del 07/07/2016 Installazione microchip a n. 8 cani randagi catturati nel territorio comunale;08-08-2016;5037;0;277;1;Spese correnti;3;Acquisto di beni e servizi;2;Acquisto di servizi;15;Contratti di servizio pubblico;11;Contratti di servizio per la lotta al randagismo;08-08-2016;
697;1;0;"64,42";"64,42";Acquaviva srl Unipersonale;Z671A6954F;SALDO Fatt.n. 1600272/FE  del 29/07/2016 Canone manutenzione refrigeratore 2' semestre 2016;08-08-2016;9375;0;248;1;Spese correnti;3;Acquisto di beni e servizi;2;Acquisto di servizi;99;Altri servizi;999;Altri servizi diversi n.a.c.;08-08-2016;
698;1;0;"874,80";"874,80";TESORERIA PROVINCIALE DELLO STATO - RISCOSSIONE TRIBUTI; ;Liquidazione IVA a debito 2' trimestre 2016 - cod. 615E;08-08-2016;9240;0;289;1;Spese correnti;10;Altre spese correnti;3;Versamenti IVA a debito;1;Versamenti IVA a debito per le gestioni commerciali;1;Versamenti IVA a debito per le gestioni commerciali;08-08-2016;
732;1;0;"13.761,04";"13.761,04";DE VIZIA TRANSFER S.P.A.;Z941520100;SALDO Fatt.n. V3-31041  del 31/07/2016 Raccolta e trasporto RSU mese di luglio 2016;09-08-2016;5780;0;215;1;Spese correnti;3;Acquisto di beni e servizi;2;Acquisto di servizi;15;Contratti di servizio pubblico;4;Contratti di servizio per la raccolta rifiuti;09-08-2016;
733;1;0;"6.268,97";"6.268,97";TONIOLO S.R.L.;Z7819C9CD4;SALDO Fatt.n. FATTPA 8_16  del 05/07/2016 Sistemazione area esterna polo scolastico;09-08-2016;10350;0;189;2;Spese in conto capitale;2;Investimenti fissi lordi e acquisto di terreni;1;Beni materiali;9;Beni immobili;3;Fabbricati ad uso scolastico;09-08-2016;
734;1;0;"152,00";"152,00";ZEFIRO SRL;51564640B5;ACCONTO Fatt.n. 25/PA  del 31/07/2016 Servizio di pulizia edifici comunali MESE di LUGLIO 2016;09-08-2016;1400;0;236;1;Spese correnti;3;Acquisto di beni e servizi;2;Acquisto di servizi;9;Manutenzione ordinaria e riparazioni;8;Manutenzione ordinaria e riparazioni di beni immobili;09-08-2016;
735;1;0;"300,00";"300,00";ZEFIRO SRL;51564640B5;ACCONTO Fatt.n. 25/PA  del 31/07/2016 Servizio di pulizia edifici comunali MESE di LUGLIO 2016;09-08-2016;37601;0;234;1;Spese correnti;3;Acquisto di beni e servizi;2;Acquisto di servizi;99;Altri servizi;999;Altri servizi diversi n.a.c.;09-08-2016;
736;1;0;"1.002,30";"1.002,30";ZEFIRO SRL;51564640B5;SALDO Fatt.n. 25/PA  del 31/07/2016 Servizio di pulizia edifici comunali MESE di LUGLIO 2016;09-08-2016;475;0;232;1;Spese correnti;3;Acquisto di beni e servizi;2;Acquisto di servizi;99;Altri servizi;999;Altri servizi diversi n.a.c.;09-08-2016;
737;1;0;"468,97";"468,97";VENETA SICUREZZA E SEGNALETICA STRADALE  SRL;Z851AD03C2;SALDO Fatt.n. 71  del 05/08/2016 Acquisto segnaletica verticale;09-08-2016;7335;0;288;1;Spese correnti;3;Acquisto di beni e servizi;2;Acquisto di servizi;9;Manutenzione ordinaria e riparazioni;8;Manutenzione ordinaria e riparazioni di beni immobili;09-08-2016;
738;1;0;"201,25";"201,25";BAR RISTORANTE DA PAOLO;Z491052554;SALDO Fatt.n. 00009/04  del 08/08/2016 Somministrazione pasti dipendenti mese di luglio 2016;09-08-2016;9375;0;6;1;Spese correnti;3;Acquisto di beni e servizi;2;Acquisto di servizi;99;Altri servizi;999;Altri servizi diversi n.a.c.;09-08-2016;
739;1;0;"549,00";"549,00";ACCATRE S.r.l.;ZB31A66333;SALDO Fatt.n. 1/160841  del 09/08/2016 Servizio redazione pratica pensione S.A. via passweb;25-08-2016;460;0;247;1;Spese correnti;3;Acquisto di beni e servizi;2;Acquisto di servizi;11;Prestazioni professionali e specialistiche;999;Altre prestazioni professionali e specialistiche n.a.c.;25-08-2016;
740;1;0;"549,00";"549,00";ACCATRE S.r.l.;Z631A99CC3;SALDO Fatt.n. 1/160842  del 09/08/2016 redazione pratica pensione via passweb L.A.;25-08-2016;460;0;256;1;Spese correnti;3;Acquisto di beni e servizi;2;Acquisto di servizi;11;Prestazioni professionali e specialistiche;999;Altre prestazioni professionali e specialistiche n.a.c.;25-08-2016;
741;1;0;"129,38";"129,38";POSTE ITALIANE SPA;Z961438A4F;SALDO Fatt.n. 8716202597  del 28/07/2016 Servizio affrancatura mese di giugno 2016;25-08-2016;4800;0;166;1;Spese correnti;3;Acquisto di beni e servizi;2;Acquisto di servizi;16;Servizi amministrativi;2;Spese postali;25-08-2016;
742;1;0;"800,00";"800,00";Ass. ANTEAS; ;Contributo spese per trasporto partecipanti al soggiorno climatico marino per l'anno 2016 - A.L. SEG. N. 69 DEL 09.08.2016;25-08-2016;6950;0;250;1;Spese correnti;3;Acquisto di beni e servizi;2;Acquisto di servizi;99;Altri servizi;999;Altri servizi diversi n.a.c.;25-08-2016;
743;1;0;"806,25";"806,25";CASA DI RIPOSO "A. SIMIONATI"; ;SALDO Fatt.n. 92/E  del 31/07/2016 Quota retta ricovero R.R. mese di luglio 2016;25-08-2016;6875;0;205;1;Spese correnti;3;Acquisto di beni e servizi;2;Acquisto di servizi;99;Altri servizi;999;Altri servizi diversi n.a.c.;25-08-2016;
744;1;0;"500,00";"500,00";VINUM ET RES srl; ;Contributo economico straordinario per la gestione della manifestazione  "CALICI DI STELLE" anno 2016 - A.L. SEG. N. 70 DEL 25.08.2016;25-08-2016;8888;0;282;1;Spese correnti;3;Acquisto di beni e servizi;2;Acquisto di servizi;99;Altri servizi;999;Altri servizi diversi n.a.c.;25-08-2016;
745;1;0;"5.700,00";"5.700,00";PRO LOCO - Presidente Olivato Graziano; ;Liquidazione 50% contributo assegnato per la gestione  della "FESTA DELL'UVA ANNO 2016" - A.L. SEG. N. 71 DEL 25.08.2016;25-08-2016;7000;0;296;1;Spese correnti;4;Trasferimenti correnti;4;Trasferimenti correnti a Istituzioni Sociali Private;1;Trasferimenti correnti a Istituzioni Sociali Private;1;Trasferimenti correnti a Istituzioni Sociali Private;25-08-2016;
748;1;0;"470,98";"470,98";CENTRO VENETO SERVIZI S.P.A.;Z311381BD7;ACCONTO Fatt.n. 2016159512  del 02/08/2016 Fornitura acqua potabile utenza Sede Municipale 1' semestre 2016 (conguaglio periodo luglio 2015 / giugno 2016);01-09-2016;4751;0;97;1;Spese correnti;3;Acquisto di beni e servizi;2;Acquisto di servizi;5;Utenze e canoni;5;Acqua;01-09-2016;
749;1;0;"947,50";"947,50";CENTRO VENETO SERVIZI S.P.A.;Z311381BD7;SALDO Fatt.n. 2016159512  del 02/08/2016 Fornitura acqua potabile utenza Sede Municipale 1' semestre 2016 (conguaglio periodo luglio 2015 / giugno 2016);01-09-2016;4751;0;71;1;Spese correnti;3;Acquisto di beni e servizi;2;Acquisto di servizi;5;Utenze e canoni;5;Acqua;01-09-2016;
750;1;0;"102,91";"102,91";CENTRO VENETO SERVIZI S.P.A.;Z311381BD7;ACCONTO Fatt.n. 2016159524  del 02/08/2016 Fornitura acqua potabile utenza barchessa Villa Venier 1' Semestre 2016 (conguaglio periodo agosto 2015 / giugno 2016);01-09-2016;1312;0;107;1;Spese correnti;3;Acquisto di beni e servizi;2;Acquisto di servizi;5;Utenze e canoni;5;Acqua;01-09-2016;
751;1;0;"102,90";"102,90";CENTRO VENETO SERVIZI S.P.A.;Z311381BD7;SALDO Fatt.n. 2016159524  del 02/08/2016 Fornitura acqua potabile utenza barchessa Villa Venier 1' Semestre 2016 (conguaglio periodo agosto 2015 / giugno 2016);01-09-2016;1312;0;79;1;Spese correnti;3;Acquisto di beni e servizi;2;Acquisto di servizi;5;Utenze e canoni;5;Acqua;01-09-2016;
752;1;0;"40,68";"40,68";CENTRO VENETO SERVIZI S.P.A.;Z311381BD7;ACCONTO Fatt.n. 2016159521  del 02/08/2016 Fornitura acqua potabile utenza Via Monte Castellaro 1' semestre 2016 (periodo luglio 2015 / giugno 2016);01-09-2016;1350;0;109;1;Spese correnti;3;Acquisto di beni e servizi;2;Acquisto di servizi;5;Utenze e canoni;5;Acqua;01-09-2016;
753;1;0;"41,87";"436,86";CENTRO VENETO SERVIZI S.P.A.;Z311381BD7;SALDO Fatt.n. 2016159526  del 02/08/2016 Fornitura acqua potabile utenza Via 4 Novembre 1' Semestre 2016 (conguaglio periodo luglio 2015 / giugno 2016);01-09-2016;1350;0;81;1;Spese correnti;3;Acquisto di beni e servizi;2;Acquisto di servizi;5;Utenze e canoni;5;Acqua;01-09-2016;
753;2;0;"41,99";"436,86";CENTRO VENETO SERVIZI S.P.A.;Z311381BD7;SALDO Fatt.n. 2016159522  del 02/08/2016 Fornitura acqua potabile utenza Via Vo' Di Sotto 1' Semestre 2016 (periodo agosto 2015 / giugno 2016);01-09-2016;1350;0;81;1;Spese correnti;3;Acquisto di beni e servizi;2;Acquisto di servizi;5;Utenze e canoni;5;Acqua;01-09-2016;
753;3;0;"41,99";"436,86";CENTRO VENETO SERVIZI S.P.A.;Z311381BD7;SALDO Fatt.n. 2016159523  del 02/08/2016 Fornitura acqua potabile utenza Via Vasche 1' Semestre 2016 (conguaglio periodo agosto 2015 / giugno 2016);01-09-2016;1350;0;81;1;Spese correnti;3;Acquisto di beni e servizi;2;Acquisto di servizi;5;Utenze e canoni;5;Acqua;01-09-2016;
753;4;0;"46,70";"436,86";CENTRO VENETO SERVIZI S.P.A.;Z311381BD7;SALDO Fatt.n. 2016159525  del 02/08/2016 Fornitura acqua potabile utenza Via carducci 1' Semestre 2016 (conguaglio periodo luglio 2015 / giugno 2016);01-09-2016;1350;0;81;1;Spese correnti;3;Acquisto di beni e servizi;2;Acquisto di servizi;5;Utenze e canoni;5;Acqua;01-09-2016;
753;5;0;"62,34";"436,86";CENTRO VENETO SERVIZI S.P.A.;Z311381BD7;SALDO Fatt.n. 2016159520  del 02/08/2016 Fornitura acqua potabile utenza Fontanella Pubblica Piazza B.Santimaria 1' Semestre 2016 (periodo agosto 2015 / giugno 2016);01-09-2016;1350;0;81;1;Spese correnti;3;Acquisto di beni e servizi;2;Acquisto di servizi;5;Utenze e canoni;5;Acqua;01-09-2016;
753;6;0;"201,97";"436,86";CENTRO VENETO SERVIZI S.P.A.;Z311381BD7;SALDO Fatt.n. 2016159521  del 02/08/2016 Fornitura acqua potabile utenza Via Monte Castellaro 1' semestre 2016 (periodo luglio 2015 / giugno 2016);01-09-2016;1350;0;81;1;Spese correnti;3;Acquisto di beni e servizi;2;Acquisto di servizi;5;Utenze e canoni;5;Acqua;01-09-2016;
754;1;0;"230,00";"230,00";CENTRO VENETO SERVIZI S.P.A.;Z311381BD7;ACCONTO Fatt.n. 2016159516  del 02/08/2016 Fornitura acqua potabile utenza Polo Scolastico (Contratto 00019596) 1' Semestre 2016 (conguglio periodo luglio 2015 / giugno 2016);01-09-2016;28001;0;98;1;Spese correnti;3;Acquisto di beni e servizi;2;Acquisto di servizi;5;Utenze e canoni;5;Acqua;01-09-2016;
755;1;0;"226,01";"226,01";CENTRO VENETO SERVIZI S.P.A.;Z311381BD7;ACCONTO Fatt.n. 2016159516  del 02/08/2016 Fornitura acqua potabile utenza Polo Scolastico (Contratto 00019596) 1' Semestre 2016 (conguglio periodo luglio 2015 / giugno 2016);01-09-2016;29701;0;99;1;Spese correnti;3;Acquisto di beni e servizi;2;Acquisto di servizi;5;Utenze e canoni;5;Acqua;01-09-2016;
756;1;0;"226,00";"226,00";CENTRO VENETO SERVIZI S.P.A.;Z311381BD7;SALDO Fatt.n. 2016159516  del 02/08/2016 Fornitura acqua potabile utenza Polo Scolastico (Contratto 00019596) 1' Semestre 2016 (conguglio periodo luglio 2015 / giugno 2016);01-09-2016;31801;0;100;1;Spese correnti;3;Acquisto di beni e servizi;2;Acquisto di servizi;5;Utenze e canoni;5;Acqua;01-09-2016;
757;1;0;"762,08";"762,08";CENTRO VENETO SERVIZI S.P.A.;Z311381BD7;ACCONTO Fatt.n. 2016159519  del 02/08/2016 Fornitura acqua potabile utenza impianti sportivi 1' semestre 2016 (conguaglio periodo luglio 2015 / giugno 2016);01-09-2016;64981;0;386;1;Spese correnti;3;Acquisto di beni e servizi;2;Acquisto di servizi;5;Utenze e canoni;5;Acqua;01-09-2016;
758;1;0;"457,57";"457,57";CENTRO VENETO SERVIZI S.P.A.;Z311381BD7;SALDO Fatt.n. 2016159519  del 02/08/2016 Fornitura acqua potabile utenza impianti sportivi 1' semestre 2016 (conguaglio periodo luglio 2015 / giugno 2016);01-09-2016;64981;0;76;1;Spese correnti;3;Acquisto di beni e servizi;2;Acquisto di servizi;5;Utenze e canoni;5;Acqua;01-09-2016;
759;1;0;"40,26";"40,26";CENTRO VENETO SERVIZI S.P.A.;Z311381BD7;ACCONTO Fatt.n. 2016159515  del 02/08/2016 Fornitura acqua potabile utenza Magazino 1' Semestre 2016 (conguaglio periodo agosto 2015 / giugno 2016);01-09-2016;78701;0;104;1;Spese correnti;3;Acquisto di beni e servizi;2;Acquisto di servizi;5;Utenze e canoni;5;Acqua;01-09-2016;
760;1;0;"40,25";"40,25";CENTRO VENETO SERVIZI S.P.A.;Z311381BD7;SALDO Fatt.n. 2016159515  del 02/08/2016 Fornitura acqua potabile utenza Magazino 1' Semestre 2016 (conguaglio periodo agosto 2015 / giugno 2016);01-09-2016;78701;0;78;1;Spese correnti;3;Acquisto di beni e servizi;2;Acquisto di servizi;5;Utenze e canoni;5;Acqua;01-09-2016;
761;1;0;"877,96";"877,96";CENTRO VENETO SERVIZI S.P.A.;Z311381BD7;ACCONTO Fatt.n. 2016159518  del 02/08/2016 Fornitura acqua potabile utenza immobile Piazzetta Martiri 1' semestre 2016 (conguaglio periodo luglio 2015 / giugno 2016);01-09-2016;1405;0;108;1;Spese correnti;3;Acquisto di beni e servizi;2;Acquisto di servizi;5;Utenze e canoni;5;Acqua;01-09-2016;
762;1;0;"573,95";"573,95";CENTRO VENETO SERVIZI S.P.A.;Z311381BD7;SALDO Fatt.n. 2016159518  del 02/08/2016 Fornitura acqua potabile utenza immobile Piazzetta Martiri 1' semestre 2016 (conguaglio periodo luglio 2015 / giugno 2016);01-09-2016;1405;0;80;1;Spese correnti;3;Acquisto di beni e servizi;2;Acquisto di servizi;5;Utenze e canoni;5;Acqua;01-09-2016;
763;1;0;"41,87";"121,48";CENTRO VENETO SERVIZI S.P.A.;Z311381BD7;SALDO Fatt.n. 2016159509  del 02/08/2016 Fornitura acqua potabile utenza ex scuola Zovon 1' Semestre 2016;01-09-2016;1330;0;75;1;Spese correnti;3;Acquisto di beni e servizi;2;Acquisto di servizi;5;Utenze e canoni;5;Acqua;01-09-2016;
763;2;0;"79,61";"121,48";CENTRO VENETO SERVIZI S.P.A.;Z311381BD7;SALDO Fatt.n. 2016159513  del 02/08/2016 Fornitura acqua potabile utenza ex scuola Vo' Vecchio 1' Semestre 2016;01-09-2016;1330;0;75;1;Spese correnti;3;Acquisto di beni e servizi;2;Acquisto di servizi;5;Utenze e canoni;5;Acqua;01-09-2016;
764;1;0;"41,87";"230,65";CENTRO VENETO SERVIZI S.P.A.;Z311381BD7;SALDO Fatt.n. 2016159510  del 02/08/2016 Fornitura acqua potabile utenza cimitero Zovon  1' Semestre 2016;01-09-2016;51801;0;77;1;Spese correnti;3;Acquisto di beni e servizi;2;Acquisto di servizi;5;Utenze e canoni;5;Acqua;01-09-2016;
764;2;0;"50,16";"230,65";CENTRO VENETO SERVIZI S.P.A.;Z311381BD7;SALDO Fatt.n. 2016159511  del 02/08/2016 Fornitura acqua potabile utenza cimitero Cortela'  1' Semestre 2016;01-09-2016;51801;0;77;1;Spese correnti;3;Acquisto di beni e servizi;2;Acquisto di servizi;5;Utenze e canoni;5;Acqua;01-09-2016;
764;3;0;"58,25";"230,65";CENTRO VENETO SERVIZI S.P.A.;Z311381BD7;SALDO Fatt.n. 2016159517  del 02/08/2016 Fornitura acqua potabile utenza cimitero Vo' Vecchio 1' semestre 2016;01-09-2016;51801;0;77;1;Spese correnti;3;Acquisto di beni e servizi;2;Acquisto di servizi;5;Utenze e canoni;5;Acqua;01-09-2016;
764;4;0;"80,37";"230,65";CENTRO VENETO SERVIZI S.P.A.;Z311381BD7;SALDO Fatt.n. 2016159514  del 02/08/2016 Fornitura acqua potabile utenza cimitero Boccon 1' Semestre 2016;01-09-2016;51801;0;77;1;Spese correnti;3;Acquisto di beni e servizi;2;Acquisto di servizi;5;Utenze e canoni;5;Acqua;01-09-2016;
765;1;0;"506,00";"506,00";CENTRO VENETO SERVIZI S.P.A.;Z311381BD7;ACCONTO Fatt.n. 2016159527  del 02/08/2016 Fornitura acqua potabile utenza Polo Scolastico (contratto 00149921) 1'  Semestre 2016;01-09-2016;28001;0;72;1;Spese correnti;3;Acquisto di beni e servizi;2;Acquisto di servizi;5;Utenze e canoni;5;Acqua;01-09-2016;
766;1;0;"490,07";"490,07";CENTRO VENETO SERVIZI S.P.A.;Z311381BD7;ACCONTO Fatt.n. 2016159527  del 02/08/2016 Fornitura acqua potabile utenza Polo Scolastico (contratto 00149921) 1'  Semestre 2016;01-09-2016;29701;0;73;1;Spese correnti;3;Acquisto di beni e servizi;2;Acquisto di servizi;5;Utenze e canoni;5;Acqua;01-09-2016;
767;1;0;"490,06";"490,06";CENTRO VENETO SERVIZI S.P.A.;Z311381BD7;SALDO Fatt.n. 2016159527  del 02/08/2016 Fornitura acqua potabile utenza Polo Scolastico (contratto 00149921) 1'  Semestre 2016;01-09-2016;31801;0;74;1;Spese correnti;3;Acquisto di beni e servizi;2;Acquisto di servizi;5;Utenze e canoni;5;Acqua;01-09-2016;
768;1;0;"23,90";"23,90";ECONOMO COMUNALE; ;Rifusione buono economato 34p - A.L. RAG. N. 80 DEL 02.09.2016;02-09-2016;230;0;109;1;Spese correnti;3;Acquisto di beni e servizi;2;Acquisto di servizi;2;"Rappresentanza, organizzazione eventi, pubblicità e servizi per trasferta";2;Indennità di missione e di trasferta;02-09-2016;
769;1;0;"36,80";"36,80";ECONOMO COMUNALE; ;Rifusione buono economato 34p - A.L. RAG. N. 80 DEL 02.09.2016;02-09-2016;230;0;177;1;Spese correnti;3;Acquisto di beni e servizi;2;Acquisto di servizi;2;"Rappresentanza, organizzazione eventi, pubblicità e servizi per trasferta";2;Indennità di missione e di trasferta;02-09-2016;
770;1;0;"45,60";"45,60";ECONOMO COMUNALE; ;Rifusione buoni economato n. 38 39 40 - A.L. RAG. n. 80 del 02.09.2016;02-09-2016;1305;0;113;1;Spese correnti;3;Acquisto di beni e servizi;1;Acquisto di beni;2;Altri beni di consumo;999;Altri beni e materiali di consumo n.a.c.;02-09-2016;
771;1;0;"137,90";"137,90";ECONOMO COMUNALE; ;Rifusione buono economato n. 33 35 36 37 - A.L. RAG. N. 80 DEL 02.09.2016;02-09-2016;4754;0;182;1;Spese correnti;3;Acquisto di beni e servizi;1;Acquisto di beni;2;Altri beni di consumo;999;Altri beni e materiali di consumo n.a.c.;02-09-2016;
772;1;0;"1.774,75";"1.774,75";TREVISAN VANESSA; ;Indennita' di carica Sindaco AGOSTO 2016;02-09-2016;10;0;2;1;Spese correnti;3;Acquisto di beni e servizi;2;Acquisto di servizi;1;Organi e incarichi istituzionali dell'amministrazione;1;Organi istituzionali dell'amministrazione - Indennità;02-09-2016;
773;1;0;"177,48";"177,48";CALAON SIMONE; ;Indennita' di carica Vice-Sindaco  AGOSTO 2016;02-09-2016;10;0;3;1;Spese correnti;3;Acquisto di beni e servizi;2;Acquisto di servizi;1;Organi e incarichi istituzionali dell'amministrazione;1;Organi istituzionali dell'amministrazione - Indennità;02-09-2016;
774;1;0;"133,11";"133,11";LAZZARETTO ROBERTA; ;Indennita' di carica  assessore mese di AGOSTO 2016;02-09-2016;10;0;58;1;Spese correnti;3;Acquisto di beni e servizi;2;Acquisto di servizi;1;Organi e incarichi istituzionali dell'amministrazione;1;Organi istituzionali dell'amministrazione - Indennità;02-09-2016;
775;1;0;"266,21";"266,21";SANTIMARIA ANDREA; ;Indennita' di carica Assessore AGOSTO 2016;02-09-2016;10;0;5;1;Spese correnti;3;Acquisto di beni e servizi;2;Acquisto di servizi;1;Organi e incarichi istituzionali dell'amministrazione;1;Organi istituzionali dell'amministrazione - Indennità;02-09-2016;
776;1;0;"266,21";"266,21";ZAVATTIERO AGOSTINO; ;Indennita' di carica assessore  mese di AGOSTO 2016;02-09-2016;10;0;59;1;Spese correnti;3;Acquisto di beni e servizi;2;Acquisto di servizi;1;Organi e incarichi istituzionali dell'amministrazione;1;Organi istituzionali dell'amministrazione - Indennità;02-09-2016;
779;1;0;"208,17";"208,17";ENEL SOLE Srl;ZEE1381BCC;SALDO Fatt.n. 1630044622  del 31/08/2016 Servizio gestione impianti illuminazione pubblica mese di agosto 2016;07-09-2016;7420;0;42;1;Spese correnti;3;Acquisto di beni e servizi;2;Acquisto di servizi;5;Utenze e canoni;4;Energia elettrica;07-09-2016;
780;1;0;"187,64";"376,53";Illumia S.p.A.;Z0E14167CF;SALDO Fatt.n. 15158-PE  del 22/08/2016 Fornitura energia elettrica utenza impianto sportivo Zovon mese di luglio 2016;07-09-2016;64981;0;101;1;Spese correnti;3;Acquisto di beni e servizi;2;Acquisto di servizi;5;Utenze e canoni;4;Energia elettrica;07-09-2016;
780;2;0;"188,89";"376,53";Illumia S.p.A.;Z0E14167CF;SALDO Fatt.n. 15151-PE  del 22/08/2016 Fornitura energia elettrica utenza impianto sportivo mese di luglio 2016;07-09-2016;64981;0;101;1;Spese correnti;3;Acquisto di beni e servizi;2;Acquisto di servizi;5;Utenze e canoni;4;Energia elettrica;07-09-2016;
781;1;0;"150,07";"150,07";Illumia S.p.A.;Z0E14167CF;ACCONTO Fatt.n. 15148-PE  del 22/08/2016 Fornitura energia elettrica utenza Polo Scolastico mese di luglio 2016;07-09-2016;28001;0;97;1;Spese correnti;3;Acquisto di beni e servizi;2;Acquisto di servizi;5;Utenze e canoni;4;Energia elettrica;07-09-2016;
782;1;0;"150,07";"150,07";Illumia S.p.A.;Z0E14167CF;ACCONTO Fatt.n. 15148-PE  del 22/08/2016 Fornitura energia elettrica utenza Polo Scolastico mese di luglio 2016;07-09-2016;29701;0;98;1;Spese correnti;3;Acquisto di beni e servizi;2;Acquisto di servizi;5;Utenze e canoni;4;Energia elettrica;07-09-2016;
783;1;0;"150,06";"150,06";Illumia S.p.A.;Z0E14167CF;SALDO Fatt.n. 15148-PE  del 22/08/2016 Fornitura energia elettrica utenza Polo Scolastico mese di luglio 2016;07-09-2016;31801;0;99;1;Spese correnti;3;Acquisto di beni e servizi;2;Acquisto di servizi;5;Utenze e canoni;4;Energia elettrica;07-09-2016;
784;1;0;"24,14";"5.896,15";Illumia S.p.A.;Z0E14167CF;SALDO Fatt.n. 15146-PE  del 22/08/2016 Fornitura energia elettrica utenza illuminazione pubblica (POD IT001E32268714) mese di luglio 2016;07-09-2016;7420;0;105;1;Spese correnti;3;Acquisto di beni e servizi;2;Acquisto di servizi;5;Utenze e canoni;4;Energia elettrica;07-09-2016;
784;2;0;"97,92";"5.896,15";Illumia S.p.A.;Z0E14167CF;SALDO Fatt.n. 15154-PE  del 22/08/2016 Fornitura energia elettrica utenza Piazzetta Martiri (POD IT001E04199192) periodo giugno / luglio 2016;07-09-2016;7420;0;105;1;Spese correnti;3;Acquisto di beni e servizi;2;Acquisto di servizi;5;Utenze e canoni;4;Energia elettrica;07-09-2016;
784;3;0;"99,10";"5.896,15";Illumia S.p.A.;Z0E14167CF;SALDO Fatt.n. 15149-PE  del 22/08/2016 Fornitura energia elettrica utenza in Via 4 Novembre (POD IT001E04020354) periodo giugno / luglio 2016;07-09-2016;7420;0;105;1;Spese correnti;3;Acquisto di beni e servizi;2;Acquisto di servizi;5;Utenze e canoni;4;Energia elettrica;07-09-2016;
784;4;0;"119,94";"5.896,15";Illumia S.p.A.;Z0E14167CF;SALDO Fatt.n. 15162-PE  del 22/08/2016 Fornitura energia elettrica utenza torretta Piazzetta Spolverato mese di luglio 2016;07-09-2016;7420;0;105;1;Spese correnti;3;Acquisto di beni e servizi;2;Acquisto di servizi;5;Utenze e canoni;4;Energia elettrica;07-09-2016;
784;5;0;"140,21";"5.896,15";Illumia S.p.A.;Z0E14167CF;SALDO Fatt.n. 15150-PE  del 22/08/2016 Fornitura energia elettrica utenza ill. pubblica Via Vo' Di Sotto (IT001E33625246) periodo giugno / luglio 2016;07-09-2016;7420;0;105;1;Spese correnti;3;Acquisto di beni e servizi;2;Acquisto di servizi;5;Utenze e canoni;4;Energia elettrica;07-09-2016;
784;6;0;"368,43";"5.896,15";Illumia S.p.A.;Z0E14167CF;SALDO Fatt.n. 15161-PE  del 22/08/2016 Fornitura energia elettrica utenza Via Marconi (POD IT001E04199191) mese di luglio 2016;07-09-2016;7420;0;105;1;Spese correnti;3;Acquisto di beni e servizi;2;Acquisto di servizi;5;Utenze e canoni;4;Energia elettrica;07-09-2016;
784;7;0;"5.046,41";"5.896,15";Illumia S.p.A.;Z0E14167CF;SALDO Fatt.n. 15145-PE  del 22/08/2016 Fornitura energia utenze illuminazione pubblica mese di luglio 2016;07-09-2016;7420;0;105;1;Spese correnti;3;Acquisto di beni e servizi;2;Acquisto di servizi;5;Utenze e canoni;4;Energia elettrica;07-09-2016;
785;1;0;"44,29";"428,93";Illumia S.p.A.;Z0E14167CF;SALDO Fatt.n. 15157-PE  del 22/08/2016 Fornitura energia elettrica utenza Villa Venier (POD IT001E35511782) periodo giugno / luglio 2016;07-09-2016;1312;0;103;1;Spese correnti;3;Acquisto di beni e servizi;2;Acquisto di servizi;5;Utenze e canoni;4;Energia elettrica;07-09-2016;
785;2;0;"44,29";"428,93";Illumia S.p.A.;Z0E14167CF;SALDO Fatt.n. 15153-PE  del 22/08/2016 Fornitura energia elettrica utenza Villa Venier (POD IT001E35511792) periodo giugno / luglio 2016;07-09-2016;1312;0;103;1;Spese correnti;3;Acquisto di beni e servizi;2;Acquisto di servizi;5;Utenze e canoni;4;Energia elettrica;07-09-2016;
785;3;0;"97,53";"428,93";Illumia S.p.A.;Z0E14167CF;SALDO Fatt.n. 15160-PE  del 22/08/2016 Fornitura energia elettrica utenza Villa Venier (POD IT001E04020273) periodo giugno / luglio 2016;07-09-2016;1312;0;103;1;Spese correnti;3;Acquisto di beni e servizi;2;Acquisto di servizi;5;Utenze e canoni;4;Energia elettrica;07-09-2016;
785;4;0;"98,12";"428,93";Illumia S.p.A.;Z0E14167CF;SALDO Fatt.n. 15152-PE  del 22/08/2016 Fornitura energia elettrica utenza Villa Venier (POD IT001E04020277) periodo giugno / luglio 2016;07-09-2016;1312;0;103;1;Spese correnti;3;Acquisto di beni e servizi;2;Acquisto di servizi;5;Utenze e canoni;4;Energia elettrica;07-09-2016;
785;5;0;"144,70";"428,93";Illumia S.p.A.;Z0E14167CF;SALDO Fatt.n. 15156-PE  del 22/08/2016 Fornitura energia elettrica utenza Villa Venier (POD IT001E34674161) mese di luglio 2016;07-09-2016;1312;0;103;1;Spese correnti;3;Acquisto di beni e servizi;2;Acquisto di servizi;5;Utenze e canoni;4;Energia elettrica;07-09-2016;
786;1;0;"443,81";"443,81";Illumia S.p.A.;Z0E14167CF;SALDO Fatt.n. 15155-PE  del 22/08/2016 Fornitura energia elettrica utenza immobile Piazzetta Martiri mese di luglio 2016;07-09-2016;1405;0;104;1;Spese correnti;3;Acquisto di beni e servizi;2;Acquisto di servizi;5;Utenze e canoni;4;Energia elettrica;07-09-2016;
787;1;0;"411,60";"411,60";Illumia S.p.A.;Z0E14167CF;SALDO Fatt.n. 15159-PE  del 22/08/2016 Fornitura energia elettrica utenza Sede Municipale mese di luglio 2016;07-09-2016;4751;0;96;1;Spese correnti;3;Acquisto di beni e servizi;2;Acquisto di servizi;5;Utenze e canoni;4;Energia elettrica;07-09-2016;
788;1;0;"57,65";"57,65";Illumia S.p.A.;Z0E14167CF;SALDO Fatt.n. 15147-PE  del 22/08/2016 Fornitura energia elettrica utenza ex scuola Vo' Vecchio periodo giugno / luglio 2016;07-09-2016;1330;0;100;1;Spese correnti;3;Acquisto di beni e servizi;2;Acquisto di servizi;5;Utenze e canoni;4;Energia elettrica;07-09-2016;
789;1;0;"158,27";"158,27";Illumia S.p.A.;Z0E14167CF;SALDO Fatt.n. 15163-PE  del 22/08/2016 Fornitura energia elettrica utenza magazzino comunale periodo giugno / luglio 2016;07-09-2016;78701;0;102;1;Spese correnti;3;Acquisto di beni e servizi;2;Acquisto di servizi;5;Utenze e canoni;4;Energia elettrica;07-09-2016;
790;1;0;"7,41";"16,20";E.ON Energia S.p.a.;Z7113FE6B2;SALDO Fatt.n. 40007533  del 01/08/2016 Fornitura gas naturale utenza Sede Municipale (matricola contatore 30155066) periodo maggio / giugno 2016;08-09-2016;4751;0;91;1;Spese correnti;3;Acquisto di beni e servizi;2;Acquisto di servizi;5;Utenze e canoni;6;Gas;08-09-2016;
790;2;0;"8,79";"16,20";E.ON Energia S.p.a.;Z7113FE6B2;SALDO Fatt.n. 40008186  del 01/08/2016 Fornitura gas naturale utenza Sede Municipale (matricola contatore 1545006563) mese di giugno 2016;08-09-2016;4751;0;91;1;Spese correnti;3;Acquisto di beni e servizi;2;Acquisto di servizi;5;Utenze e canoni;6;Gas;08-09-2016;
791;1;0;"39,06";"39,06";E.ON Energia S.p.a.;Z7113FE6B2;SALDO Fatt.n. 40007419  del 01/08/2016 Fornitura gas naturale utenza Villa Venier periodo maggio / giugno 2016;08-09-2016;1312;0;95;1;Spese correnti;3;Acquisto di beni e servizi;2;Acquisto di servizi;5;Utenze e canoni;6;Gas;08-09-2016;
792;1;0;"17,10";"17,10";E.ON Energia S.p.a.;Z711FE6B2;SALDO Fatt.n. 40008187  del 01/08/2016 Fornitura gas naturale utenza Polo Scolastico mese di giugno 2016;08-09-2016;28001;0;92;1;Spese correnti;3;Acquisto di beni e servizi;2;Acquisto di servizi;5;Utenze e canoni;6;Gas;08-09-2016;
793;1;0;"99,77";"614,92";TELECOM ITALIA SPA;ZE31381BC6;SALDO Fatt.n. 8E00809063  del 05/08/2016 Spese telefoniche utenza Sede Municipale (0499940027) 5' bimestre 2016;12-09-2016;4751;0;82;1;Spese correnti;3;Acquisto di beni e servizi;2;Acquisto di servizi;5;Utenze e canoni;1;Telefonia fissa;12-09-2016;
793;2;0;"212,37";"614,92";TELECOM ITALIA SPA;ZE31381BC6;SALDO Fatt.n. 8E00809304  del 05/08/2016 Spese telefoniche utenza Sede Municipale (0499940666) 5' bimestre 2016;12-09-2016;4751;0;82;1;Spese correnti;3;Acquisto di beni e servizi;2;Acquisto di servizi;5;Utenze e canoni;1;Telefonia fissa;12-09-2016;
793;3;0;"302,78";"614,92";TELECOM ITALIA SPA;ZE31381BC6;SALDO Fatt.n. 8E00810313  del 05/08/2016 Spese telefoniche utenza Sede Municipale (0499940677) 5' bimestre 2016;12-09-2016;4751;0;82;1;Spese correnti;3;Acquisto di beni e servizi;2;Acquisto di servizi;5;Utenze e canoni;1;Telefonia fissa;12-09-2016;
794;1;0;"61,27";"61,27";TELECOM ITALIA SPA;ZE31381BC6;SALDO Fatt.n. 8E00811907  del 05/08/2016 Spese telefoniche utenza Villa Venier 5' bimestre 2016;12-09-2016;1312;0;86;1;Spese correnti;3;Acquisto di beni e servizi;2;Acquisto di servizi;5;Utenze e canoni;1;Telefonia fissa;12-09-2016;
795;1;0;"112,12";"112,12";TELECOM ITALIA SPA;ZE31381BC6;SALDO Fatt.n. 8E00815127  del 05/08/2016 Spese telefoniche utenza biblioteca 5' bimestre 2016;12-09-2016;3761;0;87;1;Spese correnti;3;Acquisto di beni e servizi;2;Acquisto di servizi;5;Utenze e canoni;1;Telefonia fissa;12-09-2016;
796;1;0;"109,89";"109,89";TELECOM ITALIA SPA;ZE31381BC6;SALDO Fatt.n. 8E00812265  del 05/08/2016 Spese telefoniche utenza Scuola primaria 5' bimestre 2016;12-09-2016;29701;0;84;1;Spese correnti;3;Acquisto di beni e servizi;2;Acquisto di servizi;5;Utenze e canoni;1;Telefonia fissa;12-09-2016;
797;1;0;"71,98";"71,98";TELECOM ITALIA SPA;ZE31381BC6;SALDO Fatt.n. 8E00814411  del 05/08/2016 Spese telefoniche utenza Scuola dell'Infanzia 5' bimestre 2016;12-09-2016;28001;0;83;1;Spese correnti;3;Acquisto di beni e servizi;2;Acquisto di servizi;5;Utenze e canoni;1;Telefonia fissa;12-09-2016;
798;1;0;"190,48";"190,48";TELECOM ITALIA SPA;ZE31381BC6;SALDO Fatt.n. 8E00815286  del 05/08/2016 Spese telefoniche utenza Scuola Secondaria di 1' grado 5' bimestre 2016;12-09-2016;31801;0;85;1;Spese correnti;3;Acquisto di beni e servizi;2;Acquisto di servizi;5;Utenze e canoni;1;Telefonia fissa;12-09-2016;
799;1;0;"75,37";"75,37";VODAFONE OMNITEL B.V.;ZD11381BD3;SALDO Fatt.n. AG13729085  del 07/09/2016 Spese contratto telefonia mobile periodo dal 09.07.2016 al 02.09.2016;12-09-2016;4751;0;88;1;Spese correnti;3;Acquisto di beni e servizi;2;Acquisto di servizi;5;Utenze e canoni;2;Telefonia mobile;12-09-2016;
800;1;0;"9.261,79";"9.261,79";S.E.S.A. SPA;Z11182D6F2;SALDO Fatt.n. 2000478  del 31/07/2016 Servizio di raccolta e trasporto RSU mese di luglio 2016;14-09-2016;5780;0;33;1;Spese correnti;3;Acquisto di beni e servizi;2;Acquisto di servizi;15;Contratti di servizio pubblico;5;Contratti di servizio per il conferimento in discarica dei rifiuti;14-09-2016;
801;1;0;"13.761,04";"13.761,04";DE VIZIA TRANSFER S.P.A.;Z941520100;SALDO Fatt.n. V3-31210  del 31/08/2016 Servizio di raccolta e trasporto rifiuti mese di agosto 2016;14-09-2016;5780;0;215;1;Spese correnti;3;Acquisto di beni e servizi;2;Acquisto di servizi;15;Contratti di servizio pubblico;4;Contratti di servizio per la raccolta rifiuti;14-09-2016;
802;1;0;"1.496,26";"1.496,26";CODESS SOCIALE;53979365B3;ACCONTO Fatt.n. 4420/PA  del 30/08/2016 Servizio di assistenza sociale mese di luglio 2016;14-09-2016;6980;0;43;1;Spese correnti;3;Acquisto di beni e servizi;2;Acquisto di servizi;15;Contratti di servizio pubblico;9;Contratti di servizio di assistenza sociale domiciliare;14-09-2016;
803;1;0;"2.229,50";"2.229,50";CODESS SOCIALE;53979365B3;SALDO Fatt.n. 4420/PA  del 30/08/2016 Servizio di assistenza domiciliare mese di luglio 2016;14-09-2016;6990;0;44;1;Spese correnti;3;Acquisto di beni e servizi;2;Acquisto di servizi;15;Contratti di servizio pubblico;9;Contratti di servizio di assistenza sociale domiciliare;14-09-2016;
804;1;0;"142,25";"142,25";GRUPPO SPAGGIARI PARMA SPA;ZDB1B08584;SALDO Fatt.n. 20164E27606  del 01/09/2016 Fornitura materiale didattico per anno scolastico 2016/2017;14-09-2016;2972;0;301;1;Spese correnti;3;Acquisto di beni e servizi;1;Acquisto di beni;2;Altri beni di consumo;999;Altri beni e materiali di consumo n.a.c.;14-09-2016;
805;1;0;"175,13";"175,13";POSTE ITALIANE SPA;Z961438A4F;SALDO Fatt.n. 8716226953  del 01/09/2016 Servizi postali mese di luglio 2016 -  Rendiconto 2088319132;14-09-2016;4800;0;166;1;Spese correnti;3;Acquisto di beni e servizi;2;Acquisto di servizi;16;Servizi amministrativi;2;Spese postali;14-09-2016;
806;1;0;"1.500,00";"1.500,00";Gruppo Musicisti di Vo'; ;Acconto contributo economico anno 2016  -  Liq. SEG n. 75 del 08.09.2016;14-09-2016;4000;0;271;1;Spese correnti;4;Trasferimenti correnti;3;Trasferimenti correnti a Imprese;99;Trasferimenti correnti a altre imprese;999;Trasferimenti correnti a altre imprese;14-09-2016;
807;1;0;"2.300,00";"2.300,00";U.S. COLLI EUGANEI A.S.D.; ;Saldo contributo economico anno 2016  - Liq. SEG  n. 74 del 08.09.2016;14-09-2016;6600;0;264;1;Spese correnti;4;Trasferimenti correnti;4;Trasferimenti correnti a Istituzioni Sociali Private;1;Trasferimenti correnti a Istituzioni Sociali Private;1;Trasferimenti correnti a Istituzioni Sociali Private;14-09-2016;
808;1;0;"2.400,00";"4.400,00";OMESSO NOMINATIVO NEL RISPETTO DELLA NORMATIVA SULLA PROTEZIONE DATI PERSONALI; ;Contributo per Impegnativa di cura domiciliare (ICDm) periodo 1° e 2° trimestre 2016  -  Liq. SEG n. 72 del 07.09.2016;14-09-2016;6710;0;300;1;Spese correnti;4;Trasferimenti correnti;2;Trasferimenti correnti a Famiglie;5;Altri trasferimenti a famiglie;999;Altri trasferimenti a famiglie n.a.c.;14-09-2016;
808;2;0;"2.000,00";"4.400,00";OMESSO NOMINATIVO NEL RISPETTO DELLA NORMATIVA SULLA PROTEZIONE DATI PERSONALI; ;Contributo per Impegnativa di cura domiciliare (ICDm) periodo 1° e 2° trimestre 2016  -  Liq. SEG n. 72 del 07.09.2016;14-09-2016;6710;0;300;1;Spese correnti;4;Trasferimenti correnti;2;Trasferimenti correnti a Famiglie;5;Altri trasferimenti a famiglie;999;Altri trasferimenti a famiglie n.a.c.;14-09-2016;
809;1;0;"100,00";"100,00";S.O.G.I.T.; ;Contributo per servizio di ambulanza con soccorritori in occasione Fiera S.Lorenzo 2016  -  Liq.  SEG n. 73 del 07.09.2016;14-09-2016;8888;0;278;1;Spese correnti;3;Acquisto di beni e servizi;2;Acquisto di servizi;99;Altri servizi;999;Altri servizi diversi n.a.c.;14-09-2016;
810;1;0;"149,64";"149,64";BAR RISTORANTE DA PAOLO;Z491052554;SALDO Fatt.n. 00010/04  del 14/09/2016 Servizio sostitutivo mensa dipendenti mese di agosto 2016;19-09-2016;9375;0;6;1;Spese correnti;3;Acquisto di beni e servizi;2;Acquisto di servizi;99;Altri servizi;999;Altri servizi diversi n.a.c.;19-09-2016;
811;1;0;"404,83";"404,83";MAGAZZINI AMBROSI S.A.S. DI AMBROSI FABIO E TIZIANA;ZD91A8D141;SALDO Fatt.n. 11  del 31/08/2016 fornitura materiale di ferramenta vario;19-09-2016;1300;0;257;1;Spese correnti;3;Acquisto di beni e servizi;1;Acquisto di beni;2;Altri beni di consumo;999;Altri beni e materiali di consumo n.a.c.;19-09-2016;
812;1;0;"6.491,43";"6.491,43";TERMOIDRAULICA BELLUCCO ROBERTINO;Z9A1A37A23;SALDO Fatt.n. 000006-2016-T  del 31/08/2016 Lavori di sistemazione bagni presso impianti sportivi comunali;19-09-2016;11631;0;216;2;Spese in conto capitale;2;Investimenti fissi lordi e acquisto di terreni;1;Beni materiali;9;Beni immobili;16;Impianti sportivi;19-09-2016;
813;1;0;"3.779,56";"3.779,56";CERAMICHE DE SANTI MAURIZIO;Z74A3E78B;SALDO Fatt.n. C33/16  del 01/09/2016 Fornitura e posa materiale per riqualificazione cucina Polo Scolastico;19-09-2016;10350;0;243;2;Spese in conto capitale;2;Investimenti fissi lordi e acquisto di terreni;1;Beni materiali;9;Beni immobili;3;Fabbricati ad uso scolastico;19-09-2016;
814;1;0;"1.378,40";"1.378,40";TONIOLO S.R.L.;Z7819C9CD4;SALDO Fatt.n. FATTPA 11_16  del 31/08/2016 Lavori di sistemazione area esterna Polo Scolastico;19-09-2016;10350;0;218;2;Spese in conto capitale;2;Investimenti fissi lordi e acquisto di terreni;1;Beni materiali;9;Beni immobili;3;Fabbricati ad uso scolastico;19-09-2016;
815;1;0;"549,00";"549,00";ACCATRE S.r.l.;ZB31A66333;SALDO Fatt.n. 1/160912  del 08/09/2016 Servizio redazione pratica di pensione D.M.M. in passweb;19-09-2016;460;0;247;1;Spese correnti;3;Acquisto di beni e servizi;2;Acquisto di servizi;11;Prestazioni professionali e specialistiche;999;Altre prestazioni professionali e specialistiche n.a.c.;19-09-2016;
838;1;0;"200,00";"200,00";ASS.FAM.CADUTI E DISPERSI IN GUERRA -PRES.ZATTARIN ANNA; ;Contributo economico anno 2016 - a.l. seg. n. 52 del 21.07.2016;27-09-2016;7200;0;269;1;Spese correnti;4;Trasferimenti correnti;4;Trasferimenti correnti a Istituzioni Sociali Private;1;Trasferimenti correnti a Istituzioni Sociali Private;1;Trasferimenti correnti a Istituzioni Sociali Private;27-09-2016;
839;1;0;"300,00";"300,00";ASS. COMBATTENTI E REDUCI; ;Contributo economico anno 2016 - A.L. SEG. N. 82 DEL 22.09.2016;27-09-2016;7200;0;270;1;Spese correnti;4;Trasferimenti correnti;4;Trasferimenti correnti a Istituzioni Sociali Private;1;Trasferimenti correnti a Istituzioni Sociali Private;1;Trasferimenti correnti a Istituzioni Sociali Private;27-09-2016;
840;1;0;"100,00";"100,00";S.O.G.I.T.; ;Contributo per servizio di ambulanza con soccorritori in occasione Festa dell'Uva 2016 - a.l. SEG. N. 81 DEL 21.09.2016;27-09-2016;8888;0;314;1;Spese correnti;3;Acquisto di beni e servizi;2;Acquisto di servizi;99;Altri servizi;999;Altri servizi diversi n.a.c.;27-09-2016;
841;1;0;"549,00";"549,00";AMTUR SNC di Turetta Maurizio e Davide;Z931ADA272;SALDO Fatt.n. 3/PA  del 13/09/2016 NOLEGGIO WC. CHIMICI FIERA DI S. LORENZO 2016;27-09-2016;8888;0;279;1;Spese correnti;3;Acquisto di beni e servizi;2;Acquisto di servizi;99;Altri servizi;999;Altri servizi diversi n.a.c.;27-09-2016;
842;1;0;"806,25";"806,25";CASA DI RIPOSO "A. SIMIONATI"; ;SALDO Fatt.n. 106/E  del 31/08/2016 Retta ricovero R.R. mese di agosto 2016;27-09-2016;6875;0;205;1;Spese correnti;3;Acquisto di beni e servizi;2;Acquisto di servizi;99;Altri servizi;999;Altri servizi diversi n.a.c.;27-09-2016;
844;1;0;"90,75";"90,75";VODAFONE OMNITEL B.V.;ZD11381BD3;Spese per contratto telefonia mobile - ricarica Codice Borsellino 348886;04-10-2016;4751;0;88;1;Spese correnti;3;Acquisto di beni e servizi;2;Acquisto di servizi;5;Utenze e canoni;2;Telefonia mobile;04-10-2016;
845;1;0;"1.774,75";"1.774,75";TREVISAN VANESSA; ;Indennita' di carica Sindaco mese di settembre 2016;05-10-2016;10;0;2;1;Spese correnti;3;Acquisto di beni e servizi;2;Acquisto di servizi;1;Organi e incarichi istituzionali dell'amministrazione;1;Organi istituzionali dell'amministrazione - Indennità;05-10-2016;
846;1;0;"177,48";"177,48";CALAON SIMONE; ;Indennita' di carica Vice-Sindaco  settembre 2016;05-10-2016;10;0;3;1;Spese correnti;3;Acquisto di beni e servizi;2;Acquisto di servizi;1;Organi e incarichi istituzionali dell'amministrazione;1;Organi istituzionali dell'amministrazione - Indennità;05-10-2016;
847;1;0;"266,21";"266,21";ZAVATTIERO AGOSTINO; ;Indennita' di carica assessore mese di settembre 2016;05-10-2016;10;0;59;1;Spese correnti;3;Acquisto di beni e servizi;2;Acquisto di servizi;1;Organi e incarichi istituzionali dell'amministrazione;1;Organi istituzionali dell'amministrazione - Indennità;05-10-2016;
848;1;0;"133,11";"133,11";LAZZARETTO ROBERTA; ;Indennita' di carica  assessore mese di settembre 2016;05-10-2016;10;0;58;1;Spese correnti;3;Acquisto di beni e servizi;2;Acquisto di servizi;1;Organi e incarichi istituzionali dell'amministrazione;1;Organi istituzionali dell'amministrazione - Indennità;05-10-2016;
849;1;0;"266,21";"266,21";SANTIMARIA ANDREA; ;Indennita' di carica Assessore settembre 2016;05-10-2016;10;0;5;1;Spese correnti;3;Acquisto di beni e servizi;2;Acquisto di servizi;1;Organi e incarichi istituzionali dell'amministrazione;1;Organi istituzionali dell'amministrazione - Indennità;05-10-2016;
853;1;0;"212,73";"4.022,05";Illumia S.p.A.;Z0E14167CF;SALDO Fatt.n. 16608-PE  del 27/09/2016 Fornitura energia elettrica utenza torretta Piazzetta Spolverato (IT001E35512473) mese di agosto 2016;10-10-2016;7420;0;105;1;Spese correnti;3;Acquisto di beni e servizi;2;Acquisto di servizi;5;Utenze e canoni;4;Energia elettrica;10-10-2016;
853;2;0;"357,34";"4.022,05";Illumia S.p.A.;Z0E14167CF;SALDO Fatt.n. 16607-PE  del 27/09/2016 Fornitura energia elettrica utenza illuminazione pubblica (IT001E04199191) mese di agosto 2016;10-10-2016;7420;0;105;1;Spese correnti;3;Acquisto di beni e servizi;2;Acquisto di servizi;5;Utenze e canoni;4;Energia elettrica;10-10-2016;
853;3;0;"688,90";"4.022,05";Illumia S.p.A.;Z0E14167CF;SALDO Fatt.n. 16600-PE  del 27/09/2016 Fornitura energia elettrica utenza Piazzetta Martiri (POD IT001E32268714) mese di agosto 2016;10-10-2016;7420;0;105;1;Spese correnti;3;Acquisto di beni e servizi;2;Acquisto di servizi;5;Utenze e canoni;4;Energia elettrica;10-10-2016;
853;4;0;"2.763,08";"4.022,05";Illumia S.p.A.;Z0E14167CF;SALDO Fatt.n. 16599-PE  del 27/09/2016 Fornitura energia elettrica utenze illumiazione pubblica mese di agosto 2016;10-10-2016;7420;0;105;1;Spese correnti;3;Acquisto di beni e servizi;2;Acquisto di servizi;5;Utenze e canoni;4;Energia elettrica;10-10-2016;
854;1;0;"450,62";"450,62";Illumia S.p.A.;Z0E14167CF;SALDO Fatt.n. 16606-PE  del 27/09/2016 Fornitura energia elettrica utenza Sede Municipale mese di agosto 2016;10-10-2016;4751;0;96;1;Spese correnti;3;Acquisto di beni e servizi;2;Acquisto di servizi;5;Utenze e canoni;4;Energia elettrica;10-10-2016;
855;1;0;"95,47";"376,95";Illumia S.p.A.;Z0E14167CF;SALDO Fatt.n. 16605-PE  del 27/09/2016 Fornitura energia elettrica utenza impianto sportivo Zovon mese di agosto 2016;10-10-2016;64981;0;101;1;Spese correnti;3;Acquisto di beni e servizi;2;Acquisto di servizi;5;Utenze e canoni;4;Energia elettrica;10-10-2016;
855;2;0;"281,48";"376,95";Illumia S.p.A.;Z0E14167CF;SALDO Fatt.n. 16602-PE  del 27/09/2016 Fornitura energia elettrica utenza impianto sportivo (IT001E04020221) mese di agosto 2016;10-10-2016;64981;0;101;1;Spese correnti;3;Acquisto di beni e servizi;2;Acquisto di servizi;5;Utenze e canoni;4;Energia elettrica;10-10-2016;
856;1;0;"349,98";"349,98";Illumia S.p.A.;Z0E14167CF;SALDO Fatt.n. 16603-PE  del 27/09/2016 Fornitura energia elettrica utenza edificio Piazzetta Martiri mese di agosto 2016;10-10-2016;1405;0;104;1;Spese correnti;3;Acquisto di beni e servizi;2;Acquisto di servizi;5;Utenze e canoni;4;Energia elettrica;10-10-2016;
857;1;0;"102,93";"102,93";Illumia S.p.A.;Z0E14167CF;SALDO Fatt.n. 16604-PE  del 27/09/2016;10-10-2016;1312;0;103;1;Spese correnti;3;Acquisto di beni e servizi;2;Acquisto di servizi;5;Utenze e canoni;4;Energia elettrica;10-10-2016;
858;1;0;"92,00";"92,00";Illumia S.p.A.;Z0E14167CF;ACCONTO Fatt.n. 16601-PE  del 27/09/2016 Fornitura energia elettrica utenza Polo Scolastico mese di agosto 2016;10-10-2016;28001;0;97;1;Spese correnti;3;Acquisto di beni e servizi;2;Acquisto di servizi;5;Utenze e canoni;4;Energia elettrica;10-10-2016;
859;1;0;"92,00";"92,00";Illumia S.p.A.;Z0E14167CF;ACCONTO Fatt.n. 16601-PE  del 27/09/2016 Fornitura energia elettrica utenza Polo Scolastico mese di agosto 2016;10-10-2016;29701;0;98;1;Spese correnti;3;Acquisto di beni e servizi;2;Acquisto di servizi;5;Utenze e canoni;4;Energia elettrica;10-10-2016;
860;1;0;"93,39";"93,39";Illumia S.p.A.;Z0E14167CF;SALDO Fatt.n. 16601-PE  del 27/09/2016 Fornitura energia elettrica utenza Polo Scolastico mese di agosto 2016;10-10-2016;31801;0;99;1;Spese correnti;3;Acquisto di beni e servizi;2;Acquisto di servizi;5;Utenze e canoni;4;Energia elettrica;10-10-2016;
861;1;0;"806,25";"806,25";CASA DI RIPOSO "A. SIMIONATI"; ;SALDO Fatt.n. 120/E  del 30/09/2016 Quota retta di ricovero R.R. mese di settembre 2016;14-10-2016;6875;0;205;1;Spese correnti;3;Acquisto di beni e servizi;2;Acquisto di servizi;99;Altri servizi;999;Altri servizi diversi n.a.c.;14-10-2016;
862;1;0;"453,62";"453,62";POSTE ITALIANE SPA;Z961438A4F;ACCONTO Fatt.n. 8716265472  del 27/09/2016 Servizi postali mese di agosto 2016;14-10-2016;4800;0;166;1;Spese correnti;3;Acquisto di beni e servizi;2;Acquisto di servizi;16;Servizi amministrativi;2;Spese postali;14-10-2016;
863;1;0;"232,75";"232,75";POSTE ITALIANE SPA;Z901438A4F;SALDO Fatt.n. 8716265472  del 27/09/2016 Servizi postali mese di agosto 2016;14-10-2016;4800;0;325;1;Spese correnti;3;Acquisto di beni e servizi;2;Acquisto di servizi;16;Servizi amministrativi;2;Spese postali;14-10-2016;
864;1;0;"654,47";"654,47";CODESS SOCIALE;53979365B3;ACCONTO Fatt.n. 4822/PA  del 20/09/2016 SERVIZIO DI ASSISTENZA SOCIALE E DOMICILIARE mese di agosto 2016;14-10-2016;6980;0;43;1;Spese correnti;3;Acquisto di beni e servizi;2;Acquisto di servizi;15;Contratti di servizio pubblico;9;Contratti di servizio di assistenza sociale domiciliare;14-10-2016;
865;1;0;"2.849,39";"2.849,39";CODESS SOCIALE;53979365B3;SALDO Fatt.n. 4822/PA  del 20/09/2016 SERVIZIO DI ASSISTENZA SOCIALE E DOMICILIARE mese di agosto 2016;14-10-2016;6990;0;44;1;Spese correnti;3;Acquisto di beni e servizi;2;Acquisto di servizi;15;Contratti di servizio pubblico;9;Contratti di servizio di assistenza sociale domiciliare;14-10-2016;
866;1;0;"221,88";"221,88";BAR RISTORANTE DA PAOLO;Z491052554;SALDO Fatt.n. 00011/04  del 12/10/2016 Gestione mensa dipendenti comunali mese di settembre 2016;14-10-2016;9375;0;6;1;Spese correnti;3;Acquisto di beni e servizi;2;Acquisto di servizi;99;Altri servizi;999;Altri servizi diversi n.a.c.;14-10-2016;
867;1;0;"1.002,30";"1.002,30";ZEFIRO SRL;51564640B5;ACCONTO Fatt.n. 28/PA  del 31/08/2016 Servizio di pulizia edifici comunali mese di agosto 2016;14-10-2016;475;0;232;1;Spese correnti;3;Acquisto di beni e servizi;2;Acquisto di servizi;99;Altri servizi;999;Altri servizi diversi n.a.c.;14-10-2016;
868;1;0;"152,00";"152,00";ZEFIRO SRL;51564640B5;SALDO Fatt.n. 28/PA  del 31/08/2016 Servizio di pulizia edifici comunali mese di agosto 2016;14-10-2016;1400;0;236;1;Spese correnti;3;Acquisto di beni e servizi;2;Acquisto di servizi;9;Manutenzione ordinaria e riparazioni;8;Manutenzione ordinaria e riparazioni di beni immobili;14-10-2016;
869;1;0;"1.620,00";"1.620,00";MARTINI LUCIANO SRL;Z70188CBBO;SALDO Fatt.n. 4  del 02/09/2016 Lavori di manutenzione strade comunali;14-10-2016;1302;0;237;1;Spese correnti;3;Acquisto di beni e servizi;2;Acquisto di servizi;9;Manutenzione ordinaria e riparazioni;8;Manutenzione ordinaria e riparazioni di beni immobili;14-10-2016;
870;1;0;"585,60";"585,60";BARBIN IMPIANTI Srl;ZBC1B0E517;SALDO Fatt.n. 65S  del 14/09/2016 Sistemazione pompa di irrigazione campo calcio;14-10-2016;6498;0;312;1;Spese correnti;3;Acquisto di beni e servizi;1;Acquisto di beni;2;Altri beni di consumo;999;Altri beni e materiali di consumo n.a.c.;14-10-2016;
871;1;0;"479,46";"479,46";VENETA SICUREZZA E SEGNALETICA STRADALE  SRL;Z2F199DCC9;SALDO Fatt.n. 78  del 22/09/2016 Fornitura segnaletica verticale per bretella Vo';14-10-2016;11950;0;172;2;Spese in conto capitale;5;Altre spese in conto capitale;99;Altre spese in conto capitale n.a.c.;99;Altre spese in conto capitale n.a.c.;999;Altre spese in conto capitale n.a.c.;14-10-2016;
872;1;0;"1.987,28";"1.987,28";BORGIONE Centro Didattico s.r.l.;ZDF1B06833;SALDO Fatt.n. V3-14518  del 13/09/2016 Fornitura tavoli e sedie per scuole elementari;14-10-2016;2970;0;302;1;Spese correnti;3;Acquisto di beni e servizi;1;Acquisto di beni;2;Altri beni di consumo;999;Altri beni e materiali di consumo n.a.c.;14-10-2016;
873;1;0;"319,20";"386,72";LAZZARETTO ROBERTA; ;Rimborso spese viaggio agli Amministratori Comunali periodo luglio - settembre 2016. A.L. RAG. N. 88 DEL 12.10.2016;14-10-2016;230;0;255;1;Spese correnti;3;Acquisto di beni e servizi;2;Acquisto di servizi;2;"Rappresentanza, organizzazione eventi, pubblicità e servizi per trasferta";2;Indennità di missione e di trasferta;14-10-2016;
873;2;0;"67,52";"386,72";TREVISAN VANESSA; ;Rimborso spese viaggio agli Amministratori Comunali periodo luglio - settembre 2016. A.L. RAG. N. 88 DEL 12.10.2016;14-10-2016;230;0;255;1;Spese correnti;3;Acquisto di beni e servizi;2;Acquisto di servizi;2;"Rappresentanza, organizzazione eventi, pubblicità e servizi per trasferta";2;Indennità di missione e di trasferta;14-10-2016;
874;1;0;"12,28";"12,28";TREVISAN VANESSA; ;Rimborso spese viaggio agli amministratori comunali per il 3' quadrimestre 2016 - a.l. rag. n. 88 del 12.10.2016;14-10-2016;230;0;342;1;Spese correnti;3;Acquisto di beni e servizi;2;Acquisto di servizi;2;"Rappresentanza, organizzazione eventi, pubblicità e servizi per trasferta";2;Indennità di missione e di trasferta;14-10-2016;
875;1;0;"861,48";"3.797,02";COMUNE DI ESTE; ;Quota obbligatoria Distretto Polizia Locale anno 2015 (Art. 11 comma 12 della Convenzione)  Ordinativo di incasso n. 778 riga 1);17-10-2016;2200;0;365;1;Spese correnti;3;Acquisto di beni e servizi;2;Acquisto di servizi;99;Altri servizi;999;Altri servizi diversi n.a.c.;17-10-2016;
875;2;0;"2.935,54";"3.797,02";COMUNE DI ESTE; ;Spese per servizio di Polizia Locale anno 2015  (Ordinativo di incasso n. 778 riga 1);17-10-2016;2200;0;365;1;Spese correnti;3;Acquisto di beni e servizi;2;Acquisto di servizi;99;Altri servizi;999;Altri servizi diversi n.a.c.;17-10-2016;
876;1;0;"239,05";"239,05";E.ON Energia S.p.a.;Z7113FE6B2;SALDO Fatt.n. 40009682  del 03/10/2016 Fornitura gas naturale utenza Sede Municipale (matricola contatore 1545006563) periodo maggio / luglio 2016;21-10-2016;4751;0;91;1;Spese correnti;3;Acquisto di beni e servizi;2;Acquisto di servizi;5;Utenze e canoni;6;Gas;21-10-2016;
877;1;0;"36,42";"36,42";E.ON Energia S.p.a.;Z7113FE6B2;SALDO Fatt.n. 40009683  del 03/10/2016 Fornitura gas naturale utenza Polo Scolastico mese di agosto  2016;21-10-2016;29701;0;93;1;Spese correnti;3;Acquisto di beni e servizi;2;Acquisto di servizi;5;Utenze e canoni;6;Gas;21-10-2016;
897;1;0;"276,08";"276,08";DIPENDENTI COMUNALI DIVERSI; ;RIMBORSO QUOTA SERVIZIO MENSA AI DIPENDENTI PERIODO MAGGIO - SETTEMBRE 2016;21-10-2016;9375;0;8;1;Spese correnti;3;Acquisto di beni e servizi;2;Acquisto di servizi;99;Altri servizi;999;Altri servizi diversi n.a.c.;21-10-2016;
913;1;0;"9.163,56";"9.163,56";S.E.S.A. SPA;Z11182D6F2;SALDO Fatt.n. 2000549  del 31/08/2016 Smaltimento rifiuti mese di agosto 2016;24-10-2016;5780;0;33;1;Spese correnti;3;Acquisto di beni e servizi;2;Acquisto di servizi;15;Contratti di servizio pubblico;5;Contratti di servizio per il conferimento in discarica dei rifiuti;24-10-2016;
914;1;0;"4.999,07";"4.999,07";STUDIO BREDA PATRIZI ZANDONA';Z15B068A9;SALDO Fatt.n. 16/PA  del 28/09/2016 Compenso per progettazione definitiva ristrutturazione impiento sposrtivo comunale;24-10-2016;11970;0;306;2;Spese in conto capitale;5;Altre spese in conto capitale;99;Altre spese in conto capitale n.a.c.;99;Altre spese in conto capitale n.a.c.;999;Altre spese in conto capitale n.a.c.;24-10-2016;
915;1;0;"1.500,00";"1.500,00";MARTINI LUCIANO SRL;Z70188CBBO;ACCONTO Fatt.n. 5  del 30/09/2016 Lavori di sistemazione stradale mese di settembre 2016;24-10-2016;1302;0;322;1;Spese correnti;3;Acquisto di beni e servizi;2;Acquisto di servizi;9;Manutenzione ordinaria e riparazioni;8;Manutenzione ordinaria e riparazioni di beni immobili;24-10-2016;
916;1;0;"2.286,16";"2.286,16";MARTINI LUCIANO SRL;Z70188CBBO;SALDO Fatt.n. 5  del 30/09/2016 Lavori di sistemazione stradale mese di settembre 2016;24-10-2016;7335;0;323;1;Spese correnti;3;Acquisto di beni e servizi;2;Acquisto di servizi;9;Manutenzione ordinaria e riparazioni;8;Manutenzione ordinaria e riparazioni di beni immobili;24-10-2016;
917;1;0;"1.624,13";"1.624,13";Melillo Servizi Ambientali e Cimiteriali s.r.l.;ZE418C2969;SALDO Fatt.n. 3828  del 30/09/2016 Inumazioni e tumulazioni 3' trimestre 2016;24-10-2016;5190;0;294;1;Spese correnti;3;Acquisto di beni e servizi;2;Acquisto di servizi;99;Altri servizi;999;Altri servizi diversi n.a.c.;24-10-2016;
918;1;0;"4.399,45";"4.399,45";COOPERATIVA SOCIALE SERVIZI ASSOCIATI;Z561A7EDC6;SALDO Fatt.n. D-380  del 30/09/2016 Servizio di trasporto scolastico mese di settembre 2016;24-10-2016;3413;0;319;1;Spese correnti;3;Acquisto di beni e servizi;2;Acquisto di servizi;15;Contratti di servizio pubblico;2;Contratti di servizio di trasporto scolastico;24-10-2016;
919;1;0;"488,00";"488,00";ELETTRIKA S.r.l.;Z971B06867;SALDO Fatt.n. 33/PA  del 30/09/2016 Fornitura materiale elettrico settembre 2016;24-10-2016;1300;0;313;1;Spese correnti;3;Acquisto di beni e servizi;1;Acquisto di beni;2;Altri beni di consumo;999;Altri beni e materiali di consumo n.a.c.;24-10-2016;
920;1;0;"1.002,30";"1.002,30";ZEFIRO SRL;51564640B5;ACCONTO Fatt.n. 31/PA  del 30/09/2016 Servizio di pulizia edifici comunali MESE di SETTEMBRE 2016;24-10-2016;475;0;232;1;Spese correnti;3;Acquisto di beni e servizi;2;Acquisto di servizi;99;Altri servizi;999;Altri servizi diversi n.a.c.;24-10-2016;
921;1;0;"263,77";"263,77";ZEFIRO SRL;51564640B5;ACCONTO Fatt.n. 31/PA  del 30/09/2016 Servizio di pulizia edifici comunali MESE di SETTEMBRE 2016;24-10-2016;2973;0;233;1;Spese correnti;3;Acquisto di beni e servizi;2;Acquisto di servizi;99;Altri servizi;999;Altri servizi diversi n.a.c.;24-10-2016;
922;1;0;"300,00";"300,00";ZEFIRO SRL;51564640B5;ACCONTO Fatt.n. 31/PA  del 30/09/2016 Servizio di pulizia edifici comunali MESE di SETTEMBRE 2016;24-10-2016;37601;0;234;1;Spese correnti;3;Acquisto di beni e servizi;2;Acquisto di servizi;99;Altri servizi;999;Altri servizi diversi n.a.c.;24-10-2016;
923;1;0;"152,00";"152,00";ZEFIRO SRL;51564640B5;SALDO Fatt.n. 31/PA  del 30/09/2016 Servizio di pulizia edifici comunali MESE di SETTEMBRE 2016;24-10-2016;1400;0;236;1;Spese correnti;3;Acquisto di beni e servizi;2;Acquisto di servizi;9;Manutenzione ordinaria e riparazioni;8;Manutenzione ordinaria e riparazioni di beni immobili;24-10-2016;
924;1;0;"13.761,04";"13.761,04";DE VIZIA TRANSFER S.P.A.;Z941520100;SALDO Fatt.n. V3-31392  del 30/09/2016 Raccolta e smaltimento rifiuti mese di settembre 2016;25-10-2016;5780;0;215;1;Spese correnti;3;Acquisto di beni e servizi;2;Acquisto di servizi;15;Contratti di servizio pubblico;4;Contratti di servizio per la raccolta rifiuti;25-10-2016;
925;1;0;"100,00";"100,00";REGIONE DEL VENETO; ;Fondo Nazionale per il sostegno all'accesso alle abitazioni in locazione anno 2015 (restituzione somma DGR n. 130 del 10.05.2016);25-10-2016;6850;0;345;1;Spese correnti;4;Trasferimenti correnti;2;Trasferimenti correnti a Famiglie;5;Altri trasferimenti a famiglie;999;Altri trasferimenti a famiglie n.a.c.;25-10-2016;
926;1;0;"167,86";"1.199,92";OMESSO NOMINATIVO NEL RISPETTO DELLA NORMATIVA SULLA PROTEZIONE DATI PERSONALI; ;Fondo Nazionale per il sostegno all'accesso alle abitazioni in locazione anno 2015 - a.l. seg. n. 84 del 30.09.2016;25-10-2016;6850;0;346;1;Spese correnti;4;Trasferimenti correnti;2;Trasferimenti correnti a Famiglie;5;Altri trasferimenti a famiglie;999;Altri trasferimenti a famiglie n.a.c.;25-10-2016;
926;2;0;"797,37";"1.199,92";OMESSO NOMINATIVO NEL RISPETTO DELLA NORMATIVA SULLA PROTEZIONE DATI PERSONALI; ;Fondo Nazionale per il sostegno all'accesso alle abitazioni in locazione anno 2015 - a.l. seg. n. 84 del 30.09.2016;25-10-2016;6850;0;346;1;Spese correnti;4;Trasferimenti correnti;2;Trasferimenti correnti a Famiglie;5;Altri trasferimenti a famiglie;999;Altri trasferimenti a famiglie n.a.c.;25-10-2016;
926;3;0;"234,69";"1.199,92";OMESSO NOMINATIVO NEL RISPETTO DELLA NORMATIVA SULLA PROTEZIONE DATI PERSONALI; ;Fondo Nazionale per il sostegno all'accesso alle abitazioni in locazione anno 2015 - a.l. seg. n. 84 del 30.09.2016;25-10-2016;6850;0;346;1;Spese correnti;4;Trasferimenti correnti;2;Trasferimenti correnti a Famiglie;5;Altri trasferimenti a famiglie;999;Altri trasferimenti a famiglie n.a.c.;25-10-2016;
927;1;0;"320,00";"320,00";OMESSO NOMINATIVO NEL RISPETTO DELLA NORMATIVA SULLA PROTEZIONE DATI PERSONALI; ;Cofinanziamento Fondo Nazionale per il sostegno all'accesso alle abitazioni in locazione anno 2015 - a.l. seg. n. 84 del 30.09.2016;25-10-2016;6935;0;347;1;Spese correnti;4;Trasferimenti correnti;2;Trasferimenti correnti a Famiglie;5;Altri trasferimenti a famiglie;999;Altri trasferimenti a famiglie n.a.c.;25-10-2016;
929;1;0;"278,39";"278,39";TESORERIA PROVINCIALE DELLO STATO - RISCOSSIONE TRIBUTI; ;Liquidazione IVA a debito 3' trimestre 2016 - A.L. RAG. N. 94 DEL 24.10.2016;27-10-2016;9240;0;357;1;Spese correnti;10;Altre spese correnti;3;Versamenti IVA a debito;1;Versamenti IVA a debito per le gestioni commerciali;1;Versamenti IVA a debito per le gestioni commerciali;27-10-2016;
930;1;0;"1.058,06";"1.058,06";OMESSO NOMINATIVO NEL RISPETTO DELLA NORMATIVA SULLA PROTEZIONE DATI PERSONALI; ;Contributo per il sostegno all'accesso alle abitazioni in locazione per l'anno 2014 - acconto - A.L. SEG. N. 95 DEL 26.10.2016;27-10-2016;6850;0;362;1;Spese correnti;4;Trasferimenti correnti;2;Trasferimenti correnti a Famiglie;5;Altri trasferimenti a famiglie;999;Altri trasferimenti a famiglie n.a.c.;27-10-2016;
931;1;0;"778,00";"778,00";OMESSO NOMINATIVO NEL RISPETTO DELLA NORMATIVA SULLA PROTEZIONE DATI PERSONALI; ;Contributo per il sostegno all'accesso alle abitazioni in locazione per l'anno 2014 - SALDO - A.L. SEG. N. 95 DEL 26.10.2016;27-10-2016;6935;0;363;1;Spese correnti;4;Trasferimenti correnti;2;Trasferimenti correnti a Famiglie;5;Altri trasferimenti a famiglie;999;Altri trasferimenti a famiglie n.a.c.;27-10-2016;
932;1;0;"219,60";"219,60";MAPLAST di Mischiari Luca;Z861B72659;SALDO Fatt.n. 375/2016  del 05/10/2016 Fornitura stampante multifunzione per ufficio tributi;27-10-2016;4753;0;336;1;Spese correnti;3;Acquisto di beni e servizi;1;Acquisto di beni;2;Altri beni di consumo;1;"Carta, cancelleria e stampati";27-10-2016;
933;1;0;"219,60";"219,60";MAPLAST di Mischiari Luca;Z2E1B72D06;SALDO Fatt.n. 376/2016  del 05/10/2016 Fornitura stampante multifunzione per ufficio anagrafe;27-10-2016;910;0;337;1;Spese correnti;3;Acquisto di beni e servizi;1;Acquisto di beni;2;Altri beni di consumo;999;Altri beni e materiali di consumo n.a.c.;27-10-2016;
934;1;0;"254,59";"254,59";COMPERIO srl; ;SALDO Fatt.n. 184/E  del 06/10/2016 Fornitura servizio messaggistica integrata a CLAVIS;27-10-2016;3760;0;214;1;Spese correnti;3;Acquisto di beni e servizi;2;Acquisto di servizi;99;Altri servizi;999;Altri servizi diversi n.a.c.;27-10-2016;
935;1;0;"2.362,50";"2.362,50";CONSORZIO BIBLIOTECHE PADOVANE ASSOCIATE; ;Servizio di gestione della biblioteca comunale 3' trimestre 2016 - A.L. 92 DEL 26.10.2016;27-10-2016;3760;0;25;1;Spese correnti;3;Acquisto di beni e servizi;2;Acquisto di servizi;99;Altri servizi;999;Altri servizi diversi n.a.c.;27-10-2016;
936;1;0;"549,00";"549,00";AMTUR SNC di Turetta Maurizio e Davide;ZC71B1AD21;SALDO Fatt.n. 5/PA  del 12/10/2016 Fornitura wc chimici per Festa Uva  2016.;27-10-2016;8888;0;315;1;Spese correnti;3;Acquisto di beni e servizi;2;Acquisto di servizi;99;Altri servizi;999;Altri servizi diversi n.a.c.;27-10-2016;
937;1;0;"1.237,06";"1.237,06";Sodexo Italia Spa;64630250F4;SALDO Fatt.n. 7400039026  del 30/09/2016 Fornitura pasti per alunni scuola primaria mese di settembre 2016;27-10-2016;3406;0;32;1;Spese correnti;3;Acquisto di beni e servizi;2;Acquisto di servizi;15;Contratti di servizio pubblico;6;Contratti di servizio per le mense scolastiche;27-10-2016;
938;1;0;"2.063,34";"2.063,34";Sodexo Italia Spa;64630250F4;SALDO Fatt.n. 7400039025  del 30/09/2016 Fornitura pasti per alunni scuola dell'Infanzia mese di settembre 2016;27-10-2016;3404;0;24;1;Spese correnti;3;Acquisto di beni e servizi;2;Acquisto di servizi;15;Contratti di servizio pubblico;6;Contratti di servizio per le mense scolastiche;27-10-2016;
939;1;0;"3.000,00";"3.000,00";Cartoleria SABRINA di Nessi Sabrina;ZE21ACA33F;ACCONTO Fatt.n. 1PA  del 06/10/2016 Fornitura libri di testo  per alunni scuola primaria anno scolastico  2016/2017;27-10-2016;2950;0;272;1;Spese correnti;3;Acquisto di beni e servizi;1;Acquisto di beni;2;Altri beni di consumo;999;Altri beni e materiali di consumo n.a.c.;27-10-2016;
940;1;0;"651,97";"651,97";Cartoleria SABRINA di Nessi Sabrina;ZE21ACA33F;SALDO Fatt.n. 1PA  del 06/10/2016 Fornitura libri di testo  per alunni scuola primaria anno scolastico  2016/2017;27-10-2016;2950;0;343;1;Spese correnti;3;Acquisto di beni e servizi;1;Acquisto di beni;2;Altri beni di consumo;999;Altri beni e materiali di consumo n.a.c.;27-10-2016;
941;1;0;"24,00";"24,00";ULSS N. 17; ;SALDO Fatt.n. KW  201600000098  del 05/10/2016 Installazione microchip a n. 3 cani randagi;27-10-2016;5037;0;355;1;Spese correnti;3;Acquisto di beni e servizi;2;Acquisto di servizi;15;Contratti di servizio pubblico;11;Contratti di servizio per la lotta al randagismo;27-10-2016;
944;1;0;"1.774,75";"1.774,75";TREVISAN VANESSA; ;Indennita' di carica Sindaco mese di ottobre 2016;02-11-2016;10;0;2;1;Spese correnti;3;Acquisto di beni e servizi;2;Acquisto di servizi;1;Organi e incarichi istituzionali dell'amministrazione;1;Organi istituzionali dell'amministrazione - Indennità;02-11-2016;
945;1;0;"177,48";"177,48";CALAON SIMONE; ;Indennita' di carica Vice-Sindaco  mese di ottobre 2016;02-11-2016;10;0;3;1;Spese correnti;3;Acquisto di beni e servizi;2;Acquisto di servizi;1;Organi e incarichi istituzionali dell'amministrazione;1;Organi istituzionali dell'amministrazione - Indennità;02-11-2016;
946;1;0;"266,21";"266,21";SANTIMARIA ANDREA; ;Indennita' di carica Assessore ottobre  2016;02-11-2016;10;0;5;1;Spese correnti;3;Acquisto di beni e servizi;2;Acquisto di servizi;1;Organi e incarichi istituzionali dell'amministrazione;1;Organi istituzionali dell'amministrazione - Indennità;02-11-2016;
947;1;0;"133,11";"133,11";LAZZARETTO ROBERTA; ;Indennita' di carica  per ottobre 2016;02-11-2016;10;0;58;1;Spese correnti;3;Acquisto di beni e servizi;2;Acquisto di servizi;1;Organi e incarichi istituzionali dell'amministrazione;1;Organi istituzionali dell'amministrazione - Indennità;02-11-2016;
948;1;0;"266,21";"266,21";ZAVATTIERO AGOSTINO; ;Indennita' di carica per ottobre 2016;02-11-2016;10;0;59;1;Spese correnti;3;Acquisto di beni e servizi;2;Acquisto di servizi;1;Organi e incarichi istituzionali dell'amministrazione;1;Organi istituzionali dell'amministrazione - Indennità;02-11-2016;
951;1;0;"350,00";"350,00";ASSOCIAZIONE NOI; ;Contributo economico anno 2016 - A.L. SEG. N. 101 DEL 02.11.2016;03-11-2016;7200;0;268;1;Spese correnti;4;Trasferimenti correnti;4;Trasferimenti correnti a Istituzioni Sociali Private;1;Trasferimenti correnti a Istituzioni Sociali Private;1;Trasferimenti correnti a Istituzioni Sociali Private;03-11-2016;
952;1;0;"2.500,00";"2.500,00";SCUOLA CICLISMO VO' c/o LOVO GRAZIANO; ;Contributo economico anno 2016 - A.L. SEG. N. 101 DEL 02.11.2016;03-11-2016;6600;0;266;1;Spese correnti;4;Trasferimenti correnti;4;Trasferimenti correnti a Istituzioni Sociali Private;1;Trasferimenti correnti a Istituzioni Sociali Private;1;Trasferimenti correnti a Istituzioni Sociali Private;03-11-2016;
953;1;0;"1.600,00";"1.600,00";ASD VELOCE CLUB VO' c/o presidente TREVISAN ROMEO; ;Contributo economico anno 2016 - a.l. SEG. N. 101 DEL 02.11.2016;03-11-2016;6600;0;265;1;Spese correnti;4;Trasferimenti correnti;4;Trasferimenti correnti a Istituzioni Sociali Private;1;Trasferimenti correnti a Istituzioni Sociali Private;1;Trasferimenti correnti a Istituzioni Sociali Private;03-11-2016;
954;1;0;"237,13";"237,13";POSTE ITALIANE SPA;Z901438A4F;SALDO Fatt.n. 8716296504  del 27/10/2016 Fattura Elettronica relativa all'Identificativo Rendiconto 2089175738;03-11-2016;4800;0;325;1;Spese correnti;3;Acquisto di beni e servizi;2;Acquisto di servizi;16;Servizi amministrativi;2;Spese postali;03-11-2016;
955;1;0;"349,10";"449,10";OMESSO NOMINATIVO NEL RISPETTO DELLA NORMATIVA SULLA PROTEZIONE DATI PERSONALI; ;Contributi economici straordinari anno 2016 - A.L. SEG. N. 97 DEL 02.11.2016;03-11-2016;6935;0;372;1;Spese correnti;4;Trasferimenti correnti;2;Trasferimenti correnti a Famiglie;5;Altri trasferimenti a famiglie;999;Altri trasferimenti a famiglie n.a.c.;03-11-2016;
955;2;0;"100,00";"449,10";OMESSO NOMINATIVO NEL RISPETTO DELLA NORMATIVA SULLA PROTEZIONE DATI PERSONALI; ;Contributi economici straordinari anno 2016 - A.L. SEG. N. 97 DEL 02.11.2016;03-11-2016;6935;0;372;1;Spese correnti;4;Trasferimenti correnti;2;Trasferimenti correnti a Famiglie;5;Altri trasferimenti a famiglie;999;Altri trasferimenti a famiglie n.a.c.;03-11-2016;
956;1;0;"83,73";"83,73";COMUNE DI ALBETTONE; ;"Rimborso fornitura libri di testo a favore degli alunni  residenti in Vo',  ma frequentanti la scuola primaria  nel Comune di Albettone - anno scolastico 2016/2017 - a.l. SEG. N. 99 DEL 02.11.2016";03-11-2016;2950;0;371;1;Spese correnti;3;Acquisto di beni e servizi;1;Acquisto di beni;2;Altri beni di consumo;999;Altri beni e materiali di consumo n.a.c.;03-11-2016;
957;1;0;"19,41";"19,41";Cartoleria SABRINA di Nessi Sabrina;ZE21ACA33F;SALDO Fatt.n. 6PA  del 24/10/2016;03-11-2016;2950;0;370;1;Spese correnti;3;Acquisto di beni e servizi;1;Acquisto di beni;2;Altri beni di consumo;999;Altri beni e materiali di consumo n.a.c.;03-11-2016;
958;1;0;"200,00";"200,00";PROVINCIA DI PADOVA; ;Rinnovo licenza software "Clavis" in uso presso la Biblioteca Comunale ANNO 2016 - a.l. seg. n. 96 del 26.10.2016;03-11-2016;3760;0;303;1;Spese correnti;3;Acquisto di beni e servizi;2;Acquisto di servizi;99;Altri servizi;999;Altri servizi diversi n.a.c.;03-11-2016;
959;1;0;"942,00";"942,00";PROVINCIA DI PADOVA; ;Fornitura dei servizi I.C.T. anno 2016 - A.L. RAG. N. 96 DEL 24.10.2016;03-11-2016;555;0;358;1;Spese correnti;3;Acquisto di beni e servizi;2;Acquisto di servizi;19;Servizi informatici e di telecomunicazioni;1;Gestione e manutenzione applicazioni;03-11-2016;
964;1;0;"80,00";"80,00";Cabi Broker Di Assicurazioni Srl;Z8A1AB8F8C;Regolazione Premio relativa alla polizza Infortuni  ITAS MUTUA n. M10918480  per il periodo dal 31/07/2015 al 31/07/2016 - A.L. UTC N. 114 DEL 03.11.2016;03-11-2016;477;0;374;1;Spese correnti;10;Altre spese correnti;4;Premi di assicurazione;99;Altri premi di assicurazione n.a.c.;999;Altri premi di assicurazione n.a.c.;03-11-2016;
965;1;0;"114,77";"471,96";Illumia S.p.A.;Z0E14167CF;SALDO Fatt.n. 18132-PE  del 24/10/2016 Fornitura energia elettrica utenza impianto sportivo Zovon mese di settembre 2016;10-11-2016;64981;0;101;1;Spese correnti;3;Acquisto di beni e servizi;2;Acquisto di servizi;5;Utenze e canoni;4;Energia elettrica;10-11-2016;
965;2;0;"357,19";"471,96";Illumia S.p.A.;Z0E14167CF;SALDO Fatt.n. 18125-PE  del 24/10/2016 Fornitura energia elettrica utenza impianto sportivo mese di settembre 2016;10-11-2016;64981;0;101;1;Spese correnti;3;Acquisto di beni e servizi;2;Acquisto di servizi;5;Utenze e canoni;4;Energia elettrica;10-11-2016;
966;1;0;"107,81";"7.673,53";Illumia S.p.A.;Z0E14167CF;SALDO Fatt.n. 18128-PE  del 24/10/2016 Fornitura energia elettrica utenza illuminazione pubblica (POD IT001E04199192) periodo agosto / settembre 2016;10-11-2016;7420;0;105;1;Spese correnti;3;Acquisto di beni e servizi;2;Acquisto di servizi;5;Utenze e canoni;4;Energia elettrica;10-11-2016;
966;2;0;"127,87";"7.673,53";Illumia S.p.A.;Z0E14167CF;SALDO Fatt.n. 18120-PE  del 24/10/2016 Fornitura energia elettrica utenza illuminazione pubblica (POD IT001E32268714) mese settembre 2016;10-11-2016;7420;0;105;1;Spese correnti;3;Acquisto di beni e servizi;2;Acquisto di servizi;5;Utenze e canoni;4;Energia elettrica;10-11-2016;
966;3;0;"161,04";"7.673,53";Illumia S.p.A.;Z0E14167CF;SALDO Fatt.n. 18124-PE  del 24/10/2016 Fornitura energia elettrica utenza lottizzazione Canaletto (POD IT001E33625246) periodo agosto / settembre 2016;10-11-2016;7420;0;105;1;Spese correnti;3;Acquisto di beni e servizi;2;Acquisto di servizi;5;Utenze e canoni;4;Energia elettrica;10-11-2016;
966;4;0;"179,72";"7.673,53";Illumia S.p.A.;Z0E14167CF;SALDO Fatt.n. 18136-PE  del 24/10/2016 Fornitura energia elettrica utenza torretta Piazzetta Spolverato (POD IT001E35512473) mese settembre 2016;10-11-2016;7420;0;105;1;Spese correnti;3;Acquisto di beni e servizi;2;Acquisto di servizi;5;Utenze e canoni;4;Energia elettrica;10-11-2016;
966;5;0;"357,42";"7.673,53";Illumia S.p.A.;Z0E14167CF;SALDO Fatt.n. 18135-PE  del 24/10/2016 Fornitura energia elettrica utenza illuminazione pubblica (POD IT001E04199191) mese di settembre 2016;10-11-2016;7420;0;105;1;Spese correnti;3;Acquisto di beni e servizi;2;Acquisto di servizi;5;Utenze e canoni;4;Energia elettrica;10-11-2016;
966;6;0;"6.739,67";"7.673,53";Illumia S.p.A.;Z0E14167CF;SALDO Fatt.n. 18119-PE  del 24/10/2016 Fornitura energia elettrica utenze illuminazione pubblica periodo luglio / settembre 2016;10-11-2016;7420;0;105;1;Spese correnti;3;Acquisto di beni e servizi;2;Acquisto di servizi;5;Utenze e canoni;4;Energia elettrica;10-11-2016;
967;1;0;"44,29";"406,67";Illumia S.p.A.;Z0E14167CF;SALDO Fatt.n. 18127-PE  del 24/10/2016 Fornitura energia elettrica utenza Villa Venier (POD IT001E35511792) periodo agosto / settembre 2016;10-11-2016;1312;0;103;1;Spese correnti;3;Acquisto di beni e servizi;2;Acquisto di servizi;5;Utenze e canoni;4;Energia elettrica;10-11-2016;
967;2;0;"44,29";"406,67";Illumia S.p.A.;Z0E14167CF;SALDO Fatt.n. 18131-PE  del 24/10/2016 Fornitura energia elettrica utenza Villa Venier (POD IT001E35511782) periodo agosto / settembre 2016;10-11-2016;1312;0;103;1;Spese correnti;3;Acquisto di beni e servizi;2;Acquisto di servizi;5;Utenze e canoni;4;Energia elettrica;10-11-2016;
967;3;0;"97,53";"406,67";Illumia S.p.A.;Z0E14167CF;SALDO Fatt.n. 18134-PE  del 24/10/2016 Fornitura energia elettrica utenza Villa Venier (POD IT001E04020273) periodo agosto/settembre 2016;10-11-2016;1312;0;103;1;Spese correnti;3;Acquisto di beni e servizi;2;Acquisto di servizi;5;Utenze e canoni;4;Energia elettrica;10-11-2016;
967;4;0;"97,71";"406,67";Illumia S.p.A.;Z0E14167CF;SALDO Fatt.n. 18126-PE  del 24/10/2016 Fornitura energia elettrica utenza Villa Venier (POD IT001E04020277) periodo agosto / settembre 2016;10-11-2016;1312;0;103;1;Spese correnti;3;Acquisto di beni e servizi;2;Acquisto di servizi;5;Utenze e canoni;4;Energia elettrica;10-11-2016;
967;5;0;"122,85";"406,67";Illumia S.p.A.;Z0E14167CF;SALDO Fatt.n. 18130-PE  del 24/10/2016 Fornitura energia elettrica utenza Villa Venier (POD IT001E34674161) mese di settembre 2016;10-11-2016;1312;0;103;1;Spese correnti;3;Acquisto di beni e servizi;2;Acquisto di servizi;5;Utenze e canoni;4;Energia elettrica;10-11-2016;
968;1;0;"364,23";"364,23";Illumia S.p.A.;Z0E14167CF;SALDO Fatt.n. 18133-PE  del 24/10/2016 Fornitura energia elettrica utenza Sede Municipale mese di settembre 2016;10-11-2016;4751;0;96;1;Spese correnti;3;Acquisto di beni e servizi;2;Acquisto di servizi;5;Utenze e canoni;4;Energia elettrica;10-11-2016;
969;1;0;"57,49";"156,22";Illumia S.p.A.;Z0E14167CF;SALDO Fatt.n. 18121-PE  del 24/10/2016 Fornitura energia elettrica utenza ex scuola Vo' Vecchio (POD IT001E04020269) periodo agosto / settembre 2016;10-11-2016;1330;0;376;1;Spese correnti;3;Acquisto di beni e servizi;2;Acquisto di servizi;5;Utenze e canoni;4;Energia elettrica;10-11-2016;
969;2;0;"98,73";"156,22";Illumia S.p.A.;Z0E14167CF;SALDO Fatt.n. 18123-PE  del 24/10/2016 Fornitura energia elettrica utenza ex scuola Zovon (POD IT001E04020354) periodo agosto / settembre 2016;10-11-2016;1330;0;376;1;Spese correnti;3;Acquisto di beni e servizi;2;Acquisto di servizi;5;Utenze e canoni;4;Energia elettrica;10-11-2016;
970;1;0;"154,43";"154,43";Illumia S.p.A.;Z0E14167CF;SALDO Fatt.n. 18137-PE  del 24/10/2016 Fornitura energia elettrica utenza magazzino periodo agosto / settembre 2016;10-11-2016;78701;0;102;1;Spese correnti;3;Acquisto di beni e servizi;2;Acquisto di servizi;5;Utenze e canoni;4;Energia elettrica;10-11-2016;
971;1;0;"367,95";"367,95";Illumia S.p.A.;Z0E14167CF;SALDO Fatt.n. 18129-PE  del 24/10/2016 Fornitura energia elettrica immobile Piazzetta Martiri mese di settembre 2016;10-11-2016;1405;0;104;1;Spese correnti;3;Acquisto di beni e servizi;2;Acquisto di servizi;5;Utenze e canoni;4;Energia elettrica;10-11-2016;
972;1;0;"196,00";"196,00";Illumia S.p.A.;Z0E14167CF;ACCONTO Fatt.n. 18122-PE  del 24/10/2016 Fornitura energia elettrica utenza Polo Scolastico mese di settembre 2016;10-11-2016;28001;0;97;1;Spese correnti;3;Acquisto di beni e servizi;2;Acquisto di servizi;5;Utenze e canoni;4;Energia elettrica;10-11-2016;
973;1;0;"196,00";"196,00";Illumia S.p.A.;Z0E14167CF;ACCONTO Fatt.n. 18122-PE  del 24/10/2016 Fornitura energia elettrica utenza Polo Scolastico mese di settembre 2016;10-11-2016;29701;0;98;1;Spese correnti;3;Acquisto di beni e servizi;2;Acquisto di servizi;5;Utenze e canoni;4;Energia elettrica;10-11-2016;
974;1;0;"195,95";"195,95";Illumia S.p.A.;Z0E14167CF;SALDO Fatt.n. 18122-PE  del 24/10/2016 Fornitura energia elettrica utenza Polo Scolastico mese di settembre 2016;10-11-2016;31801;0;99;1;Spese correnti;3;Acquisto di beni e servizi;2;Acquisto di servizi;5;Utenze e canoni;4;Energia elettrica;10-11-2016;
976;1;0;"13,20";"13,20";ECONOMO COMUNALE; ;Rifusione buoni economato n. 44 e 45p - A.L. RAG. N. 102 DEL 11.11.2016;14-11-2016;230;0;177;1;Spese correnti;3;Acquisto di beni e servizi;2;Acquisto di servizi;2;"Rappresentanza, organizzazione eventi, pubblicità e servizi per trasferta";2;Indennità di missione e di trasferta;14-11-2016;
977;1;0;"6,00";"6,00";ECONOMO COMUNALE; ;Rifusione buoni economato n. 45p 53 - A.L. RAG. N. 102 DEL 11.11.2016;14-11-2016;230;0;308;1;Spese correnti;3;Acquisto di beni e servizi;2;Acquisto di servizi;2;"Rappresentanza, organizzazione eventi, pubblicità e servizi per trasferta";2;Indennità di missione e di trasferta;14-11-2016;
978;1;0;"10,00";"10,00";ECONOMO COMUNALE; ;Rifusione buono economato n. 46p - A.L. RAG. N. 102 DEL 11.11.2016;14-11-2016;445;0;125;1;Spese correnti;3;Acquisto di beni e servizi;2;Acquisto di servizi;4;Acquisto di servizi per formazione e addestramento del personale dell'ente;2;Acquisto di servizi per formazione generica;14-11-2016;
979;1;0;"200,00";"200,00";ECONOMO COMUNALE; ;Rifusione buoni economato n. 46p 47p - A.L. RAG. N. 102 DEL 11.11.2016;14-11-2016;445;0;178;1;Spese correnti;3;Acquisto di beni e servizi;2;Acquisto di servizi;4;Acquisto di servizi per formazione e addestramento del personale dell'ente;2;Acquisto di servizi per formazione generica;14-11-2016;
980;1;0;"32,00";"32,00";ECONOMO COMUNALE; ;Rifusione buoni economato n. 47p - A.L. RAG. N. 102 DEL 11.11.2016;14-11-2016;445;0;331;1;Spese correnti;3;Acquisto di beni e servizi;2;Acquisto di servizi;4;Acquisto di servizi per formazione e addestramento del personale dell'ente;2;Acquisto di servizi per formazione generica;14-11-2016;
981;1;0;"21,40";"21,40";ECONOMO COMUNALE; ;Rifusione buoni economato n. 41 43 52 57 - A.L. RAG. N. 102 DEL 11.11.2016;14-11-2016;1305;0;113;1;Spese correnti;3;Acquisto di beni e servizi;1;Acquisto di beni;2;Altri beni di consumo;999;Altri beni e materiali di consumo n.a.c.;14-11-2016;
982;1;0;"202,64";"202,64";ECONOMO COMUNALE; ;Rifusione buoni economato n. 42 48 49 50 51 54p - A.L. RAG. N. 102 DEL 11.11.2016;14-11-2016;4754;0;182;1;Spese correnti;3;Acquisto di beni e servizi;1;Acquisto di beni;2;Altri beni di consumo;999;Altri beni e materiali di consumo n.a.c.;14-11-2016;
983;1;0;"127,71";"127,71";ECONOMO COMUNALE; ;Rifusione buoni economato n. 54p 56 - A.L. RAG. N. 102 DEL 11.11.2016;14-11-2016;4754;0;309;1;Spese correnti;3;Acquisto di beni e servizi;1;Acquisto di beni;2;Altri beni di consumo;999;Altri beni e materiali di consumo n.a.c.;14-11-2016;
984;1;0;"5,40";"5,40";ECONOMO COMUNALE; ;Rifusione buoni economato n. 55 - A.L. RAG. N. 102 del 11.11.2016;14-11-2016;29702;0;186;1;Spese correnti;3;Acquisto di beni e servizi;1;Acquisto di beni;2;Altri beni di consumo;999;Altri beni e materiali di consumo n.a.c.;14-11-2016;
985;1;0;"117,49";"117,49";MyO srl;ZBB1B8EAE7;SALDO Fatt.n. 2040/160028779  del 31/10/2016 Fornitura software kit elezioni referendum;14-11-2016;1030;0;344;1;Spese correnti;3;Acquisto di beni e servizi;1;Acquisto di beni;2;Altri beni di consumo;10;Beni per consultazioni elettorali;14-11-2016;
986;1;0;"250,00";"250,00";SERVIZI FUNEBRI MANDRUZZATO SNC; ;SALDO Fatt.n. P/1  del 04/10/2016 Servizio recupero salma S.A. del 18.06.2016;14-11-2016;5200;0;260;1;Spese correnti;3;Acquisto di beni e servizi;2;Acquisto di servizi;99;Altri servizi;999;Altri servizi diversi n.a.c.;14-11-2016;
987;1;0;"51,80";"51,80";COMUNE DI ESTE; ;Servizio di vigilanza in occasione  della Fiera di San Lorenzo 2016 - a.l. seg. n. 91 del 26.10.2016;14-11-2016;2200;0;280;1;Spese correnti;3;Acquisto di beni e servizi;2;Acquisto di servizi;99;Altri servizi;999;Altri servizi diversi n.a.c.;14-11-2016;
988;1;0;"774,00";"941,08";COMUNE DI ESTE; ;Servizio di vigilanza in occasione  della Festa dell'Uva 2016 - A.L. SEG. N. 91 DEL 26.10.2016;14-11-2016;2200;0;320;1;Spese correnti;3;Acquisto di beni e servizi;2;Acquisto di servizi;99;Altri servizi;999;Altri servizi diversi n.a.c.;14-11-2016;
988;2;0;"167,08";"941,08";COMUNE DI SANT'URBANO; ;Servizio di vigilanza in occasione  della Festa dell'Uva 2016 - A.L. SEG. N. 91 DEL 26.10.2016;14-11-2016;2200;0;320;1;Spese correnti;3;Acquisto di beni e servizi;2;Acquisto di servizi;99;Altri servizi;999;Altri servizi diversi n.a.c.;14-11-2016;
989;1;0;"3,20";"3,20";Equitalia Nord Spa; ;Commissioni su incassi IMU violazioni anni d'imposta 2012/2013 -  Ordinativo n. 849;15-11-2016;1477;0;175;1;Spese correnti;3;Acquisto di beni e servizi;2;Acquisto di servizi;99;Altri servizi;999;Altri servizi diversi n.a.c.;15-11-2016;
990;1;0;"658,80";"658,80";DE VIZIA TRANSFER S.P.A.;ZA01AEA1EE;SALDO Fatt.n. V3-31458  del 30/09/2016 Raccolta e conferimento RSU Fiera di S. Lorenzo e festa dell'Uva 2016;16-11-2016;5780;0;295;1;Spese correnti;3;Acquisto di beni e servizi;2;Acquisto di servizi;15;Contratti di servizio pubblico;4;Contratti di servizio per la raccolta rifiuti;16-11-2016;
991;1;0;"4.263,90";"4.263,90";BARBIN IMPIANTI Srl;ZEC1B24F13;SALDO Fatt.n. 71S  del 13/10/2016 Riparazione guasto pubblica illuminazione;16-11-2016;1302;0;318;1;Spese correnti;3;Acquisto di beni e servizi;2;Acquisto di servizi;9;Manutenzione ordinaria e riparazioni;8;Manutenzione ordinaria e riparazioni di beni immobili;16-11-2016;
992;1;0;"793,00";"793,00";ZEFIRO SRL;Z1F1B24EBA;SALDO Fatt.n. 38/PA  del 30/09/2016 Servizio di pulizie straordinarie cucina Polo Scolastico;16-11-2016;1302;0;317;1;Spese correnti;3;Acquisto di beni e servizi;2;Acquisto di servizi;9;Manutenzione ordinaria e riparazioni;8;Manutenzione ordinaria e riparazioni di beni immobili;16-11-2016;
993;1;0;"8.400,92";"8.400,92";S.E.S.A. SPA;Z11182D6F2;SALDO Fatt.n. 2000620  del 30/09/2016 Smaltimento rifiuti mese di settembre 2016;16-11-2016;5780;0;33;1;Spese correnti;3;Acquisto di beni e servizi;2;Acquisto di servizi;15;Contratti di servizio pubblico;5;Contratti di servizio per il conferimento in discarica dei rifiuti;16-11-2016;
995;1;0;"410,53";"410,53";BELLETTI srl;Z951834219;ACCONTO Fatt.n. FatPAM 000078-2016-3  del 01/08/2016 Manutenzione ascensori villa venier e municipio. Periodo 12.10.2015 -30.06.2016;16-11-2016;1310;0;50;1;Spese correnti;3;Acquisto di beni e servizi;2;Acquisto di servizi;9;Manutenzione ordinaria e riparazioni;8;Manutenzione ordinaria e riparazioni di beni immobili;16-11-2016;
996;1;0;"489,22";"489,22";BELLETTI srl;Z951834219;SALDO Fatt.n. FatPAM 000078-2016-3  del 01/08/2016 Manutenzione ascensori villa venier e municipio. Periodo 12.10.2015 -30.06.2016;16-11-2016;476;0;51;1;Spese correnti;3;Acquisto di beni e servizi;2;Acquisto di servizi;9;Manutenzione ordinaria e riparazioni;8;Manutenzione ordinaria e riparazioni di beni immobili;16-11-2016;
997;1;0;"4.093,63";"4.093,63";Sodexo Italia Spa;64630250F4;SALDO Fatt.n. 7400044512  del 31/10/2016 Pasti alunni ed insegnanti scuola dell'infanzia mese di ottobre 2016;18-11-2016;3404;0;24;1;Spese correnti;3;Acquisto di beni e servizi;2;Acquisto di servizi;15;Contratti di servizio pubblico;6;Contratti di servizio per le mense scolastiche;18-11-2016;
998;1;0;"2.530,78";"2.530,78";Sodexo Italia Spa;64630250F4;SALDO Fatt.n. 7400044513  del 31/10/2016 Fornitura pasti alunni scuole elementari mese di ottobre 2016;18-11-2016;3406;0;32;1;Spese correnti;3;Acquisto di beni e servizi;2;Acquisto di servizi;15;Contratti di servizio pubblico;6;Contratti di servizio per le mense scolastiche;18-11-2016;
999;1;0;"170,80";"170,80";TIPOGRAFIA DUE G SNC DI GUERRA R.E GUERRA G.;Z001AC8B97;SALDO Fatt.n. 000004-2016-PA  del 03/11/2016 Fornitura striscione occhiellato 4 x 1 mt per Pattaro Francesca;18-11-2016;30;0;262;1;Spese correnti;3;Acquisto di beni e servizi;1;Acquisto di beni;2;Altri beni di consumo;9;Beni per attività di rappresentanza;18-11-2016;
1000;1;0;"183,00";"183,00";GRAFICHE E. GASPARI S.R.L.;Z591B2D7F0;SALDO Fatt.n. 16880  del 31/10/2016 Forntura fogli di stato civile e registro unioni civili per l'anno 2017;18-11-2016;910;0;381;1;Spese correnti;3;Acquisto di beni e servizi;1;Acquisto di beni;2;Altri beni di consumo;999;Altri beni e materiali di consumo n.a.c.;18-11-2016;
1001;1;0;"806,25";"806,25";CASA DI RIPOSO "A. SIMIONATI"; ;SALDO Fatt.n. 134/E  del 31/10/2016 Quota retta ricovero R.R. mese di ottobre 2016;18-11-2016;6875;0;205;1;Spese correnti;3;Acquisto di beni e servizi;2;Acquisto di servizi;99;Altri servizi;999;Altri servizi diversi n.a.c.;18-11-2016;
1002;1;0;"1.782,87";"1.782,87";CODESS SOCIALE;53979365B3;ACCONTO Fatt.n. 5543/PA  del 04/11/2016 SERVIZIO DI ASSISTENZA SOCIALE E DOMICILIARE mese di settembre 2016;18-11-2016;6980;0;43;1;Spese correnti;3;Acquisto di beni e servizi;2;Acquisto di servizi;15;Contratti di servizio pubblico;9;Contratti di servizio di assistenza sociale domiciliare;18-11-2016;
1003;1;0;"2.739,10";"2.739,10";CODESS SOCIALE;53979365B3;SALDO Fatt.n. 5543/PA  del 04/11/2016 SERVIZIO DI ASSISTENZA SOCIALE E DOMICILIARE mese di settembre 2016;18-11-2016;6990;0;44;1;Spese correnti;3;Acquisto di beni e servizi;2;Acquisto di servizi;15;Contratti di servizio pubblico;9;Contratti di servizio di assistenza sociale domiciliare;18-11-2016;
1004;1;0;"45.000,00";"45.000,00";REGIONE  VENETO; ;Alluvione 2010 - restituzione acconto commissariale per: somme accertate da restituire di cui al DEC nn. 134/2013 - a.l. UTC N. 121 DEL 17.11.2016;18-11-2016;11900;0;390;2;Spese in conto capitale;5;Altre spese in conto capitale;4;Altri rimborsi in conto capitale di somme non dovute o incassate in eccesso;2;Rimborsi in conto capitale ad Amministrazioni Locali di somme non dovute o incassate in eccesso;1;Rimborsi in conto capitale ad Amministrazioni Locali di somme non dovute o incassate in eccesso;18-11-2016;
1005;1;0;"3.219,56";"3.219,56";ENEL SOLE Srl;ZE31BA6A43;Corrispettivo per acquisizione impianti di pubblica illuminazione di proprieta' della Societa' Enel Sole S.r.l. - A.L. UTC N. 120 DEL 17.11.2016;18-11-2016;11940;0;354;2;Spese in conto capitale;5;Altre spese in conto capitale;99;Altre spese in conto capitale n.a.c.;99;Altre spese in conto capitale n.a.c.;999;Altre spese in conto capitale n.a.c.;18-11-2016;
1020;1;0;"51,87";"51,87";DIPENDENTI COMUNALI DIVERSI; ;Compenso lavoro straordinario Santi in occasione Fiera S. Lorenzo 2016;21-11-2016;2200;0;280;1;Spese correnti;3;Acquisto di beni e servizi;2;Acquisto di servizi;99;Altri servizi;999;Altri servizi diversi n.a.c.;21-11-2016;
1021;1;0;"161,84";"161,84";DIPENDENTI COMUNALI DIVERSI; ;Compenso lavoro straordinario Santi in occasione Festa Uva 2016;21-11-2016;2200;0;320;1;Spese correnti;3;Acquisto di beni e servizi;2;Acquisto di servizi;99;Altri servizi;999;Altri servizi diversi n.a.c.;21-11-2016;
1038;1;0;"208,17";"416,34";ENEL SOLE Srl;ZEE1381BCC;SALDO Fatt.n. 1630056534  del 31/10/2016 Gestione impianti di illuminazione pubblica di proprieta' Enel Sole mese di settembre 2016;23-11-2016;7420;0;42;1;Spese correnti;3;Acquisto di beni e servizi;2;Acquisto di servizi;5;Utenze e canoni;4;Energia elettrica;23-11-2016;
1038;2;0;"208,17";"416,34";ENEL SOLE Srl;ZEE1381BCC;SALDO Fatt.n. 1630056513  del 31/10/2016 Gestione impianti di illuminazione pubblica di proprieta' Enel Sole mese di ottobre 2016;23-11-2016;7420;0;42;1;Spese correnti;3;Acquisto di beni e servizi;2;Acquisto di servizi;5;Utenze e canoni;4;Energia elettrica;23-11-2016;
1039;1;0;"165,30";"165,30";VODAFONE OMNITEL B.V.;ZD11381BD3;SALDO Fatt.n. AG17157129  del 03/11/2016 Spese per contratto telefonia mobile periodo dal 03.09.2016 al 28.10.2016;23-11-2016;4751;0;88;1;Spese correnti;3;Acquisto di beni e servizi;2;Acquisto di servizi;5;Utenze e canoni;2;Telefonia mobile;23-11-2016;
1040;1;0;"246,45";"246,45";E.ON Energia S.p.a.;Z7113FE6B2;SALDO Fatt.n. 40010733  del 02/11/2016 Fornitura gas metano utenza Sede municipale (matricola contatore 1545006563) periodo dal 01.08.2016 al 30.09.2016;23-11-2016;4751;0;91;1;Spese correnti;3;Acquisto di beni e servizi;2;Acquisto di servizi;5;Utenze e canoni;6;Gas;23-11-2016;
1041;1;0;"35,42";"35,42";E.ON Energia S.p.a.;Z711FE6B2;SALDO Fatt.n. 40010734  del 02/11/2016 Fornitura gas naturale utenza Polo Scolastico periodo dal 01.08.2016 al 30.09.2016;23-11-2016;28001;0;92;1;Spese correnti;3;Acquisto di beni e servizi;2;Acquisto di servizi;5;Utenze e canoni;6;Gas;23-11-2016;
1042;1;0;"24,36";"24,36";E.ON Energia S.p.a.;Z7113FE6B2;SALDO Fatt.n. 40010780  del 02/11/2016 Fornitura gas naturale utenza Villa Venier periodo dal 01.09.2016 al 30.09.2016;23-11-2016;1312;0;95;1;Spese correnti;3;Acquisto di beni e servizi;2;Acquisto di servizi;5;Utenze e canoni;6;Gas;23-11-2016;
1043;1;0;"9,76";"9,76";E.ON Energia S.p.a.;Z7113FE6B2;SALDO Fatt.n. 40010735  del 02/11/2016 Fornitura gas metano utenza immobile Piazzetta Martiri periodo 28.08.2016 al 28.09.2016;23-11-2016;1405;0;90;1;Spese correnti;3;Acquisto di beni e servizi;2;Acquisto di servizi;5;Utenze e canoni;6;Gas;23-11-2016;
1044;1;0;"377,86";"377,86";MyO srl;Z151BE5D7D;SALDO Fatt.n. 2040/160031357  del 25/11/2016 Fornitura cancelleria per uffici;30-11-2016;4753;0;380;1;Spese correnti;3;Acquisto di beni e servizi;1;Acquisto di beni;2;Altri beni di consumo;1;"Carta, cancelleria e stampati";30-11-2016;
1045;1;0;"164,70";"164,70";IMQ SPA;Z861944D10;SALDO Fatt.n. 11626249  del 14/10/2016 Collaudo/Verifica impianti elevatori Villa Venier;30-11-2016;1310;0;151;1;Spese correnti;3;Acquisto di beni e servizi;2;Acquisto di servizi;9;Manutenzione ordinaria e riparazioni;8;Manutenzione ordinaria e riparazioni di beni immobili;30-11-2016;
1046;1;0;"164,70";"164,70";IMQ SPA;Z861944D10;SALDO Fatt.n. 11626250  del 14/10/2016 Collaudo/Verifica impianti elevatori Municipio Vo';30-11-2016;476;0;152;1;Spese correnti;3;Acquisto di beni e servizi;2;Acquisto di servizi;9;Manutenzione ordinaria e riparazioni;8;Manutenzione ordinaria e riparazioni di beni immobili;30-11-2016;
1047;1;0;"1.213,90";"1.213,90";BARBIN IMPIANTI Srl;ZCA1AD03BA;SALDO Fatt.n. 75S  del 31/10/2016 Lavori elettrici cucina polo scolastico;30-11-2016;10350;0;275;2;Spese in conto capitale;2;Investimenti fissi lordi e acquisto di terreni;1;Beni materiali;9;Beni immobili;3;Fabbricati ad uso scolastico;30-11-2016;
1048;1;0;"230,58";"230,58";SICIT BITUMI SRL;Z4918F625E;SALDO Fatt.n. 000528-0C7  del 28/10/2016 Fornitura conglomerato bituminoso a freddo;30-11-2016;7335;0;134;1;Spese correnti;3;Acquisto di beni e servizi;2;Acquisto di servizi;9;Manutenzione ordinaria e riparazioni;8;Manutenzione ordinaria e riparazioni di beni immobili;30-11-2016;
1049;1;0;"260,35";"260,35";MAGAZZINI AMBROSI S.A.S. DI AMBROSI FABIO E TIZIANA;ZD91A8D141;SALDO Fatt.n. 12  del 31/10/2016 Fornitura materiale di ferramenta per piccole manutenzioni;30-11-2016;1300;0;257;1;Spese correnti;3;Acquisto di beni e servizi;1;Acquisto di beni;2;Altri beni di consumo;999;Altri beni e materiali di consumo n.a.c.;30-11-2016;
1050;1;0;"13.761,04";"13.761,04";DE VIZIA TRANSFER S.P.A.;Z941520100;"SALDO Fatt.n. V3-31602  del 31/10/2016 Raccolta, trasporto e conferimento RSU mese di ottobre 2016";30-11-2016;5780;0;334;1;Spese correnti;3;Acquisto di beni e servizi;2;Acquisto di servizi;15;Contratti di servizio pubblico;4;Contratti di servizio per la raccolta rifiuti;30-11-2016;
1051;1;0;"170,28";"170,28";BAR RISTORANTE DA PAOLO;Z491052554;SALDO Fatt.n. 00012/04  del 18/11/2016 Gestione mensa dipendenti comunali mese di ottobre 2016;30-11-2016;9375;0;6;1;Spese correnti;3;Acquisto di beni e servizi;2;Acquisto di servizi;99;Altri servizi;999;Altri servizi diversi n.a.c.;30-11-2016;
1052;1;0;"15.000,00";"15.000,00";CONSORZIO DI COMPARTO AMBITO UNITARIO P.I.P. 2; ;Rimborso somma versata al Comune in data 23.11.2012 dal Consorzio di Comparto Ambito Unitario P.I.P. 2 - A.L. UTC N. 122 DEL 18.11.2016;30-11-2016;10355;0;430;2;Spese in conto capitale;5;Altre spese in conto capitale;99;Altre spese in conto capitale n.a.c.;99;Altre spese in conto capitale n.a.c.;999;Altre spese in conto capitale n.a.c.;30-11-2016;
1055;1;0;"1.774,75";"1.774,75";TREVISAN VANESSA; ;Indennita' di carica Sindaco novembre 2016;01-12-2016;10;0;2;1;Spese correnti;3;Acquisto di beni e servizi;2;Acquisto di servizi;1;Organi e incarichi istituzionali dell'amministrazione;1;Organi istituzionali dell'amministrazione - Indennità;01-12-2016;
1056;1;0;"177,48";"177,48";CALAON SIMONE; ;Indennita' di carica Vice-Sindaco  novembre 2016;01-12-2016;10;0;3;1;Spese correnti;3;Acquisto di beni e servizi;2;Acquisto di servizi;1;Organi e incarichi istituzionali dell'amministrazione;1;Organi istituzionali dell'amministrazione - Indennità;01-12-2016;
1057;1;0;"133,11";"133,11";LAZZARETTO ROBERTA; ;Indennita' di carica  assessore mese di novembre 2016;01-12-2016;10;0;58;1;Spese correnti;3;Acquisto di beni e servizi;2;Acquisto di servizi;1;Organi e incarichi istituzionali dell'amministrazione;1;Organi istituzionali dell'amministrazione - Indennità;01-12-2016;
1058;1;0;"266,21";"266,21";SANTIMARIA ANDREA; ;Indennita' di carica Assessore mese di novembre 2016;01-12-2016;10;0;5;1;Spese correnti;3;Acquisto di beni e servizi;2;Acquisto di servizi;1;Organi e incarichi istituzionali dell'amministrazione;1;Organi istituzionali dell'amministrazione - Indennità;01-12-2016;
1059;1;0;"266,21";"266,21";ZAVATTIERO AGOSTINO; ;Indennita' di carica assessore mese di novembre 2016;01-12-2016;10;0;59;1;Spese correnti;3;Acquisto di beni e servizi;2;Acquisto di servizi;1;Organi e incarichi istituzionali dell'amministrazione;1;Organi istituzionali dell'amministrazione - Indennità;01-12-2016;
1062;1;0;"100,00";"810,00";BAROLO ANGELA; ;Borsa di studio ad alunni di 3^ media di Vo'  - A.S. 2015/2016. - A.L. SEG. N. 110 DEL 16.11.2016;01-12-2016;3415;0;281;1;Spese correnti;4;Trasferimenti correnti;2;Trasferimenti correnti a Famiglie;5;Altri trasferimenti a famiglie;999;Altri trasferimenti a famiglie n.a.c.;01-12-2016;
1062;2;0;"150,00";"810,00";CALAON ANNA; ;Borsa di studio ad alunni di 3^ media di Vo'  - A.S. 2015/2016. - A.L. SEG. N. 110 DEL 16.11.2016;01-12-2016;3415;0;281;1;Spese correnti;4;Trasferimenti correnti;2;Trasferimenti correnti a Famiglie;5;Altri trasferimenti a famiglie;999;Altri trasferimenti a famiglie n.a.c.;01-12-2016;
1062;3;0;"100,00";"810,00";CAMARASAN ALINA RAMONA; ;Borsa di studio ad alunni di 3^ media di Vo'  - A.S. 2015/2016. - A.L. SEG. N. 110 DEL 16.11.2016;01-12-2016;3415;0;281;1;Spese correnti;4;Trasferimenti correnti;2;Trasferimenti correnti a Famiglie;5;Altri trasferimenti a famiglie;999;Altri trasferimenti a famiglie n.a.c.;01-12-2016;
1062;4;0;"100,00";"810,00";CORON MARTINA; ;Borsa di studio ad alunni di 3^ media di Vo'  - A.S. 2015/2016. - A.L. SEG. N. 110 DEL 16.11.2016;01-12-2016;3415;0;281;1;Spese correnti;4;Trasferimenti correnti;2;Trasferimenti correnti a Famiglie;5;Altri trasferimenti a famiglie;999;Altri trasferimenti a famiglie n.a.c.;01-12-2016;
1062;5;0;"100,00";"810,00";PIGNOTTI ELENA; ;Borsa di studio ad alunni di 3^ media di Vo'  - A.S. 2015/2016. - A.L. SEG. N. 110 DEL 16.11.2016;01-12-2016;3415;0;281;1;Spese correnti;4;Trasferimenti correnti;2;Trasferimenti correnti a Famiglie;5;Altri trasferimenti a famiglie;999;Altri trasferimenti a famiglie n.a.c.;01-12-2016;
1062;6;0;"130,00";"810,00";SOW FATOU; ;Borsa di studio ad alunni di 3^ media di Vo'  - A.S. 2015/2016. - A.L. SEG. N. 110 DEL 16.11.2016;01-12-2016;3415;0;281;1;Spese correnti;4;Trasferimenti correnti;2;Trasferimenti correnti a Famiglie;5;Altri trasferimenti a famiglie;999;Altri trasferimenti a famiglie n.a.c.;01-12-2016;
1062;7;0;"130,00";"810,00";SPOLVERATO MARCO; ;Borsa di studio ad alunni di 3^ media di Vo'  - A.S. 2015/2016. - A.L. SEG. N. 110 DEL 16.11.2016;01-12-2016;3415;0;281;1;Spese correnti;4;Trasferimenti correnti;2;Trasferimenti correnti a Famiglie;5;Altri trasferimenti a famiglie;999;Altri trasferimenti a famiglie n.a.c.;01-12-2016;
1063;1;0;"1.466,92";"1.466,92";CODESS SOCIALE;53979365B3;ACCONTO Fatt.n. 5805/PA  del 18/11/2016 SERVIZIO DI ASSISTENZA SOCIALE E DOMICILIARE;02-12-2016;6980;0;43;1;Spese correnti;3;Acquisto di beni e servizi;2;Acquisto di servizi;15;Contratti di servizio pubblico;9;Contratti di servizio di assistenza sociale domiciliare;02-12-2016;
1064;1;0;"2.921,10";"2.921,10";CODESS SOCIALE;53979365B3;SALDO Fatt.n. 5805/PA  del 18/11/2016 SERVIZIO DI ASSISTENZA SOCIALE E DOMICILIARE;02-12-2016;6990;0;44;1;Spese correnti;3;Acquisto di beni e servizi;2;Acquisto di servizi;15;Contratti di servizio pubblico;9;Contratti di servizio di assistenza sociale domiciliare;02-12-2016;
1065;1;0;"597,80";"597,80";HALLEY VENETO SRL;Z771992C19;SALDO Fatt.n. 1/160774  del 02/11/2016 Installazione nuovo ambiente halley web 6;02-12-2016;555;0;167;1;Spese correnti;3;Acquisto di beni e servizi;2;Acquisto di servizi;19;Servizi informatici e di telecomunicazioni;1;Gestione e manutenzione applicazioni;02-12-2016;
1066;1;0;"4.671,38";"4.671,38";BF Impianti S.r.l.;Z6C1B1A931;SALDO Fatt.n. 000001-2016-FATTELE  del 04/11/2016 Fornitura cappa per cucina polo scolastico.;02-12-2016;10350;0;316;2;Spese in conto capitale;2;Investimenti fissi lordi e acquisto di terreni;1;Beni materiali;9;Beni immobili;3;Fabbricati ad uso scolastico;02-12-2016;
1067;1;0;"1.159,00";"1.159,00";Sicurya s.r.l.;Z1F19ABFDD;SALDO Fatt.n. 0000017/PA  del 31/10/2016 Acconto del 50% su contratto consulenza sicurezza e incarico RSPP anno 2016;02-12-2016;785;0;171;1;Spese correnti;3;Acquisto di beni e servizi;2;Acquisto di servizi;4;Acquisto di servizi per formazione e addestramento del personale dell'ente;1;Acquisto di servizi per formazione specialistica;02-12-2016;
1068;1;0;"43,92";"248,82";S.E.A. di Nicola Orru' & C. s.a.s.;ZA81B60573;SALDO Fatt.n. 26/02  del 31/10/2016 Fornitura estintore per edificio comunale;02-12-2016;1302;0;333;1;Spese correnti;3;Acquisto di beni e servizi;2;Acquisto di servizi;9;Manutenzione ordinaria e riparazioni;8;Manutenzione ordinaria e riparazioni di beni immobili;02-12-2016;
1068;2;0;"204,90";"248,82";S.E.A. di Nicola Orru' & C. s.a.s.;ZA81B60573;SALDO Fatt.n. 25/02  del 31/10/2016 Manutenzione estintori c/o edifici comunali;02-12-2016;1302;0;333;1;Spese correnti;3;Acquisto di beni e servizi;2;Acquisto di servizi;9;Manutenzione ordinaria e riparazioni;8;Manutenzione ordinaria e riparazioni di beni immobili;02-12-2016;
1069;1;0;"4.399,45";"4.399,45";COOPERATIVA SOCIALE SERVIZI ASSOCIATI;Z561A7EDC6;SALDO Fatt.n. D-425  del 31/10/2016 Servizio di trasporto scolastico mese di ottobre 2016;02-12-2016;3413;0;319;1;Spese correnti;3;Acquisto di beni e servizi;2;Acquisto di servizi;15;Contratti di servizio pubblico;2;Contratti di servizio di trasporto scolastico;02-12-2016;
1070;1;0;"1.045,00";"1.045,00";ZEFIRO SRL;Z3D1A45638;ACCONTO Fatt.n. 39/PA  del 31/10/2016 Servizio di pulizie edifici comunali mese di ottobre 2016;02-12-2016;475;0;393;1;Spese correnti;3;Acquisto di beni e servizi;2;Acquisto di servizi;99;Altri servizi;999;Altri servizi diversi n.a.c.;02-12-2016;
1071;1;0;"262,18";"262,18";ZEFIRO SRL;Z3D1A45638;ACCONTO Fatt.n. 39/PA  del 31/10/2016 Servizio di pulizie edifici comunali mese di ottobre 2016;02-12-2016;2973;0;394;1;Spese correnti;3;Acquisto di beni e servizi;2;Acquisto di servizi;99;Altri servizi;999;Altri servizi diversi n.a.c.;02-12-2016;
1072;1;0;"294,75";"294,75";ZEFIRO SRL;Z3D1A45638;ACCONTO Fatt.n. 39/PA  del 31/10/2016 Servizio di pulizie edifici comunali mese di ottobre 2016;02-12-2016;37601;0;395;1;Spese correnti;3;Acquisto di beni e servizi;2;Acquisto di servizi;99;Altri servizi;999;Altri servizi diversi n.a.c.;02-12-2016;
1073;1;0;"174,85";"174,85";ZEFIRO SRL;Z3D1A45638;SALDO Fatt.n. 39/PA  del 31/10/2016 Servizio di pulizie edifici comunali mese di ottobre 2016;02-12-2016;1400;0;396;1;Spese correnti;3;Acquisto di beni e servizi;2;Acquisto di servizi;9;Manutenzione ordinaria e riparazioni;8;Manutenzione ordinaria e riparazioni di beni immobili;02-12-2016;
1074;1;0;"5.490,00";"5.490,00";ACCATRE S.r.l.;Z0819C322A;SALDO Fatt.n. 1/161193  del 21/11/2016 Effettuata attivita' per la conservazione a norma dei documenti nelle P:A:L: svolta nel 2016;02-12-2016;500;0;201;1;Spese correnti;3;Acquisto di beni e servizi;1;Acquisto di beni;2;Altri beni di consumo;6;Materiale informatico;02-12-2016;
1075;1;0;"13.420,00";"13.420,00";VENETA SICUREZZA E SEGNALETICA STRADALE  SRL;ZCE1B3ADD7;SALDO Fatt.n. 115  del 23/11/2016 Realizzazione segnaletica orizzontale;02-12-2016;7395;0;332;1;Spese correnti;3;Acquisto di beni e servizi;2;Acquisto di servizi;99;Altri servizi;999;Altri servizi diversi n.a.c.;02-12-2016;
1076;1;0;"104,00";"546,00";BEGGIATO MICHELA; ;Competenze dovute ai componenti del seggio n. 1 per il referendum costituzionale del 04.12.2016;05-12-2016;1040;0;369;1;Spese correnti;3;Acquisto di beni e servizi;2;Acquisto di servizi;99;Altri servizi;4;Altre spese per consultazioni elettorali dell'ente;05-12-2016;
1076;2;0;"130,00";"546,00";BELLOTTI ROBERTO; ;Competenze dovute al presidente  del seggio n. 1 per il referendum costituzionale del 04.12.2016;05-12-2016;1040;0;369;1;Spese correnti;3;Acquisto di beni e servizi;2;Acquisto di servizi;99;Altri servizi;4;Altre spese per consultazioni elettorali dell'ente;05-12-2016;
1076;3;0;"104,00";"546,00";BERNARDI VERONICA; ;Competenze dovute ai componenti del seggio n. 1 per il referendum costituzionale del 04.12.2016;05-12-2016;1040;0;369;1;Spese correnti;3;Acquisto di beni e servizi;2;Acquisto di servizi;99;Altri servizi;4;Altre spese per consultazioni elettorali dell'ente;05-12-2016;
1076;4;0;"104,00";"546,00";DALLA MONTA' HILARY; ;Competenze dovute al segretario del seggio n. 1 per il referendum costituzionale del 04.12.2016;05-12-2016;1040;0;369;1;Spese correnti;3;Acquisto di beni e servizi;2;Acquisto di servizi;99;Altri servizi;4;Altre spese per consultazioni elettorali dell'ente;05-12-2016;
1076;5;0;"104,00";"546,00";TODESCO LAURA; ;Competenze dovute ai componenti del seggio n. 1 per il referendum costituzionale del 04.12.2016;05-12-2016;1040;0;369;1;Spese correnti;3;Acquisto di beni e servizi;2;Acquisto di servizi;99;Altri servizi;4;Altre spese per consultazioni elettorali dell'ente;05-12-2016;
1077;1;0;"130,00";"546,00";BUSATO ROBERTO; ;Competenze dovute al presidente del seggio n. 2  per il referendum costituzionale del 04.12.2016;05-12-2016;1040;0;369;1;Spese correnti;3;Acquisto di beni e servizi;2;Acquisto di servizi;99;Altri servizi;4;Altre spese per consultazioni elettorali dell'ente;05-12-2016;
1077;2;0;"104,00";"546,00";CASSINERI FABRIZIO; ;Competenze dovute al segretario del seggio n. 2  per il referendum costituzionale del 04.12.2016;05-12-2016;1040;0;369;1;Spese correnti;3;Acquisto di beni e servizi;2;Acquisto di servizi;99;Altri servizi;4;Altre spese per consultazioni elettorali dell'ente;05-12-2016;
1077;3;0;"104,00";"546,00";MALANDRIN DELFINA; ;Competenze dovute ai componenti del seggio n. 2  per il referendum costituzionale del 04.12.2016;05-12-2016;1040;0;369;1;Spese correnti;3;Acquisto di beni e servizi;2;Acquisto di servizi;99;Altri servizi;4;Altre spese per consultazioni elettorali dell'ente;05-12-2016;
1077;4;0;"104,00";"546,00";MANDRUZZATO ILARIA; ;Competenze dovute ai componenti del seggio n. 2  per il referendum costituzionale del 04.12.2016;05-12-2016;1040;0;369;1;Spese correnti;3;Acquisto di beni e servizi;2;Acquisto di servizi;99;Altri servizi;4;Altre spese per consultazioni elettorali dell'ente;05-12-2016;
1077;5;0;"104,00";"546,00";SINIGAGLIA JESSICA; ;Competenze dovute ai componenti del seggio n. 2  per il referendum costituzionale del 04.12.2016;05-12-2016;1040;0;369;1;Spese correnti;3;Acquisto di beni e servizi;2;Acquisto di servizi;99;Altri servizi;4;Altre spese per consultazioni elettorali dell'ente;05-12-2016;
1078;1;0;"104,00";"546,00";BUSATO INGRID; ;Competenze dovute ai componenti del seggio n. 3 per il referendum costituzionale del 04.12.2016;05-12-2016;1040;0;369;1;Spese correnti;3;Acquisto di beni e servizi;2;Acquisto di servizi;99;Altri servizi;4;Altre spese per consultazioni elettorali dell'ente;05-12-2016;
1078;2;0;"130,00";"546,00";MALESANI GIULIO; ;Competenze dovute al presidente del seggio n. 3 per il referendum costituzionale del 04.12.2016;05-12-2016;1040;0;369;1;Spese correnti;3;Acquisto di beni e servizi;2;Acquisto di servizi;99;Altri servizi;4;Altre spese per consultazioni elettorali dell'ente;05-12-2016;
1078;3;0;"104,00";"546,00";PRIMOLAN FEDERICA; ;Competenze dovute al segretario del seggio n. 3 per il referendum costituzionale del 04.12.2016;05-12-2016;1040;0;369;1;Spese correnti;3;Acquisto di beni e servizi;2;Acquisto di servizi;99;Altri servizi;4;Altre spese per consultazioni elettorali dell'ente;05-12-2016;
1078;4;0;"104,00";"546,00";SIRPRESI DANIEL; ;Competenze dovute ai componenti del seggio n. 3 per il referendum costituzionale del 04.12.2016;05-12-2016;1040;0;369;1;Spese correnti;3;Acquisto di beni e servizi;2;Acquisto di servizi;99;Altri servizi;4;Altre spese per consultazioni elettorali dell'ente;05-12-2016;
1078;5;0;"104,00";"546,00";VEZZU' ALESSANDRA; ;Competenze dovute ai componenti del seggio n. 3 per il referendum costituzionale del 04.12.2016;05-12-2016;1040;0;369;1;Spese correnti;3;Acquisto di beni e servizi;2;Acquisto di servizi;99;Altri servizi;4;Altre spese per consultazioni elettorali dell'ente;05-12-2016;
1079;1;0;"125,82";"513,24";Illumia S.p.A.;Z0E14167CF;SALDO Fatt.n. 20416-PE  del 23/11/2016 Fornitura energia elettrica utenza impianto sportivo Zovon mese di ottobre 2016;07-12-2016;64981;0;101;1;Spese correnti;3;Acquisto di beni e servizi;2;Acquisto di servizi;5;Utenze e canoni;4;Energia elettrica;07-12-2016;
1079;2;0;"387,42";"513,24";Illumia S.p.A.;Z0E14167CF;SALDO Fatt.n. 20413-PE  del 23/11/2016;07-12-2016;64981;0;101;1;Spese correnti;3;Acquisto di beni e servizi;2;Acquisto di servizi;5;Utenze e canoni;4;Energia elettrica;07-12-2016;
1080;1;0;"330,00";"330,00";Illumia S.p.A.;Z0E14167CF;ACCONTO Fatt.n. 20412-PE  del 23/11/2016 Fornitura energia elettrica utenza Polo Scolastico mese di ottobre 2016;07-12-2016;28001;0;97;1;Spese correnti;3;Acquisto di beni e servizi;2;Acquisto di servizi;5;Utenze e canoni;4;Energia elettrica;07-12-2016;
1081;1;0;"330,00";"330,00";Illumia S.p.A.;Z0E14167CF;ACCONTO Fatt.n. 20412-PE  del 23/11/2016 Fornitura energia elettrica utenza Polo Scolastico mese di ottobre 2016;07-12-2016;29701;0;98;1;Spese correnti;3;Acquisto di beni e servizi;2;Acquisto di servizi;5;Utenze e canoni;4;Energia elettrica;07-12-2016;
1082;1;0;"331,04";"331,04";Illumia S.p.A.;Z0E14167CF;SALDO Fatt.n. 20412-PE  del 23/11/2016 Fornitura energia elettrica utenza Polo Scolastico mese di ottobre 2016;07-12-2016;31801;0;99;1;Spese correnti;3;Acquisto di beni e servizi;2;Acquisto di servizi;5;Utenze e canoni;4;Energia elettrica;07-12-2016;
1083;1;0;"278,89";"278,89";Illumia S.p.A.;Z0E14167CF;SALDO Fatt.n. 20415-PE  del 23/11/2016 Fornitura energia elettrica utenza Villa venier mese di ottobre 2016;07-12-2016;1312;0;103;1;Spese correnti;3;Acquisto di beni e servizi;2;Acquisto di servizi;5;Utenze e canoni;4;Energia elettrica;07-12-2016;
1084;1;0;"395,98";"395,98";Illumia S.p.A.;Z0E14167CF;SALDO Fatt.n. 20414-PE  del 23/11/2016 Fornitura energia elettrica utenza immobile Piazzetta Martiri mese di ottobre 2016;07-12-2016;1405;0;104;1;Spese correnti;3;Acquisto di beni e servizi;2;Acquisto di servizi;5;Utenze e canoni;4;Energia elettrica;07-12-2016;
1085;1;0;"59,89";"551,58";Illumia S.p.A.;Z0E14167CF;SALDO Fatt.n. 20411-PE  del 23/11/2016 Fornitura energia elettrica utenza Piazzetta Martiri (POD IT001E32268714)  mese di ottobre 2016;07-12-2016;7420;0;105;1;Spese correnti;3;Acquisto di beni e servizi;2;Acquisto di servizi;5;Utenze e canoni;4;Energia elettrica;07-12-2016;
1085;2;0;"113,83";"551,58";Illumia S.p.A.;Z0E14167CF;SALDO Fatt.n. 20419-PE  del 23/11/2016 Fornitura energia elettrica utenza torretta c/o Piazzetta Spolverato mese di ottobre 2016;07-12-2016;7420;0;105;1;Spese correnti;3;Acquisto di beni e servizi;2;Acquisto di servizi;5;Utenze e canoni;4;Energia elettrica;07-12-2016;
1085;3;0;"377,86";"551,58";Illumia S.p.A.;Z0E14167CF;SALDO Fatt.n. 20418-PE  del 23/11/2016 Fornitura energia elettrica utenza Via Marconi  (POD  IT001E04199191) mese di ottobre 2016;07-12-2016;7420;0;105;1;Spese correnti;3;Acquisto di beni e servizi;2;Acquisto di servizi;5;Utenze e canoni;4;Energia elettrica;07-12-2016;
1086;1;0;"406,71";"406,71";Illumia S.p.A.;Z0E14167CF;SALDO Fatt.n. 20417-PE  del 23/11/2016 Fornitura energia elettrica utenza Sede Municipale mese di ottobre 2016;07-12-2016;4751;0;96;1;Spese correnti;3;Acquisto di beni e servizi;2;Acquisto di servizi;5;Utenze e canoni;4;Energia elettrica;07-12-2016;
1087;1;0;"4.223,68";"4.223,68";Illumia S.p.A.;Z0E14167CF;SALDO Fatt.n. 20410-PE  del 23/11/2016 Fornitura energia elettrica utenze illuminazione pubblica mese di ottobre 2016;07-12-2016;7420;0;377;1;Spese correnti;3;Acquisto di beni e servizi;2;Acquisto di servizi;5;Utenze e canoni;4;Energia elettrica;07-12-2016;
1107;1;0;"137,10";"137,10";DIPENDENTI COMUNALI DIVERSI; ;Rimborso spese mensa ai dipendenti periodo 13.10.2016 -06.12.2016;12-12-2016;9375;0;8;1;Spese correnti;3;Acquisto di beni e servizi;2;Acquisto di servizi;99;Altri servizi;999;Altri servizi diversi n.a.c.;12-12-2016;
1116;1;0;"3,50";"3,50";Intesa Sanpaolo S.p.A.; ;Quota interessi finanziamento n. 00/0052147241 rata n. 14 scadenza 31.12.2016;12-12-2016;1309;0;223;1;Spese correnti;7;Interessi passivi;5;Interessi su Mutui e altri finanziamenti a medio lungo termine;4;Interessi passivi su finanziamenti a medio lungo termine a Imprese;999;Interessi passivi a altre imprese su finanziamenti a medio lungo termine;12-12-2016;
1118;1;0;"584,47";"584,47";DEXIA CREDIOP SPA; ;Quota interessi dei mutui in ammortamento scadenza rata 31.12.2016 avviso n. 0000148799;12-12-2016;5280;0;225;1;Spese correnti;7;Interessi passivi;5;Interessi su Mutui e altri finanziamenti a medio lungo termine;5;Interessi passivi su mutui e altri finanziamenti a medio lungo termine ad altri soggetti;999;Interessi passivi su mutui e altri finanziamenti a medio lungo termine ad altri soggetti;12-12-2016;
1119;1;0;"1.393,75";"1.393,75";DEXIA CREDIOP SPA; ;Quota interessi dei mutui in ammortamento scadenza rata 31.12.2016 avviso n. 0000148799;12-12-2016;5685;0;226;1;Spese correnti;7;Interessi passivi;5;Interessi su Mutui e altri finanziamenti a medio lungo termine;4;Interessi passivi su finanziamenti a medio lungo termine a Imprese;999;Interessi passivi a altre imprese su finanziamenti a medio lungo termine;12-12-2016;
1120;1;0;"912,84";"912,84";DEXIA CREDIOP SPA; ;Quota interessi dei mutui in ammortamento scadenza rata 31.12.2016 avviso n. 0000148799;12-12-2016;7450;0;227;1;Spese correnti;7;Interessi passivi;5;Interessi su Mutui e altri finanziamenti a medio lungo termine;4;Interessi passivi su finanziamenti a medio lungo termine a Imprese;3;Interessi passivi a Cassa Depositi e Prestiti SPA su mutui e altri finanziamenti a medio lungo termine;12-12-2016;
1121;1;0;"400,00";"400,00";ASS. "OLTRE IL MARE"  pres. VEZZU' GIANFRANCO; ;Contributo economico anno 2016 - A.L. SEG. N. 113 DEL 24.11.2016;12-12-2016;7200;0;267;1;Spese correnti;4;Trasferimenti correnti;4;Trasferimenti correnti a Istituzioni Sociali Private;1;Trasferimenti correnti a Istituzioni Sociali Private;1;Trasferimenti correnti a Istituzioni Sociali Private;12-12-2016;
1122;1;0;"1.500,00";"1.500,00";Gruppo Musicisti di Vo'; ;Saldo contributo economico anno 2016 - A.L. SEG. N. 115 DEL 05.12.2016;12-12-2016;4000;0;271;1;Spese correnti;4;Trasferimenti correnti;3;Trasferimenti correnti a Imprese;99;Trasferimenti correnti a altre imprese;999;Trasferimenti correnti a altre imprese;12-12-2016;
1123;1;0;"10.065,00";"10.065,00";ACCATRE S.r.l.;Z021BBA232;SALDO Fatt.n. 1/161292  del 07/12/2016 Bomifica dati ICI/IMU svolta nell'anno 2016;12-12-2016;1485;0;373;1;Spese correnti;3;Acquisto di beni e servizi;2;Acquisto di servizi;99;Altri servizi;999;Altri servizi diversi n.a.c.;12-12-2016;
1124;1;0;"8.787,23";"8.787,23";S.E.S.A. SPA;Z11182D6F2;SALDO Fatt.n. 2000690  del 31/10/2016 Smaltimento rifiuti mese di ottobre 2016;12-12-2016;5780;0;33;1;Spese correnti;3;Acquisto di beni e servizi;2;Acquisto di servizi;15;Contratti di servizio pubblico;5;Contratti di servizio per il conferimento in discarica dei rifiuti;12-12-2016;
1125;1;0;"226,48";"1.620,56";AUTOFFICINA ELETTRAUTO BARBIERO SNC DI BARBIERO ETTORE;ZCB1C1A4CD;SALDO Fatt.n. 6/01  del 21/11/2016 MANUTENZIONE VEICOLO FIAT GRANDE PUNTO TARGA DT038LH;12-12-2016;572;0;391;1;Spese correnti;3;Acquisto di beni e servizi;2;Acquisto di servizi;9;Manutenzione ordinaria e riparazioni;1;"Manutenzione ordinaria e riparazioni di mezzi di trasporto ad uso civile, di sicurezza e ordine pubblico";12-12-2016;
1125;2;0;"1.394,08";"1.620,56";AUTOFFICINA ELETTRAUTO BARBIERO SNC DI BARBIERO ETTORE;ZCB1C1A4CD;SALDO Fatt.n. 7/01  del 21/11/2016 VEICOLO FIAT DOBLO' TARGA DH568NN E FORD TRANSIT TARGA AE911LB;12-12-2016;572;0;391;1;Spese correnti;3;Acquisto di beni e servizi;2;Acquisto di servizi;9;Manutenzione ordinaria e riparazioni;1;"Manutenzione ordinaria e riparazioni di mezzi di trasporto ad uso civile, di sicurezza e ordine pubblico";12-12-2016;
1126;1;0;"330,12";"330,12";POSTE ITALIANE SPA;Z901438A4F;ACCONTO Fatt.n. 8716328662  del 24/11/2016 Corrispettivo per servizi di affrancatura mese di ottobre 2016.;12-12-2016;4800;0;325;1;Spese correnti;3;Acquisto di beni e servizi;2;Acquisto di servizi;16;Servizi amministrativi;2;Spese postali;12-12-2016;
1127;1;0;"133,93";"133,93";POSTE ITALIANE SPA;Z901438A4F;SALDO Fatt.n. 8716328662  del 24/11/2016 Corrispettivo per servizi di affrancatura mese di ottobre 2016.;12-12-2016;4800;0;398;1;Spese correnti;3;Acquisto di beni e servizi;2;Acquisto di servizi;16;Servizi amministrativi;2;Spese postali;12-12-2016;
1128;1;0;"3.172,00";"3.172,00";POLAB S.R.L.;ZC11B26AB4;SALDO Fatt.n. 81  del 30/11/2016 Redazione piano comunale antenne - acconto anno 2016;12-12-2016;790;0;321;1;Spese correnti;3;Acquisto di beni e servizi;2;Acquisto di servizi;99;Altri servizi;999;Altri servizi diversi n.a.c.;12-12-2016;
1129;1;0;"1.207,80";"1.207,80";MARTINI LUCIANO SRL;Z70188CBBO;SALDO Fatt.n. 7  del 30/11/2016 Lavori manutenzione stradale a tutto il 30.11.2016;12-12-2016;7335;0;323;1;Spese correnti;3;Acquisto di beni e servizi;2;Acquisto di servizi;9;Manutenzione ordinaria e riparazioni;8;Manutenzione ordinaria e riparazioni di beni immobili;12-12-2016;
1130;1;0;"146,39";"146,39";MAPLAST di Mischiari Luca;Z741C369DC;SALDO Fatt.n. 444/2016  del 03/12/2016 Costo copia 2016 stampante multifunzione Hp PRO segreteria;12-12-2016;4752;0;400;1;Spese correnti;3;Acquisto di beni e servizi;2;Acquisto di servizi;9;Manutenzione ordinaria e riparazioni;5;Manutenzione ordinaria e riparazioni di attrezzature;12-12-2016;
1131;1;0;"213,50";"213,50";MAPLAST di Mischiari Luca;ZF41C36B06;SALDO Fatt.n. 445/2016  del 03/12/2016 Costo copia 2016 stampante Ragioneria-Personale;12-12-2016;4752;0;401;1;Spese correnti;3;Acquisto di beni e servizi;2;Acquisto di servizi;9;Manutenzione ordinaria e riparazioni;5;Manutenzione ordinaria e riparazioni di attrezzature;12-12-2016;
1132;1;0;"500,00";"500,00";CONSORZIO BIBLIOTECHE PADOVANE ASSOCIATE; ;Acquisto e fornitura libri  per Biblioteca Comunale - a.l. seg. n. 121 del 05.12.2016;12-12-2016;3760;0;411;1;Spese correnti;3;Acquisto di beni e servizi;2;Acquisto di servizi;99;Altri servizi;999;Altri servizi diversi n.a.c.;12-12-2016;
1133;1;0;"20,27";"20,27";COMUNE DI CAMPIGLIA DEI BERICI; ;Rimborso spese al Comune di Campiglia dei Berici per la fornitura libri di testo agli alunni residenti in Vo' e  frequentanti le scuole primarie di Campiglia dei Berici nell'anno scolastico 2016/2017 - A.L. SEG. N. 123 DEL 05.12.2016;12-12-2016;2950;0;415;1;Spese correnti;3;Acquisto di beni e servizi;1;Acquisto di beni;2;Altri beni di consumo;999;Altri beni e materiali di consumo n.a.c.;12-12-2016;
1134;1;0;"264,89";"264,89";COMUNE DI TEOLO; ;Rimborso spesa al Comune di Teolo per la fornitura libri di testo agli alunni residenti in Vo' e frequentanti le scuole primarie di Teolo nell'anno scolastico 2016/2017 - a.l. seg. n. 122 del 05.12.2016;12-12-2016;2950;0;414;1;Spese correnti;3;Acquisto di beni e servizi;1;Acquisto di beni;2;Altri beni di consumo;999;Altri beni e materiali di consumo n.a.c.;12-12-2016;
1135;1;0;"250,00";"250,00";SERVIZI FUNEBRI MANDRUZZATO SNC; ;SALDO Fatt.n. P/4  del 01/12/2016 SERVIZIO RECUPERO SALMA B.F. SU RICHIESTA AUTORITA' GIUDIZIARIA;12-12-2016;5200;0;384;1;Spese correnti;3;Acquisto di beni e servizi;2;Acquisto di servizi;99;Altri servizi;999;Altri servizi diversi n.a.c.;12-12-2016;
1136;1;0;"806,25";"806,25";CASA DI RIPOSO "A. SIMIONATI"; ;SALDO Fatt.n. 148/E  del 30/11/2016 Retta ricovero R.R. mese di novembre 2016;12-12-2016;6875;0;205;1;Spese correnti;3;Acquisto di beni e servizi;2;Acquisto di servizi;99;Altri servizi;999;Altri servizi diversi n.a.c.;12-12-2016;
1137;1;0;"600,00";"5.880,00";OMESSO NOMINATIVO NEL RISPETTO DELLA NORMATIVA SULLA PROTEZIONE DATI PERSONALI; ;Impegnativa di cura domiciliare: primo semestre anno 2016  per Gagnolato Maria- a.l. seg. n. 120 del 05.12.2016;12-12-2016;6710;0;410;1;Spese correnti;4;Trasferimenti correnti;2;Trasferimenti correnti a Famiglie;5;Altri trasferimenti a famiglie;999;Altri trasferimenti a famiglie n.a.c.;12-12-2016;
1137;2;0;"720,00";"5.880,00";OMESSO NOMINATIVO NEL RISPETTO DELLA NORMATIVA SULLA PROTEZIONE DATI PERSONALI; ;Impegnativa di cura domiciliare:  primo semestre anno 2016 per Gomiero Natale - a.l. seg. n. 120 del 05.12.2016;12-12-2016;6710;0;410;1;Spese correnti;4;Trasferimenti correnti;2;Trasferimenti correnti a Famiglie;5;Altri trasferimenti a famiglie;999;Altri trasferimenti a famiglie n.a.c.;12-12-2016;
1137;3;0;"720,00";"5.880,00";OMESSO NOMINATIVO NEL RISPETTO DELLA NORMATIVA SULLA PROTEZIONE DATI PERSONALI; ;Impegnativa di cura domiciliare: primo semestre anno 2016 per Mazzetto Antonietta Maria - a.l. seg. n. 120 del 05.12.2016;12-12-2016;6710;0;410;1;Spese correnti;4;Trasferimenti correnti;2;Trasferimenti correnti a Famiglie;5;Altri trasferimenti a famiglie;999;Altri trasferimenti a famiglie n.a.c.;12-12-2016;
1137;4;0;"600,00";"5.880,00";OMESSO NOMINATIVO NEL RISPETTO DELLA NORMATIVA SULLA PROTEZIONE DATI PERSONALI; ;Impegnativa di cura domiciliare:  primo semestre anno 2016 per Meneghini Antonio - a.l. seg. n. 120 del 05.12.2016;12-12-2016;6710;0;410;1;Spese correnti;4;Trasferimenti correnti;2;Trasferimenti correnti a Famiglie;5;Altri trasferimenti a famiglie;999;Altri trasferimenti a famiglie n.a.c.;12-12-2016;
1137;5;0;"720,00";"5.880,00";OMESSO NOMINATIVO NEL RISPETTO DELLA NORMATIVA SULLA PROTEZIONE DATI PERSONALI; ;Impegnativa di cura domiciliare: primo semestre anno 2016 per Meneghini Eufrasia - a.l. seg. n. 120 del 05.12.2016;12-12-2016;6710;0;410;1;Spese correnti;4;Trasferimenti correnti;2;Trasferimenti correnti a Famiglie;5;Altri trasferimenti a famiglie;999;Altri trasferimenti a famiglie n.a.c.;12-12-2016;
1137;6;0;"720,00";"5.880,00";OMESSO NOMINATIVO NEL RISPETTO DELLA NORMATIVA SULLA PROTEZIONE DATI PERSONALI; ;Impegnativa di cura domiciliare:  primo semestre anno 2016 per Razazzolo Irma - a.l. seg. n. 120 del 05.12.2016;12-12-2016;6710;0;410;1;Spese correnti;4;Trasferimenti correnti;2;Trasferimenti correnti a Famiglie;5;Altri trasferimenti a famiglie;999;Altri trasferimenti a famiglie n.a.c.;12-12-2016;
1137;7;0;"720,00";"5.880,00";OMESSO NOMINATIVO NEL RISPETTO DELLA NORMATIVA SULLA PROTEZIONE DATI PERSONALI; ;Impegnativa di cura domiciliare: primo semestre anno 2016 per Toniolo Renato - a.l. seg. n. 120 del 05.12.2016;12-12-2016;6710;0;410;1;Spese correnti;4;Trasferimenti correnti;2;Trasferimenti correnti a Famiglie;5;Altri trasferimenti a famiglie;999;Altri trasferimenti a famiglie n.a.c.;12-12-2016;
1137;8;0;"120,00";"5.880,00";OMESSO NOMINATIVO NEL RISPETTO DELLA NORMATIVA SULLA PROTEZIONE DATI PERSONALI; ;Impegnativa di cura domiciliare:  primo semestre anno 2016 per Santimaria Antonietta - a.l. seg. n. 120 del 05.12.2016;12-12-2016;6710;0;410;1;Spese correnti;4;Trasferimenti correnti;2;Trasferimenti correnti a Famiglie;5;Altri trasferimenti a famiglie;999;Altri trasferimenti a famiglie n.a.c.;12-12-2016;
1137;9;0;"360,00";"5.880,00";OMESSO NOMINATIVO NEL RISPETTO DELLA NORMATIVA SULLA PROTEZIONE DATI PERSONALI; ;Impegnativa di cura domiciliare: primo semestre anno 2016 per Ongaro Gina - a.l. seg. n. 120 del 05.12.2016;12-12-2016;6710;0;410;1;Spese correnti;4;Trasferimenti correnti;2;Trasferimenti correnti a Famiglie;5;Altri trasferimenti a famiglie;999;Altri trasferimenti a famiglie n.a.c.;12-12-2016;
1137;10;0;"600,00";"5.880,00";OMESSO NOMINATIVO NEL RISPETTO DELLA NORMATIVA SULLA PROTEZIONE DATI PERSONALI; ;Impegnativa di cura domiciliare:  primo semestre anno 2016 per Nervino Francesco - a.l. seg. n. 120 del 05.12.2016;12-12-2016;6710;0;410;1;Spese correnti;4;Trasferimenti correnti;2;Trasferimenti correnti a Famiglie;5;Altri trasferimenti a famiglie;999;Altri trasferimenti a famiglie n.a.c.;12-12-2016;
1138;1;0;"109,41";"856,19";OMESSO NOMINATIVO NEL RISPETTO DELLA NORMATIVA SULLA PROTEZIONE DATI PERSONALI; ;Contributo Regionale per libri di testo anno scolastico 2016/2017 per Chinello Giada Alba -  A.L. SEG. N. 124 DEL 07.12.2016;12-12-2016;6890;0;412;1;Spese correnti;4;Trasferimenti correnti;2;Trasferimenti correnti a Famiglie;5;Altri trasferimenti a famiglie;999;Altri trasferimenti a famiglie n.a.c.;12-12-2016;
1138;2;0;"268,40";"856,19";OMESSO NOMINATIVO NEL RISPETTO DELLA NORMATIVA SULLA PROTEZIONE DATI PERSONALI; ;Contributo Regionale per libri di testo anno scolastico 2016/2017 per Sow Fatou - A.L. SEG. N. 124 DEL 07.12.2016;12-12-2016;6890;0;412;1;Spese correnti;4;Trasferimenti correnti;2;Trasferimenti correnti a Famiglie;5;Altri trasferimenti a famiglie;999;Altri trasferimenti a famiglie n.a.c.;12-12-2016;
1138;3;0;"125,25";"856,19";OMESSO NOMINATIVO NEL RISPETTO DELLA NORMATIVA SULLA PROTEZIONE DATI PERSONALI; ;Contributo Regionale per libri di testo anno scolastico 2016/2017 per Bellucco Matteo - A.L. SEG. N. 124 DEL 07.12.2016;12-12-2016;6890;0;412;1;Spese correnti;4;Trasferimenti correnti;2;Trasferimenti correnti a Famiglie;5;Altri trasferimenti a famiglie;999;Altri trasferimenti a famiglie n.a.c.;12-12-2016;
1138;4;0;"163,50";"856,19";OMESSO NOMINATIVO NEL RISPETTO DELLA NORMATIVA SULLA PROTEZIONE DATI PERSONALI; ;Contributo Regionale per libri di testo anno scolastico 2016/2017 per Bellucco Alessia - A.L. SEG. N. 124 DEL 07.12.2016;12-12-2016;6890;0;412;1;Spese correnti;4;Trasferimenti correnti;2;Trasferimenti correnti a Famiglie;5;Altri trasferimenti a famiglie;999;Altri trasferimenti a famiglie n.a.c.;12-12-2016;
1138;5;0;"189,63";"856,19";OMESSO NOMINATIVO NEL RISPETTO DELLA NORMATIVA SULLA PROTEZIONE DATI PERSONALI; ;Contributo Regionale per libri di testo anno scolastico 2016/2017 per Beccaro Alessandra - A.L. SEG. N. 124 DEL 07.12.2016;12-12-2016;6890;0;412;1;Spese correnti;4;Trasferimenti correnti;2;Trasferimenti correnti a Famiglie;5;Altri trasferimenti a famiglie;999;Altri trasferimenti a famiglie n.a.c.;12-12-2016;
1139;1;0;"4.399,45";"4.399,45";COOPERATIVA SOCIALE SERVIZI ASSOCIATI;Z561A7EDC6;SALDO Fatt.n. D-466  del 30/11/2016 Servizio di trasporto scolastico mese di novembre 2016;12-12-2016;3413;0;319;1;Spese correnti;3;Acquisto di beni e servizi;2;Acquisto di servizi;15;Contratti di servizio pubblico;2;Contratti di servizio di trasporto scolastico;12-12-2016;
1140;1;0;"4.880,00";"4.880,00";BARBIN IMPIANTI Srl;ZD31B4433D;SALDO Fatt.n. 92S  del 30/11/2016 Manutenzione impianti pubblica illuminazione;12-12-2016;7430;0;339;1;Spese correnti;3;Acquisto di beni e servizi;2;Acquisto di servizi;9;Manutenzione ordinaria e riparazioni;4;Manutenzione ordinaria e riparazioni di impianti e macchinari;12-12-2016;
1141;1;0;"103,70";"103,70";UNILIFT S.r.l.;Z2F194B127;SALDO Fatt.n. 100025  del 25/11/2016 Quota assistenza anno 2016;12-12-2016;3185;0;156;1;Spese correnti;3;Acquisto di beni e servizi;2;Acquisto di servizi;99;Altri servizi;999;Altri servizi diversi n.a.c.;12-12-2016;
1142;1;0;"91,50";"91,50";UNILIFT S.r.l.;ZC91945C2E;SALDO Fatt.n. 100026  del 25/11/2016 Sostituzione batteria di riporto al piano;12-12-2016;3185;0;155;1;Spese correnti;3;Acquisto di beni e servizi;2;Acquisto di servizi;99;Altri servizi;999;Altri servizi diversi n.a.c.;12-12-2016;
1143;1;0;"8.674,20";"8.674,20";TERMOIDRAULICA BELLUCCO ROBERTINO;Z3D1C45122;SALDO Fatt.n. 000007-2016-T  del 07/12/2016 Lavori di allacciamento gas cucina polo scolastico;12-12-2016;10350;0;403;2;Spese in conto capitale;2;Investimenti fissi lordi e acquisto di terreni;1;Beni materiali;9;Beni immobili;3;Fabbricati ad uso scolastico;12-12-2016;
1144;1;0;"158,60";"158,60";TECNOCOPIA SNC;Z681BF0DCB;SALDO Fatt.n. 527  del 12/12/2016 Riparazione fotocopiatore Kyocera KM-2035;12-12-2016;4752;0;385;1;Spese correnti;3;Acquisto di beni e servizi;2;Acquisto di servizi;9;Manutenzione ordinaria e riparazioni;5;Manutenzione ordinaria e riparazioni di attrezzature;12-12-2016;
1145;1;0;"351,36";"351,36";MAPLAST di Mischiari Luca;ZF11C4A5ED;SALDO Fatt.n. 446/2016  del 03/12/2016 Costo copie anno 2016 stampanti Ufficio  Anagrafe e Ragioneria;12-12-2016;4752;0;406;1;Spese correnti;3;Acquisto di beni e servizi;2;Acquisto di servizi;9;Manutenzione ordinaria e riparazioni;5;Manutenzione ordinaria e riparazioni di attrezzature;12-12-2016;
1146;1;0;"208,17";"208,17";ENEL SOLE Srl;ZEE1381BCC;SALDO Fatt.n. 1630060083  del 30/11/2016 Gestione impianti illuminazione pubblica mese di novembre 2016;13-12-2016;7420;0;42;1;Spese correnti;3;Acquisto di beni e servizi;2;Acquisto di servizi;5;Utenze e canoni;4;Energia elettrica;13-12-2016;
1147;1;0;"253,76";"253,76";E.ON Energia S.p.a.;Z711FE6B2;ACCONTO Fatt.n. 40012187  del 01/12/2016 Fornitura gas metano utenza Polo Scolastico mese di ottobre 2016;13-12-2016;28001;0;92;1;Spese correnti;3;Acquisto di beni e servizi;2;Acquisto di servizi;5;Utenze e canoni;6;Gas;13-12-2016;
1148;1;0;"253,76";"253,76";E.ON Energia S.p.a.;Z7113FE6B2;ACCONTO Fatt.n. 40012187  del 01/12/2016 Fornitura gas metano utenza Polo Scolastico mese di ottobre 2016;13-12-2016;29701;0;93;1;Spese correnti;3;Acquisto di beni e servizi;2;Acquisto di servizi;5;Utenze e canoni;6;Gas;13-12-2016;
1149;1;0;"255,11";"255,11";E.ON Energia S.p.a.;Z7113FE6B2;SALDO Fatt.n. 40012187  del 01/12/2016 Fornitura gas metano utenza Polo Scolastico mese di ottobre 2016;13-12-2016;31801;0;94;1;Spese correnti;3;Acquisto di beni e servizi;2;Acquisto di servizi;5;Utenze e canoni;6;Gas;13-12-2016;
1150;1;0;"437,80";"437,80";E.ON Energia S.p.a.;Z7113FE6B2;SALDO Fatt.n. 40012188  del 01/12/2016 Fornitura gas metano utenza immobile Piazzetta Martiri periodo dal 29.09.2016 al 31.10.2016;13-12-2016;1405;0;90;1;Spese correnti;3;Acquisto di beni e servizi;2;Acquisto di servizi;5;Utenze e canoni;6;Gas;13-12-2016;
1151;1;0;"50,00";"50,00";E.ON Energia S.p.a.;Z7113FE6B2;SALDO Fatt.n. 40011473  del 01/12/2016 Fornitura gas metano utenza Sede Municipale (matricola contatore 30155066) mese di ottobre 2016;13-12-2016;4751;0;91;1;Spese correnti;3;Acquisto di beni e servizi;2;Acquisto di servizi;5;Utenze e canoni;6;Gas;13-12-2016;
1152;1;0;"43.063,90";"43.063,90";MIRANDOLA IMPIANTI SRL;ZEC1B24F13;SALDO Fatt.n. 57/PA  del 30/11/2016 Manutenzione straordinaria impianti di pubblica illuminazione;13-12-2016;11945;0;329;2;Spese in conto capitale;2;Investimenti fissi lordi e acquisto di terreni;1;Beni materiali;9;Beni immobili;12;Infrastrutture stradali;13-12-2016;
1153;1;0;"40.150,00";"40.150,00";CARRARO GIORGIO SNC;Z601B34D85;SALDO Fatt.n. 16  del 07/12/2016 Asfaltatura straordinaria strade comunali;13-12-2016;11820;0;335;2;Spese in conto capitale;2;Investimenti fissi lordi e acquisto di terreni;1;Beni materiali;9;Beni immobili;12;Infrastrutture stradali;13-12-2016;
1154;1;0;"9.492,31";"9.492,31";EURODET PROFESSIONAL SRL;Z481C37297;SALDO Fatt.n. 10  del 07/12/2016 Fornitura nuova cucina per polo scolastico;13-12-2016;10350;0;402;2;Spese in conto capitale;2;Investimenti fissi lordi e acquisto di terreni;1;Beni materiali;9;Beni immobili;3;Fabbricati ad uso scolastico;13-12-2016;
1155;1;0;"1.774,75";"1.774,75";TREVISAN VANESSA; ;Indennita' di carica Sindaco dicembre 2016;13-12-2016;10;0;2;1;Spese correnti;3;Acquisto di beni e servizi;2;Acquisto di servizi;1;Organi e incarichi istituzionali dell'amministrazione;1;Organi istituzionali dell'amministrazione - Indennità;13-12-2016;
1156;1;0;"177,48";"177,48";CALAON SIMONE; ;Indennita' di carica Vice-Sindaco  dicembre  2016;13-12-2016;10;0;3;1;Spese correnti;3;Acquisto di beni e servizi;2;Acquisto di servizi;1;Organi e incarichi istituzionali dell'amministrazione;1;Organi istituzionali dell'amministrazione - Indennità;13-12-2016;
1157;1;0;"133,11";"133,11";LAZZARETTO ROBERTA; ;Indennita' di carica  assessore dicembre 2016;13-12-2016;10;0;58;1;Spese correnti;3;Acquisto di beni e servizi;2;Acquisto di servizi;1;Organi e incarichi istituzionali dell'amministrazione;1;Organi istituzionali dell'amministrazione - Indennità;13-12-2016;
1158;1;0;"266,21";"266,21";SANTIMARIA ANDREA; ;Indennita' di carica Assessore dicembre  2016;13-12-2016;10;0;5;1;Spese correnti;3;Acquisto di beni e servizi;2;Acquisto di servizi;1;Organi e incarichi istituzionali dell'amministrazione;1;Organi istituzionali dell'amministrazione - Indennità;13-12-2016;
1159;1;0;"266,21";"266,21";ZAVATTIERO AGOSTINO; ;Indennita' di carica assessore mese di dicembre 2016;13-12-2016;10;0;59;1;Spese correnti;3;Acquisto di beni e servizi;2;Acquisto di servizi;1;Organi e incarichi istituzionali dell'amministrazione;1;Organi istituzionali dell'amministrazione - Indennità;13-12-2016;
1160;1;0;"13,31";"13,31";AMBROSI PAOLO; ;Indennita' di carica Assessore febbraio 2016;13-12-2016;10;0;4;1;Spese correnti;3;Acquisto di beni e servizi;2;Acquisto di servizi;1;Organi e incarichi istituzionali dell'amministrazione;1;Organi istituzionali dell'amministrazione - Indennità;13-12-2016;
1163;1;0;"60,91";"60,91";TELECOM ITALIA SPA;ZE31381BC6;SALDO Fatt.n. 8E01025838  del 06/10/2016 Spese telefoniche utenza Villa  Venier - 6' bimestre 2016;14-12-2016;1312;0;86;1;Spese correnti;3;Acquisto di beni e servizi;2;Acquisto di servizi;5;Utenze e canoni;1;Telefonia fissa;14-12-2016;
1164;1;0;"118,34";"118,34";TELECOM ITALIA SPA;ZE31381BC6;SALDO Fatt.n. 8E01025853  del 06/10/2016 Spete telefoniche utenza scuola primaria - 6' bimestre 2016;14-12-2016;29701;0;84;1;Spese correnti;3;Acquisto di beni e servizi;2;Acquisto di servizi;5;Utenze e canoni;1;Telefonia fissa;14-12-2016;
1165;1;0;"193,55";"193,55";TELECOM ITALIA SPA;ZE31381BC6;SALDO Fatt.n. 8E01032846  del 06/10/2016 Spese telefoniche utenza scuola secondaria di 1' grado - 6' bimestre 2016;14-12-2016;31801;0;85;1;Spese correnti;3;Acquisto di beni e servizi;2;Acquisto di servizi;5;Utenze e canoni;1;Telefonia fissa;14-12-2016;
1166;1;0;"112,39";"112,39";TELECOM ITALIA SPA;ZE31381BC6;SALDO Fatt.n. 8E01027967  del 06/10/2016 Spese telefoniche utenza biblioteca - 6' bimestre 2016;14-12-2016;3761;0;87;1;Spese correnti;3;Acquisto di beni e servizi;2;Acquisto di servizi;5;Utenze e canoni;1;Telefonia fissa;14-12-2016;
1167;1;0;"74,24";"74,24";TELECOM ITALIA SPA;ZE31381BC6;SALDO Fatt.n. 8E01025124  del 06/10/2016 Spese telefoniche utenza scuola dell'infanzia - 6' bimestre 2016;14-12-2016;28001;0;83;1;Spese correnti;3;Acquisto di beni e servizi;2;Acquisto di servizi;5;Utenze e canoni;1;Telefonia fissa;14-12-2016;
1168;1;0;"102,93";"625,09";TELECOM ITALIA SPA;ZE31381BC6;SALDO Fatt.n. 8E01026678  del 06/10/2016 Spese telefoniche utenza Sede Municipale (0499940027) - 6' bimestre 2016;14-12-2016;4751;0;82;1;Spese correnti;3;Acquisto di beni e servizi;2;Acquisto di servizi;5;Utenze e canoni;1;Telefonia fissa;14-12-2016;
1168;2;0;"212,49";"625,09";TELECOM ITALIA SPA;ZE31381BC6;SALDO Fatt.n. 8E01026713  del 06/10/2016 Spese telefoniche utenza Sede Municipale (0499940666) - 6' bimestre 2016;14-12-2016;4751;0;82;1;Spese correnti;3;Acquisto di beni e servizi;2;Acquisto di servizi;5;Utenze e canoni;1;Telefonia fissa;14-12-2016;
1168;3;0;"309,67";"625,09";TELECOM ITALIA SPA;ZE31381BC6;SALDO Fatt.n. 8E01024209  del 06/10/2016 Spese telefoniche utenza Sede Municipale (0499940677) -  6' bimestre 2016;14-12-2016;4751;0;82;1;Spese correnti;3;Acquisto di beni e servizi;2;Acquisto di servizi;5;Utenze e canoni;1;Telefonia fissa;14-12-2016;
1169;1;0;"10,50";"10,50";ECONOMO COMUNALE; ;Rifusione buoni economato n. 60p - A.L. RAG. N. 113 DEL 14.12.2016;14-12-2016;15;0;108;1;Spese correnti;3;Acquisto di beni e servizi;1;Acquisto di beni;2;Altri beni di consumo;999;Altri beni e materiali di consumo n.a.c.;14-12-2016;
1170;1;0;"50,00";"50,00";ECONOMO COMUNALE; ;Rifusione buoni economato n. 60p e 62p - A.L. RAG. N. 113 DEL 14.12.2016;14-12-2016;15;0;176;1;Spese correnti;3;Acquisto di beni e servizi;1;Acquisto di beni;2;Altri beni di consumo;999;Altri beni e materiali di consumo n.a.c.;14-12-2016;
1171;1;0;"7,50";"7,50";ECONOMO COMUNALE; ;Rifusione buoni economato n. 62p - A.L. RAG. N. 113 DEL 14.12.2016;14-12-2016;15;0;307;1;Spese correnti;3;Acquisto di beni e servizi;1;Acquisto di beni;2;Altri beni di consumo;999;Altri beni e materiali di consumo n.a.c.;14-12-2016;
1172;1;0;"3,50";"3,50";ECONOMO COMUNALE; ;Rifusione buoni economato n. 65 73 - a.l. RAG. N. 113 DEL 14.12.2016;14-12-2016;230;0;308;1;Spese correnti;3;Acquisto di beni e servizi;2;Acquisto di servizi;2;"Rappresentanza, organizzazione eventi, pubblicità e servizi per trasferta";2;Indennità di missione e di trasferta;14-12-2016;
1173;1;0;"68,00";"68,00";ECONOMO COMUNALE; ;Rifusione buono economato n. 71p - A.L. RAG. N. 113 DEL 14.12.2016;14-12-2016;445;0;331;1;Spese correnti;3;Acquisto di beni e servizi;2;Acquisto di servizi;4;Acquisto di servizi per formazione e addestramento del personale dell'ente;2;Acquisto di servizi per formazione generica;14-12-2016;
1174;1;0;"52,00";"52,00";ECONOMO COMUNALE; ;Rifusione buono economato n. 142 - A.L. RAG. N. 113 DEL 14.12.2016;14-12-2016;445;0;404;1;Spese correnti;3;Acquisto di beni e servizi;2;Acquisto di servizi;4;Acquisto di servizi per formazione e addestramento del personale dell'ente;2;Acquisto di servizi per formazione generica;14-12-2016;
1175;1;0;"11,76";"11,76";ECONOMO COMUNALE; ;Rifusione buoni economato n. 70 - A.L. RAG. N. 113 DEL 14.12.2016;14-12-2016;450;0;110;1;Spese correnti;3;Acquisto di beni e servizi;2;Acquisto di servizi;99;Altri servizi;999;Altri servizi diversi n.a.c.;14-12-2016;
1176;1;0;"8,00";"8,00";ECONOMO COMUNALE; ;Rifusione buono economato n. 59p - A.L. RAG. N. 113 DEL 14.12.2016;14-12-2016;571;0;111;1;Spese correnti;3;Acquisto di beni e servizi;2;Acquisto di servizi;99;Altri servizi;999;Altri servizi diversi n.a.c.;14-12-2016;
1177;1;0;"43,00";"43,00";ECONOMO COMUNALE; ;Rifusione buone economato n. 59p 61 64 - A.L. RAG. N. 113 DEL 14.12.2016;14-12-2016;571;0;180;1;Spese correnti;3;Acquisto di beni e servizi;2;Acquisto di servizi;99;Altri servizi;999;Altri servizi diversi n.a.c.;14-12-2016;
1178;1;0;"2,00";"2,00";ECONOMO COMUNALE; ;Rifusione buoni economanto n. 67p - A.L. RAG. N. 113 DEL 14.12.2016;14-12-2016;1305;0;113;1;Spese correnti;3;Acquisto di beni e servizi;1;Acquisto di beni;2;Altri beni di consumo;999;Altri beni e materiali di consumo n.a.c.;14-12-2016;
1179;1;0;"38,65";"38,65";ECONOMO COMUNALE; ;Rifusione buoni economato n. 67p 68 69 - A.L. RAG. N. 113 DEL 14.12.2016;14-12-2016;1305;0;183;1;Spese correnti;3;Acquisto di beni e servizi;1;Acquisto di beni;2;Altri beni di consumo;999;Altri beni e materiali di consumo n.a.c.;14-12-2016;
1180;1;0;"148,00";"148,00";ECONOMO COMUNALE; ;Rifusione buoni economato n. 58 63 66 72;14-12-2016;4754;0;309;1;Spese correnti;3;Acquisto di beni e servizi;1;Acquisto di beni;2;Altri beni di consumo;999;Altri beni e materiali di consumo n.a.c.;14-12-2016;
1181;1;0;"1.045,00";"1.045,00";ZEFIRO SRL;Z3D1A45638;ACCONTO Fatt.n. 42/PA  del 30/11/2016 Servizio di pulizia edifici comunali MESE di NOVEMBRE 2016;14-12-2016;475;0;393;1;Spese correnti;3;Acquisto di beni e servizi;2;Acquisto di servizi;99;Altri servizi;999;Altri servizi diversi n.a.c.;14-12-2016;
1182;1;0;"262,18";"262,18";ZEFIRO SRL;Z3D1A45638;ACCONTO Fatt.n. 42/PA  del 30/11/2016 Servizio di pulizia edifici comunali MESE di NOVEMBRE 2016;14-12-2016;2973;0;394;1;Spese correnti;3;Acquisto di beni e servizi;2;Acquisto di servizi;99;Altri servizi;999;Altri servizi diversi n.a.c.;14-12-2016;
1183;1;0;"294,75";"294,75";ZEFIRO SRL;Z3D1A45638;ACCONTO Fatt.n. 42/PA  del 30/11/2016 Servizio di pulizia edifici comunali MESE di NOVEMBRE 2016;14-12-2016;37601;0;395;1;Spese correnti;3;Acquisto di beni e servizi;2;Acquisto di servizi;99;Altri servizi;999;Altri servizi diversi n.a.c.;14-12-2016;
1184;1;0;"174,85";"174,85";ZEFIRO SRL;Z3D1A45638;SALDO Fatt.n. 42/PA  del 30/11/2016 Servizio di pulizia edifici comunali MESE di NOVEMBRE 2016;14-12-2016;1400;0;396;1;Spese correnti;3;Acquisto di beni e servizi;2;Acquisto di servizi;9;Manutenzione ordinaria e riparazioni;8;Manutenzione ordinaria e riparazioni di beni immobili;14-12-2016;
1186;1;0;"412,59";"412,59";E.ON Energia S.p.a.;Z7113FE6B2;SALDO Fatt.n. 40012186  del 01/12/2016 Fornitura gas naturale utenza Sede Municipale (matricola contatore 1545006563) mese di ottobre 2016;15-12-2016;4751;0;91;1;Spese correnti;3;Acquisto di beni e servizi;2;Acquisto di servizi;5;Utenze e canoni;6;Gas;15-12-2016;
1187;1;0;"52,72";"52,72";E.ON Energia S.p.a.;Z7113FE6B2;SALDO Fatt.n. 40012233  del 01/12/2016 Fornitura gas naturale utenza Villa Venier mese di ottobre 2016;15-12-2016;1312;0;95;1;Spese correnti;3;Acquisto di beni e servizi;2;Acquisto di servizi;5;Utenze e canoni;6;Gas;15-12-2016;
1188;1;0;"3.777,28";"3.777,28";Sodexo Italia Spa;64630250F4;SALDO Fatt.n. 7400049535  del 30/11/2016 Fornitura pasti mensa scuoa materna mese di novembre 2016;15-12-2016;3404;0;24;1;Spese correnti;3;Acquisto di beni e servizi;2;Acquisto di servizi;15;Contratti di servizio pubblico;6;Contratti di servizio per le mense scolastiche;15-12-2016;
1189;1;0;"2.464,68";"2.464,68";Sodexo Italia Spa;64630250F4;SALDO Fatt.n. 7400049536  del 30/11/2016 Fornitura pasti alunni scuole elementari mese di novembre 2016;15-12-2016;3406;0;32;1;Spese correnti;3;Acquisto di beni e servizi;2;Acquisto di servizi;15;Contratti di servizio pubblico;6;Contratti di servizio per le mense scolastiche;15-12-2016;
1190;1;0;"1.200,00";"2.400,00";OMESSO NOMINATIVO NEL RISPETTO DELLA NORMATIVA SULLA PROTEZIONE DATI PERSONALI; ;Contributo per impegnativa di cura domiciliare - ICD M per il periodo dal 01.07.2016 al 30.09.2016 per Santimaria Antonietta - a.l. seg. n. 128 del 14.12.2016;15-12-2016;6710;0;417;1;Spese correnti;4;Trasferimenti correnti;2;Trasferimenti correnti a Famiglie;5;Altri trasferimenti a famiglie;999;Altri trasferimenti a famiglie n.a.c.;15-12-2016;
1190;2;0;"1.200,00";"2.400,00";OMESSO NOMINATIVO NEL RISPETTO DELLA NORMATIVA SULLA PROTEZIONE DATI PERSONALI; ;Contributo per impegnativa di cura domiciliare - ICD M per il periodo dal 01.07.2016 al 30.09.2016 per Rizzi Lorenzo - a.l. seg. n. 128 del 14.12.2016;15-12-2016;6710;0;417;1;Spese correnti;4;Trasferimenti correnti;2;Trasferimenti correnti a Famiglie;5;Altri trasferimenti a famiglie;999;Altri trasferimenti a famiglie n.a.c.;15-12-2016;
1193;1;0;"4.413,87";"4.413,87";CASSA DEPOSITI E PRESTITI SPA; ;Quota interessi per mutui in ammortamento rata dicembre 2016   -  provv. 33;30-12-2016;3285;0;285;1;Spese correnti;7;Interessi passivi;5;Interessi su Mutui e altri finanziamenti a medio lungo termine;4;Interessi passivi su finanziamenti a medio lungo termine a Imprese;3;Interessi passivi a Cassa Depositi e Prestiti SPA su mutui e altri finanziamenti a medio lungo termine;30-12-2016;
1194;1;0;"1.320,96";"1.320,96";CASSA DEPOSITI E PRESTITI SPA; ;Quota interessi dei mutui in ammortamento rata dicembre 2016   -  provv. 33;30-12-2016;5685;0;284;1;Spese correnti;7;Interessi passivi;5;Interessi su Mutui e altri finanziamenti a medio lungo termine;4;Interessi passivi su finanziamenti a medio lungo termine a Imprese;999;Interessi passivi a altre imprese su finanziamenti a medio lungo termine;30-12-2016;
1195;1;0;"30.498,07";"30.498,07";CASSA DEPOSITI E PRESTITI SPA; ;Quota interessi dei mutui in ammortamento rata dicembre 2016  -  provv. 33;30-12-2016;7450;0;283;1;Spese correnti;7;Interessi passivi;5;Interessi su Mutui e altri finanziamenti a medio lungo termine;4;Interessi passivi su finanziamenti a medio lungo termine a Imprese;3;Interessi passivi a Cassa Depositi e Prestiti SPA su mutui e altri finanziamenti a medio lungo termine;30-12-2016;
